Transaction Reference,Supplier Name,Line Value,Department,Category,Transaction Date,Year/Period,SME,Costs split between Mid Suffolk and Babergh District Councils Y/N,% of transaction apportioned to Babergh District Council
422866,AARON SERVICES LTD,198.44,Voids Maintenance,Repairs,11-Oct-22,2223/07,SME,N,
422866,AARON SERVICES LTD,"20,030.40",Planned Maint - Heating,Property Servicing,11-Oct-22,2223/07,SME,N,
422885,AARON SERVICES LTD,"27,489.81",Planned Maint - Heating,Property Servicing,18-Oct-22,2223/07,SME,N,
422897,AARON SERVICES LTD,"2,901.44",Planned Maint - Heating,Property Servicing,31-Oct-22,2223/07,SME,N,
362688,ACADEMY BUILDING CONTRACTS LTD,"1,549.17","Fences, Gates and Walls",BMBS Repairs Work,23-Sep-22,2223/07,SME,N,
362689,ACADEMY BUILDING CONTRACTS LTD,"1,934.97","Fences, Gates and Walls",Repairs,23-Sep-22,2223/07,SME,N,
362690,ACADEMY BUILDING CONTRACTS LTD,"1,042.15","Fences, Gates and Walls",BMBS Repairs Work,23-Sep-22,2223/07,SME,N,
362817,ACADEMY BUILDING CONTRACTS LTD,381.72,Building Services,Repairs,30-Sep-22,2223/07,SME,N,
362818,ACADEMY BUILDING CONTRACTS LTD,498.7,Building Services,Repairs,30-Sep-22,2223/07,SME,N,
362819,ACADEMY BUILDING CONTRACTS LTD,524.05,"Fences, Gates and Walls",BMBS Repairs Work,30-Sep-22,2223/07,SME,N,
363199,ACADEMY BUILDING CONTRACTS LTD,"1,391.27","Fences, Gates and Walls",Repairs,14-Oct-22,2223/07,SME,N,
363200,ACADEMY BUILDING CONTRACTS LTD,"1,124.77","Fences, Gates and Walls",Repairs,14-Oct-22,2223/07,SME,N,
363201,ACADEMY BUILDING CONTRACTS LTD,"2,782.54","Fences, Gates and Walls",Repairs,14-Oct-22,2223/07,SME,N,
363202,ACADEMY BUILDING CONTRACTS LTD,270.34,Building Services,Repairs,14-Oct-22,2223/07,SME,N,
363318,ACADEMY BUILDING CONTRACTS LTD,"3,330.41","Fences, Gates and Walls",Repairs,14-Oct-22,2223/07,SME,N,
362910,AE WHITE SURFACING,"18,611.00",Pld Maint/ Enhncmts-C Parks,Improvements,16-Sep-22,2223/07,SME,N,
362916,AE WHITE SURFACING,"17,265.00",Roads and Paths,Improvements,16-Sep-22,2223/07,SME,N,
363234,AE WHITE SURFACING,"4,598.00",Sheltered Accommodation,Improvements,30-Sep-22,2223/07,SME,N,
363404,AE WHITE SURFACING,"5,957.00",Pld Maint/ Enhncmts-C Parks,Annual Bldg Maint Contracts,24-Oct-22,2223/07,SME,N,
362746,ANGLIAN WATER,"1,237.55",Water Sampling,Sampling & Analysis,26-Sep-22,2223/07,LGE,N,
363437,ANGLIAN WATER,727.12,Sheltered Accommodation,Water Rates - Metered,13-Sep-22,2223/07,LGE,N,
363066,BOWER FULLER,"1,413.72",BRRP-MarketTownVision&Invest,Prof & Consultancy Fees,30-Sep-22,2223/07,SME,N,
363067,BOWER FULLER,370.89,Temporary Accommodation,Fire Prevention,30-Sep-22,2223/07,SME,N,
363068,BOWER FULLER,42.4,Creeting Rd Depot,Fire Prevention,30-Sep-22,2223/07,SME,Y,50%
363068,BOWER FULLER,486.17,Sheltered Accommodation,Fire Prevention,30-Sep-22,2223/07,SME,N,
363068,BOWER FULLER,54.81,Tenancy Services,Fire Prevention,30-Sep-22,2223/07,SME,N,
363071,BOWER FULLER,"1,525.80",Sheltered Accommodation,Fire Prevention,30-Sep-22,2223/07,SME,N,
363072,BOWER FULLER,302.82,Sheltered Accommodation,Fire Prevention,30-Sep-22,2223/07,SME,N,
363076,BOWER FULLER,"3,769.20",Sheltered Accommodation,Fire Prevention,30-Sep-22,2223/07,SME,N,
363077,BOWER FULLER,477.6,Sheltered Accommodation,Fire Prevention,30-Sep-22,2223/07,SME,N,
363078,BOWER FULLER,446.5,Creeting Rd Depot,Grounds & Site Maintenance,30-Sep-22,2223/07,SME,Y,50%
363079,BOWER FULLER,639.73,Leaseholders,Repairs,30-Sep-22,2223/07,SME,N,
363080,BOWER FULLER,759.79,Sheltered Accommodation,Repairs,30-Sep-22,2223/07,SME,N,
363105,BOWER FULLER,"17,486.15",Sheltered Accommodation,Fire Prevention,10-Oct-22,2223/07,SME,N,
363048,BUTTON & TURNER LTD,260.44,Open Spaces,Plant & Vehicle - Other costs,29-Sep-22,2223/07,SME,N,
363050,BUTTON & TURNER LTD,430.25,Open Spaces,Plant & Vehicle - Other costs,21-Sep-22,2223/07,SME,N,
362868,AQUASAMPLERS,750,Water Sampling,Sampling & Analysis,31-Aug-22,2223/07,SME,N,
363328,CEDARS HOTEL LTD,"20,460.00",Homelessness Private Sector,B&B Costs,20-Oct-22,2223/07,SME,Y,50%
363329,CEDARS HOTEL LTD,"20,460.00",Homelessness Private Sector,B&B Costs,20-Oct-22,2223/07,SME,Y,50%
363330,CEDARS HOTEL LTD,"19,800.00",Homelessness Private Sector,B&B Costs,20-Oct-22,2223/07,SME,Y,50%
363152,CENTRAL TYRE LTD,316.82,Street & Major Road Cleansing,Plant & Vehicle - Other costs,12-Oct-22,2223/07,SME,N,
363173,CHEQUERS HOTEL LTD,350,Homelessness Private Sector,B&B Costs,03-Oct-22,2223/07,SME,N,
363174,CHEQUERS HOTEL LTD,400,Homelessness Private Sector,B&B Costs,03-Oct-22,2223/07,SME,N,
363176,CHEQUERS HOTEL LTD,"1,120.00",Homelessness Private Sector,B&B Costs,03-Oct-22,2223/07,SME,N,
362682,CLARKE FENCING LTD,"22,386.85",Building Services,Repairs,22-Sep-22,2223/07,SME,N,
363014,CLARKE FENCING LTD,"3,384.87",C Parks General,Contracted Services,06-Oct-22,2223/07,SME,N,
363233,CLARKE FENCING LTD,464,Open Spaces,"Equipment, Tools & Materials",14-Oct-22,2223/07,SME,N,
363055,D W ADAMS LTD,"5,160.00",Council House Adaptions,Improvements,08-Oct-22,2223/07,SME,N,
363245,DOLPHIN STAIRLIFTS (EAST ANGLIA) LTD,"2,697.00",Mand Disabled Facilities Grant,Grants,17-Oct-22,2223/07,SME,N,
363267,DOLPHIN STAIRLIFTS (EAST ANGLIA) LTD,"4,676.00",Mand Disabled Facilities Grant,Grants,17-Oct-22,2223/07,SME,N,
363306,DOLPHIN STAIRLIFTS (EAST ANGLIA) LTD,"5,685.00",Council House Adaptions,Improvements,10-Oct-22,2223/07,SME,N,
362772,EAST ANGLIA CLEANING SERVICES LTD,451.47,Open Spaces,General Cleaning,28-Sep-22,2223/07,SME,N,
363447,EAST ANGLIA CLEANING SERVICES LTD,"1,489.71",Jnt Waste Contract,General Cleaning,26-Oct-22,2223/07,SME,Y,50%
363448,EAST ANGLIA CLEANING SERVICES LTD,451.47,Open Spaces,General Cleaning,26-Oct-22,2223/07,SME,N,
362681,ENVIROVENT LTD,709,Building Services,Repairs,15-Sep-22,2223/07,SME,N,
362791,ENVIROVENT LTD,556.6,Building Services,Repairs,16-Sep-22,2223/07,SME,N,
362792,ENVIROVENT LTD,460,Building Services,Repairs,16-Sep-22,2223/07,SME,N,
362808,ENVIROVENT LTD,290,Insulation Imps,Improvements,22-Sep-22,2223/07,SME,N,
362892,ENVIROVENT LTD,349,Building Services,Repairs,29-Sep-22,2223/07,SME,N,
362921,ENVIROVENT LTD,506,Insulation Imps,Improvements,30-Sep-22,2223/07,SME,N,
363082,ENVIROVENT LTD,958,Building Services,Repairs,04-Oct-22,2223/07,SME,N,
363135,ENVIROVENT LTD,709,Building Services,Repairs,07-Oct-22,2223/07,SME,N,
363136,ENVIROVENT LTD,460,Building Services,Repairs,07-Oct-22,2223/07,SME,N,
363380,FELGAINS CARE CENTRE,"4,606.00",Mand Disabled Facilities Grant,Grants,21-Oct-22,2223/07,SME,N,
362734,FELLBRIDGE BUILDING SERVICES,"1,770.32",Building Services,Repairs,22-Sep-22,2223/07,SME,N,
362735,FELLBRIDGE BUILDING SERVICES,446.8,Building Services,Repairs,26-Sep-22,2223/07,SME,N,
362736,FELLBRIDGE BUILDING SERVICES,"13,915.07",Major Imps,Improvements,26-Sep-22,2223/07,SME,N,
362737,FELLBRIDGE BUILDING SERVICES,"1,256.70",Building Services,Repairs,26-Sep-22,2223/07,SME,N,
362802,FELLBRIDGE BUILDING SERVICES,"18,302.02",Building Services,Repairs,29-Sep-22,2223/07,SME,N,
363107,FELLBRIDGE BUILDING SERVICES,"17,499.57",Building Services,Repairs,10-Oct-22,2223/07,SME,N,
363120,FELLBRIDGE BUILDING SERVICES,946.02,Building Services,Repairs,10-Oct-22,2223/07,SME,N,
363141,FELLBRIDGE BUILDING SERVICES,"3,272.13",Building Services,Repairs,11-Oct-22,2223/07,SME,N,
363189,FELLBRIDGE BUILDING SERVICES,"2,878.19",Building Services,Repairs,13-Oct-22,2223/07,SME,N,
363190,FELLBRIDGE BUILDING SERVICES,"10,628.85",Building Services,Repairs,13-Oct-22,2223/07,SME,N,
363192,FELLBRIDGE BUILDING SERVICES,"11,432.75",Building Services,Repairs,13-Oct-22,2223/07,SME,N,
363342,FELLBRIDGE BUILDING SERVICES,364.21,Building Services,Repairs,20-Oct-22,2223/07,SME,N,
362874,FORE-MOST GARAGE DOORS LTD,"2,074.10",Building Services,Repairs,30-Sep-22,2223/07,SME,N,
362874,FORE-MOST GARAGE DOORS LTD,45,"Garages, Forecourts & Stores",Repairs,30-Sep-22,2223/07,SME,N,
362853,J NAREY & SONS,"1,258.96",Open Spaces,Horticultural Purchases,30-Sep-22,2223/07,SME,N,
362793,JOHN MILES & SONS,"1,500.00",Jnt Waste Contract,Rent Payable,28-Sep-22,2223/07,SME,N,
362695,KEN GRIME & SON LTD,"1,195.66",Building Services,Repairs,26-Sep-22,2223/07,SME,N,
363179,KENDA-CLEAN,62,Creeting Rd Depot,Window Cleaning,02-Oct-22,2223/07,SME,Y,50%
363179,KENDA-CLEAN,"2,074.00",Sheltered Accommodation,Window Cleaning,02-Oct-22,2223/07,SME,N,
363179,KENDA-CLEAN,123,Temporary Accommodation,Window Cleaning,02-Oct-22,2223/07,SME,N,
362824,KEYWAYS THE LOCKSMITHS LTD,996,Tenancy Services,Repairs,30-Sep-22,2223/07,SME,N,
362845,M & H CIVIL ENGINEERING LTD,272.98,Building Services,Repairs,20-Sep-22,2223/07,SME,N,
362852,M & H CIVIL ENGINEERING LTD,695.23,Kitchens/Bathrooms,Repairs,01-Oct-22,2223/07,SME,N,
362513,MALJON TIMBER PRESERVATION LTD,564,Building Services,Repairs,08-Sep-22,2223/07,SME,N,
362764,MALJON TIMBER PRESERVATION LTD,"2,520.00",Insulation Imps,Improvements,27-Sep-22,2223/07,SME,N,
362787,MARRIOTT HOLDINGS LTD,"1,875.00",C Parks-Stowmarket Lorry Park,Rent Payable,29-Sep-22,2223/07,SME,N,
362917,MATERIAL CHANGE COMPOSTING LTD,933.24,Open Spaces,Waste Disposal,30-Sep-22,2223/07,LGE,N,
363002,MB TREES (EAST ANGLIA) LTD,620,Public Tree Programme,Tree felling/maintenance,06-Oct-22,2223/07,SME,N,
363137,MB TREES (EAST ANGLIA) LTD,580,Headquarters General,Grounds & Site Maintenance,11-Oct-22,2223/07,SME,N,
362743,MID SUFFOLK FENCING LTD,"2,137.00","Fences, Gates and Walls",Repairs,23-Sep-22,2223/07,SME,N,
362767,MID SUFFOLK FENCING LTD,"1,673.00",Building Services,Repairs,23-Sep-22,2223/07,SME,N,
363000,MID SUFFOLK FENCING LTD,"2,430.00","Fences, Gates and Walls",Repairs,09-Oct-22,2223/07,SME,N,
363277,MID SUFFOLK FENCING LTD,"1,194.00","Fences, Gates and Walls",Repairs,17-Oct-22,2223/07,SME,N,
363278,MID SUFFOLK FENCING LTD,"3,080.00","Fences, Gates and Walls",Repairs,17-Oct-22,2223/07,SME,N,
363321,MIXBROW LTD,"5,805.00",Council House Adaptions,Improvements,18-Oct-22,2223/07,SME,N,
362914,NEEDHAM MARKET TOWN COUNCIL,"40,812.22",S106 Open Spaces Expenditure,Grants,04-Oct-22,2223/07,SME,N,
422848,NEEDHAM MARKET TOWN COUNCIL,"16,059.33",Current Liabilities,Parish Payments Available,10-Oct-22,2223/07,SME,N,
362891,PRO-FLAT SPECIALIST SERVICES LTD,"1,235.00",Building Services,Repairs,30-Sep-22,2223/07,SME,N,
362516,REID PLUMBING & HEATING CONTRACTORS LTD,"15,920.99",Central Heating,Major Contracts,13-Sep-22,2223/07,SME,N,
362611,REID PLUMBING & HEATING CONTRACTORS LTD,"20,992.98",Central Heating,Major Contracts,20-Sep-22,2223/07,SME,N,
362651,REID PLUMBING & HEATING CONTRACTORS LTD,"20,771.69",Central Heating,Major Contracts,22-Sep-22,2223/07,SME,N,
362742,REID PLUMBING & HEATING CONTRACTORS LTD,"9,988.64",Central Heating,Major Contracts,26-Sep-22,2223/07,SME,N,
362801,REID PLUMBING & HEATING CONTRACTORS LTD,"21,004.62",Central Heating,Major Contracts,29-Sep-22,2223/07,SME,N,
362909,REID PLUMBING & HEATING CONTRACTORS LTD,"10,018.77",Central Heating,Major Contracts,03-Oct-22,2223/07,SME,N,
362957,REID PLUMBING & HEATING CONTRACTORS LTD,"21,847.32",Central Heating,Major Contracts,04-Oct-22,2223/07,SME,N,
363118,REID PLUMBING & HEATING CONTRACTORS LTD,"25,133.34",Central Heating,Major Contracts,11-Oct-22,2223/07,SME,N,
363289,REID PLUMBING & HEATING CONTRACTORS LTD,"15,227.48",Central Heating,Major Contracts,18-Oct-22,2223/07,SME,N,
362894,SACKERS LTD,"2,311.49",Building Services,Waste Disposal,30-Sep-22,2223/07,SME,Y,50%
362725,SEAGER HOME SOLUTIONS,"5,852.09",Building Services,Repairs,26-Sep-22,2223/07,SME,N,
362726,SEAGER HOME SOLUTIONS,"4,208.54",Building Services,Repairs,26-Sep-22,2223/07,SME,N,
362973,SEAGER HOME SOLUTIONS,"16,950.17",Kitchens/Bathrooms,Major Contracts,05-Oct-22,2223/07,SME,N,
362859,TANKCHANGE LTD,425,Central Heating,Improvements,29-Sep-22,2223/07,SME,N,
363187,THE COPYRIGHT LICENSING AGENCY LTD,"1,011.78",Management Team,Subscriptions,06-Oct-22,2223/07,LGE,N,
362804,THERMATECH,"4,300.00",Sheltered Accommodation,Fire Prevention,29-Sep-22,2223/07,SME,N,
362805,THERMATECH,450,Building Services,Training,29-Sep-22,2223/07,SME,Y,50%
363236,THERMATECH,"10,850.00",Sheltered Accommodation,Fire Prevention,14-Oct-22,2223/07,SME,N,
363320,THOMPSON COOPER LTD,"1,034.15",Street & Major Road Cleansing,"Equipment, Tools & Materials",19-Oct-22,2223/07,SME,N,
362593,TRUCKEAST LTD,304.5,Street & Major Road Cleansing,Plant & Vehicle - Other costs,20-Sep-22,2223/07,LGE,N,
362986,TRUCKEAST LTD,"1,695.91",Street & Major Road Cleansing,Plant & Vehicle - Other costs,05-Oct-22,2223/07,LGE,N,
362864,WEST END REHOMING,"11,000.00",Dog Control,Kennels Retainer,01-Oct-22,2223/07,SME,N,
362660,WINDIMAN LTD,"1,460.00",Window & Door Rplcmts,Improvements,22-Sep-22,2223/07,SME,N,
363028,WINDIMAN LTD,"4,996.61",Window & Door Rplcmts,Improvements,22-Sep-22,2223/07,SME,N,
363083,WINDIMAN LTD,"1,960.00",Window & Door Rplcmts,Improvements,10-Oct-22,2223/07,SME,N,
363084,WINDIMAN LTD,"1,630.00",Major Imps,Repairs,10-Oct-22,2223/07,SME,N,
363194,WINDIMAN LTD,"2,100.00",Window & Door Rplcmts,Improvements,07-Oct-22,2223/07,SME,N,
363197,WINDIMAN LTD,600,Window & Door Rplcmts,Improvements,07-Oct-22,2223/07,SME,N,
363198,WINDIMAN LTD,460,Building Services,Repairs,07-Oct-22,2223/07,SME,N,
362716,WORKWEAR (EAST ANGLIA) LTD,154.47,Open Spaces,Protective clothing,23-Sep-22,2223/07,SME,N,
362716,WORKWEAR (EAST ANGLIA) LTD,154.47,Street & Major Road Cleansing,Protective clothing,23-Sep-22,2223/07,SME,N,
362795,WORKWEAR (EAST ANGLIA) LTD,231.13,Open Spaces,Protective clothing,15-Sep-22,2223/07,SME,N,
362795,WORKWEAR (EAST ANGLIA) LTD,63.75,Street & Major Road Cleansing,Protective clothing,15-Sep-22,2223/07,SME,N,
362870,WORKWEAR (EAST ANGLIA) LTD,228.92,Open Spaces,Protective clothing,30-Sep-22,2223/07,SME,N,
362870,WORKWEAR (EAST ANGLIA) LTD,228.91,Street & Major Road Cleansing,Protective clothing,30-Sep-22,2223/07,SME,N,
362888,WORKWEAR (EAST ANGLIA) LTD,351.64,Building Services,Protective clothing,28-Sep-22,2223/07,SME,Y,50%
363125,WORKWEAR (EAST ANGLIA) LTD,171.35,Open Spaces,Protective clothing,04-Oct-22,2223/07,SME,N,
363125,WORKWEAR (EAST ANGLIA) LTD,111.89,Street & Major Road Cleansing,Protective clothing,04-Oct-22,2223/07,SME,N,
363184,WORKWEAR (EAST ANGLIA) LTD,230.7,Open Spaces,Protective clothing,04-Oct-22,2223/07,SME,N,
363184,WORKWEAR (EAST ANGLIA) LTD,230.7,Street & Major Road Cleansing,Protective clothing,04-Oct-22,2223/07,SME,N,
363214,WORKWEAR (EAST ANGLIA) LTD,330.83,Building Services,Protective clothing,07-Oct-22,2223/07,SME,Y,50%
362960,MITIE PROPERTY SERVICES (UK) LTD,"53,820.84",Planned Maint - Ext Painting,Major Contracts,31-Jul-22,2223/07,SME,N,
362847,SPORTS & LEISURE MANAGEMENT LTD,"20,833.33",Leisure Contract,Contributions to other Bodies,20-Sep-22,2223/07,LGE,N,
363238,SPORTS & LEISURE MANAGEMENT LTD,"20,833.33",Leisure Contract,Contributions to other Bodies,14-Oct-22,2223/07,LGE,N,
363341,EVERYONE ACTIVE STOWMARKET,"1,095.10",Holiday Activity Fund,"Equipment, Tools & Materials",01-Sep-22,2223/07,SME,N,
362850,BUILDBASE,300,Open Spaces,Grounds & Site Maintenance,30-Sep-22,2223/07,LGE,N,
363464,IPSWICH BOROUGH COUNCIL,"275,157.50",Shared Revenues Partnership,Major Contracts,24-Oct-22,2223/07,LGE,N,
363113,SERCO LTD,"6,850.00",Jnt Waste Contract,Refuse Contract,08-Oct-22,2223/07,LGE,Y,50%
363114,SERCO LTD,"4,587.00",Domestic Waste,Refuse Contract,08-Oct-22,2223/07,LGE,Y,50%
363115,SERCO LTD,"320,710.50",Domestic Waste,Refuse Contract,08-Oct-22,2223/07,LGE,Y,48%
363115,SERCO LTD,"21,380.70",Trade Waste,Refuse Contract,08-Oct-22,2223/07,LGE,Y,60%
363115,SERCO LTD,"85,522.80",Garden Waste,Refuse Contract,08-Oct-22,2223/07,LGE,Y,47.50%
363116,SERCO LTD,"10,000.00",Jnt Waste Contract,Plant & Vehicle Fuel,08-Oct-22,2223/07,LGE,Y,50%
362844,TRAVIS PERKINS TRADING CO LTD,"68,020.29",Building Services,"Equipment, Tools & Materials",31-Aug-22,2223/07,LGE,Y,75%
422884,GPC BARCLAYS,"6,949.64",Current Assets,Barclaycard Control,14-Oct-22,2223/07,LGE,Y,20%
422813,ALLSTAR BUSINESS SOLUTIONS LTD,54.6,Housing Options,Plant & Vehicle Fuel,30-Sep-22,2223/07,SME,Y,50%
422813,ALLSTAR BUSINESS SOLUTIONS LTD,"10,200.84",Building Services,Plant & Vehicle Fuel,30-Sep-22,2223/07,SME,Y,50%
422812,COMPUTERSHARE ,910,Current Assets,ChildCare Vouchers-Control,28-Sep-22,2223/07,LGE,N,
422820,ASHBOCKING PARISH COUNCIL,"1,772.77",Current Liabilities,Parish Payments Available,10-Oct-22,2223/07,SME,N,
422821,BACTON PARISH COUNCIL,"59,455.01",Current Liabilities,Parish Payments Available,10-Oct-22,2223/07,SME,N,
422822,BADWELL ASH PARISH COUNCIL,"36,893.01",Current Liabilities,Parish Payments Available,10-Oct-22,2223/07,SME,N,
422823,BARHAM PARISH COUNCIL,"3,640.64",Current Liabilities,Parish Payments Available,10-Oct-22,2223/07,SME,N,
422824,BARKING PARISH COUNCIL,"3,219.81",Current Liabilities,Parish Payments Available,10-Oct-22,2223/07,SME,N,
363183,BEYTON PARISH COUNCIL,"1,000.00",Grants & Contrbns,Contributions & Donations,13-Oct-22,2223/07,SME,N,
422825,BOTESDALE PARISH COUNCIL,"58,053.07",Current Liabilities,Parish Payments Available,10-Oct-22,2223/07,SME,N,
422826,BRAMFORD PARISH COUNCIL,"57,833.28",Current Liabilities,Parish Payments Available,10-Oct-22,2223/07,SME,N,
422827,BROME & OAKLEY PARISH COUNCIL,"6,194.32",Current Liabilities,Parish Payments Available,10-Oct-22,2223/07,SME,N,
422828,BRUNDISH PARISH COUNCIL,"2,781.93",Current Liabilities,Parish Payments Available,10-Oct-22,2223/07,SME,N,
422829,BUXHALL PARISH COUNCIL,"2,055.48",Current Liabilities,Parish Payments Available,10-Oct-22,2223/07,SME,N,
422830,CLAYDON & WHITTON PARISH COUNCIL,"61,266.55",Current Liabilities,Parish Payments Available,10-Oct-22,2223/07,SME,N,
422831,COMBS PARISH COUNCIL,"2,135.60",Current Liabilities,Parish Payments Available,10-Oct-22,2223/07,SME,N,
422832,CREETING ST MARY PARISH COUNCIL,"4,053.11",Current Liabilities,Parish Payments Available,10-Oct-22,2223/07,SME,N,
422833,DEBENHAM PARISH COUNCIL,"6,709.00",Current Liabilities,Parish Payments Available,10-Oct-22,2223/07,SME,N,
422874,DEBENHAM VILLAGE HALL & PLAYING FIELD TR,766.65,Bring Sites,Contributions & Donations,13-Oct-22,2223/07,SME,N,
362944,EARL STONHAM PARISH COUNCIL,444,Grants & Contrbns,Contributions & Donations,04-Oct-22,2223/07,SME,N,
422834,ELMSWELL PARISH COUNCIL,"58,433.49",Current Liabilities,Parish Payments Available,10-Oct-22,2223/07,SME,N,
422835,EYE TOWN COUNCIL,"1,800.00",Current Liabilities,Parish Payments Available,10-Oct-22,2223/07,SME,N,
422836,FINNINGHAM PARISH COUNCIL,"6,211.02",Current Liabilities,Parish Payments Available,10-Oct-22,2223/07,SME,N,
422871,FRAMSDEN PARISH COUNCIL,527.14,Bring Sites,Contributions & Donations,13-Oct-22,2223/07,SME,N,
422837,FRESSINGFIELD PARISH COUNCIL,"7,114.75",Current Liabilities,Parish Payments Available,10-Oct-22,2223/07,SME,N,
422838,GISLINGHAM PARISH COUNCIL,"2,722.39",Current Liabilities,Parish Payments Available,10-Oct-22,2223/07,SME,N,
422839,GREAT BLAKENHAM PARISH COUNCIL,"8,351.64",Current Liabilities,Parish Payments Available,10-Oct-22,2223/07,SME,N,
422840,GREAT BRICETT PARISH COUNCIL,"5,189.49",Current Liabilities,Parish Payments Available,10-Oct-22,2223/07,SME,N,
422841,HAUGHLEY PARISH COUNCIL,"97,048.98",Current Liabilities,Parish Payments Available,10-Oct-22,2223/07,SME,N,
422842,HENLEY PARISH COUNCIL,"2,941.12",Current Liabilities,Parish Payments Available,10-Oct-22,2223/07,SME,N,
422843,HOXNE PARISH COUNCIL,"9,183.51",Current Liabilities,Parish Payments Available,10-Oct-22,2223/07,SME,N,
422844,LAXFIELD PARISH COUNCIL,"15,416.11",Current Liabilities,Parish Payments Available,10-Oct-22,2223/07,SME,N,
422845,MELLIS PARISH COUNCIL,"3,170.27",Current Liabilities,Parish Payments Available,10-Oct-22,2223/07,SME,N,
422846,MENDLESHAM PARISH COUNCIL,"20,184.32",Current Liabilities,Parish Payments Available,10-Oct-22,2223/07,SME,N,
362608,METFIELD PARISH COUNCIL,"2,000.00",Grants & Contrbns,Contributions & Donations,20-Sep-22,2223/07,SME,N,
422847,MICKFIELD PARISH COUNCIL,"3,898.94",Current Liabilities,Parish Payments Available,10-Oct-22,2223/07,SME,N,
363313,MID SUFFOLK VOLUNTARY ORGANISATIONS FORU,"19,930.00",Communities,Grants,19-Oct-22,2223/07,SME,N,
422849,NORTON PARISH COUNCIL,"26,461.33",Current Liabilities,Parish Payments Available,10-Oct-22,2223/07,SME,N,
422850,PALGRAVE PARISH COUNCIL,556.22,Current Liabilities,Parish Payments Available,10-Oct-22,2223/07,SME,N,
422851,RATTLESDEN PARISH COUNCIL,"15,654.56",Current Liabilities,Parish Payments Available,10-Oct-22,2223/07,SME,N,
362675,RINGSHALL COUNTY PRIMARY SCHOOL,"1,000.00",Grants & Contrbns,Contributions & Donations,22-Sep-22,2223/07,SME,N,
422852,SOMERSHAM PARISH COUNCIL,"14,785.13",Current Liabilities,Parish Payments Available,10-Oct-22,2223/07,SME,N,
363310,ST ELIZABETH HOSPICE,"3,010.00",Policy & Strategy (H & W),Contributions & Donations,19-Oct-22,2223/07,SME,N,
422853,STONHAM ASPAL PARISH COUNCIL,"17,641.09",Current Liabilities,Parish Payments Available,10-Oct-22,2223/07,SME,N,
422855,STOWUPLAND PARISH COUNCIL,"88,800.46",Current Liabilities,Parish Payments Available,10-Oct-22,2223/07,SME,N,
422856,STRADBROKE PARISH COUNCIL,"34,251.77",Current Liabilities,Parish Payments Available,10-Oct-22,2223/07,SME,N,
422857,THURSTON PARISH COUNCIL,"28,319.11",Current Liabilities,Parish Payments Available,10-Oct-22,2223/07,SME,N,
422858,TOSTOCK PARISH COUNCIL,"3,417.12",Current Liabilities,Parish Payments Available,10-Oct-22,2223/07,SME,N,
362948,WALSHAM LE WILLOWS SPORTS CLUB,"2,000.00",Grants & Contrbns,Contributions & Donations,04-Oct-22,2223/07,SME,N,
422859,WATTISFIELD PARISH COUNCIL,"3,354.67",Current Liabilities,Parish Payments Available,10-Oct-22,2223/07,SME,N,
422860,WEYBREAD PARISH COUNCIL,"1,455.78",Current Liabilities,Parish Payments Available,10-Oct-22,2223/07,SME,N,
422861,WICKHAM SKEITH PARISH COUNCIL,"17,636.35",Current Liabilities,Parish Payments Available,10-Oct-22,2223/07,SME,N,
363219,WINGFIELD BARNS CIC,500,Grants & Contrbns,Contributions & Donations,14-Oct-22,2223/07,SME,N,
422862,WOOLPIT PARISH COUNCIL,"150,576.89",Current Liabilities,Parish Payments Available,10-Oct-22,2223/07,SME,N,
422879,WOOLPIT PARISH COUNCIL,484.16,Bring Sites,Contributions & Donations,13-Oct-22,2223/07,SME,N,
422863,WORLINGWORTH PARISH COUNCIL,"19,789.88",Current Liabilities,Parish Payments Available,10-Oct-22,2223/07,SME,N,
422864,WORTHAM AND BURGATE PARISH COUNCIL,"14,845.75",Current Liabilities,Parish Payments Available,10-Oct-22,2223/07,SME,N,
422865,YAXLEY PARISH COUNCIL,"9,363.00",Current Liabilities,Parish Payments Available,10-Oct-22,2223/07,SME,N,
361092,SUFFOLK COUNTY COUNCIL,"11,531.00",Organisational Devt,Recruitment,07-Jul-22,2223/07,LGE,Y,50%
361093,SUFFOLK COUNTY COUNCIL,"4,575.00",Organisational Devt,Recruitment,07-Jul-22,2223/07,LGE,Y,50%
361938,SUFFOLK COUNTY COUNCIL,"1,210.00",Organisational Devt,Recruitment,17-Aug-22,2223/07,LGE,Y,50%
362136,SUFFOLK COUNTY COUNCIL,"1,355.00",Organisational Devt,Recruitment,25-Aug-22,2223/07,LGE,Y,50%
362225,SUFFOLK COUNTY COUNCIL,"3,825.00",Organisational Devt,Recruitment,31-Aug-22,2223/07,LGE,Y,50%
362640,SUFFOLK COUNTY COUNCIL,"10,165.00",Organisational Devt,Recruitment,21-Sep-22,2223/07,LGE,Y,50%
362669,SUFFOLK COUNTY COUNCIL,"2,950.00",Organisational Devt,Recruitment,22-Sep-22,2223/07,LGE,Y,50%
362992,SUFFOLK COUNTY COUNCIL,"2,228.00",Taxi & Private Hire Licensing,Prof & Consultancy Fees,04-Oct-22,2223/07,LGE,N,
363007,SUFFOLK COUNTY COUNCIL,"41,000.00",Endeavour House - HQ,Operating Lease Payments,01-Oct-22,2223/07,LGE,Y,50%
363007,SUFFOLK COUNTY COUNCIL,"53,750.00",Endeavour House - HQ,Contracted Services,01-Oct-22,2223/07,LGE,Y,50%
363008,SUFFOLK COUNTY COUNCIL,"4,557.00",Stowmarket CAP,Operating Lease Payments,01-Oct-22,2223/07,LGE,Y,50%
363008,SUFFOLK COUNTY COUNCIL,"3,307.00",Stowmarket CAP,Contracted Services,01-Oct-22,2223/07,LGE,Y,50%
363147,SUFFOLK COUNTY COUNCIL,400,Council House Adaptions,Improvements,11-Oct-22,2223/07,LGE,N,
362890,FENN WRIGHT LLP,450,General/Supervision & Mgmt,Prof & Consultancy Fees,30-Sep-22,2223/07,SME,N,
422880,STOWMARKET COMMUNITY SPORTS & SOCIAL CLU,763.63,Bring Sites,Contributions & Donations,13-Oct-22,2223/07,SME,N,
422854,STOWMARKET TOWN COUNCIL,"18,284.98",Current Liabilities,Parish Payments Available,10-Oct-22,2223/07,SME,N,
362949,PARKRUN LTD,"2,000.00",Grants & Contrbns,Contributions & Donations,04-Oct-22,2223/07,SME,N,
363463,TELEFONICA UK LIMITED - O2,"1,535.32",ICT,Telephone Costs,27-Oct-22,2223/07,LGE,Y,50%
362835,LEX AUTOLEASE,424.45,Building Services,Lease Cars - Payment,16-Sep-22,2223/07,SME,Y,50%
362836,LEX AUTOLEASE,380.23,Building Services,Lease Cars - Payment,19-Sep-22,2223/07,SME,Y,50%
362837,LEX AUTOLEASE,620.97,Building Services,Lease Cars - Payment,19-Sep-22,2223/07,SME,Y,50%
363223,LEX AUTOLEASE,348.97,Building Services,Lease Cars - Payment,28-Sep-22,2223/07,SME,Y,50%
363224,LEX AUTOLEASE,276.83,Building Services,Lease Cars - Payment,29-Sep-22,2223/07,SME,Y,50%
363225,LEX AUTOLEASE,310.1,Building Services,Lease Cars - Payment,02-Oct-22,2223/07,SME,Y,50%
363226,LEX AUTOLEASE,320.52,Building Services,Lease Cars - Payment,09-Oct-22,2223/07,SME,Y,50%
363227,LEX AUTOLEASE,311.29,Building Services,Lease Cars - Payment,09-Oct-22,2223/07,SME,Y,50%
363228,LEX AUTOLEASE,327.22,Building Services,Lease Cars - Payment,09-Oct-22,2223/07,SME,Y,50%
363366,LEX AUTOLEASE,315.39,Building Services,Lease Cars - Payment,11-Oct-22,2223/07,SME,Y,50%
363367,LEX AUTOLEASE,303.08,Building Services,Lease Cars - Payment,11-Oct-22,2223/07,SME,Y,50%
363368,LEX AUTOLEASE,265.48,Building Services,Lease Cars - Payment,12-Oct-22,2223/07,SME,Y,50%
363369,LEX AUTOLEASE,325.05,Building Services,Lease Cars - Payment,12-Oct-22,2223/07,SME,Y,50%
363370,LEX AUTOLEASE,337.78,Building Services,Lease Cars - Payment,12-Oct-22,2223/07,SME,Y,50%
363371,LEX AUTOLEASE,263.72,Building Services,Lease Cars - Payment,12-Oct-22,2223/07,SME,Y,50%
363374,LEX AUTOLEASE,380.23,Building Services,Lease Cars - Payment,17-Oct-22,2223/07,SME,Y,50%
363375,LEX AUTOLEASE,620.97,Building Services,Lease Cars - Payment,17-Oct-22,2223/07,SME,Y,50%
422890,GAZPROM ENERGY,15.37,"11 Market Place, Stowmarket",Gas,19-Oct-22,2223/07,SME,N,
422890,GAZPROM ENERGY,108.92,Creeting Rd Depot,Gas,19-Oct-22,2223/07,SME,Y,50%
422890,GAZPROM ENERGY,18.65,General/Supervision & Mgmt,Gas,19-Oct-22,2223/07,SME,N,
422890,GAZPROM ENERGY,27.95,Headquarters General,Gas,19-Oct-22,2223/07,SME,N,
422890,GAZPROM ENERGY,"10,791.21",Leisure Contract,Gas,19-Oct-22,2223/07,SME,N,
422890,GAZPROM ENERGY,15.37,Pure Gym & Adjacent Building,Gas,19-Oct-22,2223/07,SME,N,
422890,GAZPROM ENERGY,"2,975.12",Sheltered Accommodation,Gas,19-Oct-22,2223/07,SME,N,
422890,GAZPROM ENERGY,263.91,Temporary Accommodation,Gas,19-Oct-22,2223/07,SME,N,
422890,GAZPROM ENERGY,233.76,Tenancy Services,Gas,19-Oct-22,2223/07,SME,N,
363521,MID SUFFOLK CITIZENS ADVICE BUREAU,"23,875.00",Grants & Contrbns,Grants,31-Oct-22,2223/07,SME,N,
363150,LAMBERT SMITH HAMPTON GROUP LTD,"6,325.00",Devt Management - Appeals,Prof & Consultancy Fees,07-Oct-22,2223/07,LGE,N,
363103,THE HOUSING OMBUDSMAN,"15,106.40",Capita System Support,Subscriptions,25-Apr-22,2223/07,LGE,N,
363207,PATHFINDER DEVELOPMENT CONSULTANTS LTD,"25,920.00","The Broadway, Badwell Ash",Prof & Consultancy Fees,22-Sep-22,2223/07,SME,N,
362961,WHYBROW PROPERTY SOLUTIONS LTD,720,Building Services,Repairs,04-Oct-22,2223/07,SME,N,
362962,WHYBROW PROPERTY SOLUTIONS LTD,"1,075.00",Building Services,Repairs,04-Oct-22,2223/07,SME,N,
362963,WHYBROW PROPERTY SOLUTIONS LTD,351,Building Services,Repairs,04-Oct-22,2223/07,SME,N,
362964,WHYBROW PROPERTY SOLUTIONS LTD,"1,246.80",Building Services,Repairs,04-Oct-22,2223/07,SME,N,
362970,WHYBROW PROPERTY SOLUTIONS LTD,792.6,Building Services,Repairs,04-Oct-22,2223/07,SME,N,
363038,WHYBROW PROPERTY SOLUTIONS LTD,263.8,Building Services,Repairs,07-Oct-22,2223/07,SME,N,
363250,WHYBROW PROPERTY SOLUTIONS LTD,300,Building Services,Repairs,14-Oct-22,2223/07,SME,N,
363269,WHYBROW PROPERTY SOLUTIONS LTD,"6,125.76",Council House Adaptions,Improvements,17-Oct-22,2223/07,SME,N,
363270,WHYBROW PROPERTY SOLUTIONS LTD,395,Building Services,Repairs,17-Oct-22,2223/07,SME,N,
362789,L A C CLEANING CONTRACTORS LIMITED,366.16,Temporary Accommodation,General Cleaning,27-Sep-22,2223/07,SME,N,
362790,L A C CLEANING CONTRACTORS LIMITED,824.41,Temporary Accommodation,General Cleaning,27-Sep-22,2223/07,SME,N,
363149,L A C CLEANING CONTRACTORS LIMITED,"1,095.50",RoughSleepersInterventionYr3,Misc Supplies & Services Costs,12-Oct-22,2223/07,SME,N,
363243,ARMSTRONG YORK ASBESTOS ENVIRONMENTAL,"7,649.91",Asbestos Survey & Reinspection,Prof & Consultancy Fees,30-Sep-22,2223/07,SME,N,
362831,TUDOR ENVIRONMENTAL,402.2,Open Spaces,Horticultural Purchases,29-Sep-22,2223/07,SME,Y,50%
363093,TRADITION (UK) LTD,"3,123.29",Treasury Management,Prof & Consultancy Fees,30-Sep-22,2223/07,LGE,N,
362913,STOWE VETERINARY GROUP,414.35,Animal Welfare Licensing,Prof & Consultancy Fees,03-Oct-22,2223/07,SME,N,
362898,LANGUAGE LINE SOLUTIONS,253.5,Homeless Prevention Fund,Telephone Costs,31-Aug-22,2223/07,LGE,N,
362945,WETHERDEN VILLAGE HALL MANAGEMENT COUNCI,900,Grants & Contrbns,Contributions & Donations,04-Oct-22,2223/07,SME,N,
363222,SUSAN M MORGAN,"5,240.95",Public Tree Programme,Tree felling/maintenance,05-Oct-22,2223/07,SME,N,
363297,OXBURY CHARTERED SURVEYORS,"1,800.00","The Broadway, Badwell Ash",Prof & Consultancy Fees,18-Oct-22,2223/07,SME,N,
362865,OPUS PEOPLE SOLUTIONS LTD,468.75,Household Support Grant,Agency Staff,29-Sep-22,2223/07,SME,N,
362865,OPUS PEOPLE SOLUTIONS LTD,231.16,Business Cont/Emergency Plan,Agency Staff,29-Sep-22,2223/07,SME,N,
363096,OPUS PEOPLE SOLUTIONS LTD,609.37,Household Support Grant,Agency Staff,06-Oct-22,2223/07,SME,N,
363096,OPUS PEOPLE SOLUTIONS LTD,76.38,Housing Standards,Agency Staff,06-Oct-22,2223/07,SME,N,
363096,OPUS PEOPLE SOLUTIONS LTD,300.04,Business Cont/Emergency Plan,Agency Staff,06-Oct-22,2223/07,SME,N,
363309,OPUS PEOPLE SOLUTIONS LTD,375,Household Support Grant,Agency Staff,13-Oct-22,2223/07,SME,N,
363309,OPUS PEOPLE SOLUTIONS LTD,81.55,Housing Standards,Agency Staff,13-Oct-22,2223/07,SME,N,
363309,OPUS PEOPLE SOLUTIONS LTD,307.82,Business Cont/Emergency Plan,Agency Staff,13-Oct-22,2223/07,SME,N,
363450,OPUS PEOPLE SOLUTIONS LTD,226.56,Household Support Grant,Agency Staff,20-Oct-22,2223/07,SME,N,
363450,OPUS PEOPLE SOLUTIONS LTD,300.04,Business Cont/Emergency Plan,Agency Staff,20-Oct-22,2223/07,SME,N,
363476,OPUS PEOPLE SOLUTIONS LTD,210.94,Household Support Grant,Agency Staff,27-Oct-22,2223/07,SME,N,
363476,OPUS PEOPLE SOLUTIONS LTD,124.91,Electoral Registration,Agency Staff,27-Oct-22,2223/07,SME,Y,100%
363476,OPUS PEOPLE SOLUTIONS LTD,95.51,Housing Standards,Agency Staff,27-Oct-22,2223/07,SME,N,
363476,OPUS PEOPLE SOLUTIONS LTD,103.34,Business Cont/Emergency Plan,Agency Staff,27-Oct-22,2223/07,SME,N,
362769,ECOSYSTEMS TREE & GROUNDS CARE,500,Neighbourhood Services,Grounds & Site Maintenance,27-Sep-22,2223/07,SME,N,
363282,SHELTER TRAINING,430,Homelessness Private Sector,Training,27-Sep-22,2223/07,LGE,Y,50%
363340,ELYSIAN ASSOCIATES,500,Financial Servs,Prof & Consultancy Fees,10-Oct-22,2223/07,SME,N,
363025,VERTAS GROUP LTD,"1,395.00",Assets & Development,Repairs,30-Sep-22,2223/07,SME,N,
362825,GALLAGHER CAR & VAN RENTALS LTD,"1,550.03",Domestic Waste,Refuse Contract,30-Sep-22,2223/07,LGE,N,
363035,GALLAGHER CAR & VAN RENTALS LTD,"1,900.08",Domestic Waste,Refuse Contract,05-Oct-22,2223/07,LGE,N,
363061,GALLAGHER CAR & VAN RENTALS LTD,424.97,Domestic Waste,Refuse Contract,10-Oct-22,2223/07,LGE,N,
363056,FORESOLUTIONS LTD,254.38,Open Spaces,Plant & Vehicle - Other costs,08-Oct-22,2223/07,SME,N,
362946,THE DEBENHAM PROJECT,500,Grants & Contrbns,Contributions & Donations,04-Oct-22,2223/07,SME,N,
363337,LOFTY HEIGHTS LTD,"9,986.00",Community Wellbeing,Contributions & Donations,19-Oct-22,2223/07,SME,N,
362955,GRANGEWOOD PLASTIC PACKAGING LTD,"2,175.00",Domestic Waste,Refuse Sacks,29-Sep-22,2223/07,SME,Y,50%
363060,ADVANCE SUPPLIES,352.17,Sheltered Accommodation,Cleaning Materials,07-Oct-22,2223/07,SME,N,
362609,RICHARD UTTING ASSOCIATES LLP,"1,280.00",Paddock House Eye,Prof & Consultancy Fees,30-Nov-21,2223/07,SME,N,
362610,RICHARD UTTING ASSOCIATES LLP,"1,280.00",Paddock House Eye,Prof & Consultancy Fees,31-Dec-21,2223/07,SME,N,
362645,RICHARD UTTING ASSOCIATES LLP,"1,280.00",Paddock House Eye,Prof & Consultancy Fees,31-Oct-21,2223/07,SME,N,
362897,RICHARD UTTING ASSOCIATES LLP,"1,293.23","Green Road, Woolpit",Prof & Consultancy Fees,31-Oct-21,2223/07,SME,N,
362952,RICHARD UTTING ASSOCIATES LLP,"1,787.20",Needham Market Middle School,Prof & Consultancy Fees,30-Nov-21,2223/07,SME,N,
362953,RICHARD UTTING ASSOCIATES LLP,350,Mendlesham - New Build,Prof & Consultancy Fees,31-Jan-22,2223/07,SME,N,
363029,RICHARD UTTING ASSOCIATES LLP,"4,110.00",Eves Meadow Haughley S106,Prof & Consultancy Fees,30-Sep-22,2223/07,SME,N,
363032,RICHARD UTTING ASSOCIATES LLP,"1,787.19",Needham Market Middle School,Prof & Consultancy Fees,30-Sep-22,2223/07,SME,N,
363033,RICHARD UTTING ASSOCIATES LLP,"2,124.74",Stowmarket Middle School,Prof & Consultancy Fees,30-Sep-22,2223/07,SME,N,
363123,OXFORD BROOKES ENTERPRISES LTD,"6,975.02",Devt Management - Apps,Environmental  Consultancy,21-Jul-22,2223/07,SME,N,
363247,MANSION HOUSE PUBLISHING LTD,633,Independent Living Service,Prof & Consultancy Fees,20-Sep-22,2223/07,SME,Y,50%
363248,MANSION HOUSE PUBLISHING LTD,633,Independent Living Service,Prof & Consultancy Fees,12-Oct-22,2223/07,SME,Y,50%
362696,PUBLIC SEWER SERVICES,463.8,Building Services,Repairs,26-Sep-22,2223/07,SME,N,
362893,PUBLIC SEWER SERVICES,"1,606.05",Roads and Paths,Repairs,20-Sep-22,2223/07,SME,N,
362924,THE STOWMARKET GLASS COMPANY LTD,739.5,Building Services,Repairs,14-Sep-22,2223/07,SME,N,
362926,THE STOWMARKET GLASS COMPANY LTD,401.19,Building Services,Repairs,21-Sep-22,2223/07,SME,N,
363244,ASPECT CONTRACTS LTD,"3,986.00",Asbestos,Improvements,12-Oct-22,2223/07,LGE,N,
362975,THE OYSTER PARTNERSHIP LTD,"1,770.00",General/Supervision & Mgmt,Agency Staff,28-Sep-22,2223/07,SME,Y,50%
362976,THE OYSTER PARTNERSHIP LTD,"2,656.25",Building Servs Tech Staff,Agency Staff,28-Sep-22,2223/07,SME,Y,50%
362977,THE OYSTER PARTNERSHIP LTD,"3,150.00",General/Supervision & Mgmt,Agency Staff,28-Sep-22,2223/07,SME,Y,50%
362978,THE OYSTER PARTNERSHIP LTD,"2,450.00",General/Supervision & Mgmt,Agency Staff,28-Sep-22,2223/07,SME,Y,50%
362989,THE OYSTER PARTNERSHIP LTD,"1,960.00",General/Supervision & Mgmt,Agency Staff,05-Oct-22,2223/07,SME,Y,50%
362990,THE OYSTER PARTNERSHIP LTD,"3,150.00",General/Supervision & Mgmt,Agency Staff,05-Oct-22,2223/07,SME,Y,50%
362991,THE OYSTER PARTNERSHIP LTD,"2,656.25",Building Servs Tech Staff,Agency Staff,05-Oct-22,2223/07,SME,Y,50%
363003,THE OYSTER PARTNERSHIP LTD,"2,825.00",General/Supervision & Mgmt,Agency Staff,05-Oct-22,2223/07,SME,Y,50%
363005,THE OYSTER PARTNERSHIP LTD,738.6,Building Services,Agency Staff,28-Sep-22,2223/07,SME,Y,50%
363154,THE OYSTER PARTNERSHIP LTD,"2,825.00",General/Supervision & Mgmt,Agency Staff,12-Oct-22,2223/07,SME,Y,50%
363155,THE OYSTER PARTNERSHIP LTD,923.25,Building Services,Agency Staff,12-Oct-22,2223/07,SME,Y,50%
363156,THE OYSTER PARTNERSHIP LTD,"2,656.25",Building Servs Tech Staff,Agency Staff,12-Oct-22,2223/07,SME,Y,50%
363157,THE OYSTER PARTNERSHIP LTD,923.25,Building Services,Agency Staff,12-Oct-22,2223/07,SME,Y,50%
363158,THE OYSTER PARTNERSHIP LTD,"1,850.00",Building Services,Agency Staff,12-Oct-22,2223/07,SME,Y,50%
363159,THE OYSTER PARTNERSHIP LTD,"1,500.00",Building Services,Agency Staff,12-Oct-22,2223/07,SME,Y,50%
363160,THE OYSTER PARTNERSHIP LTD,"3,150.00",General/Supervision & Mgmt,Agency Staff,12-Oct-22,2223/07,SME,Y,50%
363161,THE OYSTER PARTNERSHIP LTD,"1,850.00",Building Services,Agency Staff,12-Oct-22,2223/07,SME,Y,50%
363323,THE OYSTER PARTNERSHIP LTD,"2,656.25",Building Servs Tech Staff,Agency Staff,19-Oct-22,2223/07,SME,Y,50%
363324,THE OYSTER PARTNERSHIP LTD,"2,825.00",General/Supervision & Mgmt,Agency Staff,19-Oct-22,2223/07,SME,Y,50%
363325,THE OYSTER PARTNERSHIP LTD,923.25,Building Services,Agency Staff,19-Oct-22,2223/07,SME,Y,50%
363326,THE OYSTER PARTNERSHIP LTD,"3,150.00",General/Supervision & Mgmt,Agency Staff,19-Oct-22,2223/07,SME,Y,50%
363428,THE OYSTER PARTNERSHIP LTD,"2,900.00",Financial Servs,Agency Staff,12-Oct-22,2223/07,SME,Y,50%
363430,THE OYSTER PARTNERSHIP LTD,"2,900.00",Financial Servs,Agency Staff,19-Oct-22,2223/07,SME,Y,50%
363431,THE OYSTER PARTNERSHIP LTD,"2,900.00",Financial Servs,Agency Staff,21-Sep-22,2223/07,SME,Y,50%
363432,THE OYSTER PARTNERSHIP LTD,"2,900.00",Financial Servs,Agency Staff,28-Sep-22,2223/07,SME,Y,50%
363433,THE OYSTER PARTNERSHIP LTD,"2,610.00",Financial Servs,Agency Staff,05-Oct-22,2223/07,SME,Y,50%
363453,THE OYSTER PARTNERSHIP LTD,"2,825.00",General/Supervision & Mgmt,Agency Staff,26-Oct-22,2223/07,SME,Y,50%
363454,THE OYSTER PARTNERSHIP LTD,"3,150.00",General/Supervision & Mgmt,Agency Staff,26-Oct-22,2223/07,SME,Y,50%
363455,THE OYSTER PARTNERSHIP LTD,923.25,Building Services,Agency Staff,26-Oct-22,2223/07,SME,Y,50%
363456,THE OYSTER PARTNERSHIP LTD,"2,900.00",Financial Servs,Agency Staff,26-Oct-22,2223/07,SME,Y,50%
363457,THE OYSTER PARTNERSHIP LTD,"2,656.25",Building Servs Tech Staff,Agency Staff,26-Oct-22,2223/07,SME,Y,50%
422816,RIX PETROLEUM (EAST ANGLIA) LTD,"10,040.80",Open Spaces,Plant & Vehicle Fuel,02-Oct-22,2223/07,SME,N,
362988,VIVID RESOURCING,"1,710.00",Business Cont/Emergency Plan,Contracted Services,05-Oct-22,2223/07,SME,Y,50%
363163,VIVID RESOURCING,"1,710.00",Business Cont/Emergency Plan,Contracted Services,12-Oct-22,2223/07,SME,Y,50%
363311,VIVID RESOURCING,"1,710.00",Business Cont/Emergency Plan,Contracted Services,19-Oct-22,2223/07,SME,Y,50%
362765,NORTHUMBRIAN WATER LTD,33.46,Cedars Park,Legionella Testing,23-Sep-22,2223/07,LGE,N,
362765,NORTHUMBRIAN WATER LTD,33.46,Creeting Rd Depot,Legionella Testing,23-Sep-22,2223/07,LGE,Y,50%
362765,NORTHUMBRIAN WATER LTD,33.48,Open Spaces,Legionella Testing,23-Sep-22,2223/07,LGE,N,
362765,NORTHUMBRIAN WATER LTD,507.82,Sheltered Accommodation,Legionella Testing,23-Sep-22,2223/07,LGE,N,
362765,NORTHUMBRIAN WATER LTD,39.53,Tacon Close Eye TDP,Legionella Testing,23-Sep-22,2223/07,LGE,N,
362765,NORTHUMBRIAN WATER LTD,39.53,Temporary Accommodation,Legionella Testing,23-Sep-22,2223/07,LGE,N,
362765,NORTHUMBRIAN WATER LTD,629.52,Tenancy Services,Legionella Testing,23-Sep-22,2223/07,LGE,N,
362765,NORTHUMBRIAN WATER LTD,72.99,Wingfield Barns,Legionella Testing,23-Sep-22,2223/07,LGE,N,
363364,UNIVERSITY OF CAMBRIDGE FACULTY OF,"16,230.00",Devt Management - Apps,Training,20-Oct-22,2223/07,SME,Y,45%
362591,PARK AVENUE RECRUITMENT LTD,"1,209.50",Devt Management - Apps,Prof & Consultancy Fees,06-Sep-22,2223/07,SME,Y,45%
362867,JOHN FORD GROUP LTD,"5,285.00",Mand Disabled Facilities Grant,Grants,03-Oct-22,2223/07,SME,N,
362873,JOHN FORD GROUP LTD,"4,359.22",Mand Disabled Facilities Grant,Grants,03-Oct-22,2223/07,SME,N,
362872,RESIDENTIALLY CHARTERED SURVEYORS,500,"Green Road, Woolpit",Prof & Consultancy Fees,30-Sep-22,2223/07,SME,N,
363063,RESIDENTIALLY CHARTERED SURVEYORS,"1,200.00","The Broadway, Badwell Ash",Prof & Consultancy Fees,28-Sep-22,2223/07,SME,N,
363064,RESIDENTIALLY CHARTERED SURVEYORS,"1,050.00","Cedars Park C & D, Stowmarket",Prof & Consultancy Fees,30-Sep-22,2223/07,SME,N,
363331,IPSWICH TOWN FOOTBALL CLUB CO. LTD,555.55,Independent Living Service,Room Hire,13-Oct-22,2223/07,LGE,Y,50%
363315,HOME-START IN SUFFOLK,"2,177.43",Communities,Grants,19-Oct-22,2223/07,SME,N,
363381,GREENFUTURE SOLUTIONS LTD,"9,645.70",Mand Disabled Facilities Grant,Grants,21-Oct-22,2223/07,SME,N,
363503,PORTAL PLAN QUEST LTD,"1,386.00",Devt Management - Apps,Planning Fees,31-Oct-22,2223/07,SME,N,
363459,MICHELLE BOLGER EXPERT LANDSCAPE CONSULT,650,Devt Management - Apps,Landscape Consultancy,26-Oct-22,2223/07,SME,N,
363051,ABBEYCROFT LEISURE,"2,960.19",Holiday Activity Fund,"Equipment, Tools & Materials",07-Oct-22,2223/07,LGE,N,
362707,A C LEIGH (NORWICH) LTD,284.62,Building Services,"Equipment, Tools & Materials",20-Sep-22,2223/07,SME,N,
362712,A C LEIGH (NORWICH) LTD,463.95,Building Services,"Equipment, Tools & Materials",23-Sep-22,2223/07,SME,N,
363230,SUFFOLK POWER EQUIPMENT,450,Open Spaces,Plant & Vehicle - Other costs,14-Oct-22,2223/07,ST,N,
363232,SUFFOLK POWER EQUIPMENT,340,Open Spaces,Plant & Vehicle - Other costs,14-Oct-22,2223/07,ST,N,
362863,3 POINT PROPERTY MANAGEMENT LTD,895,Guaranteed Rent Scheme,Rent Payable,03-Oct-22,2223/07,SME,N,
362882,3 POINT PROPERTY MANAGEMENT LTD,825,Guaranteed Rent Scheme,Rent Payable,04-Oct-22,2223/07,SME,N,
363104,3 POINT PROPERTY MANAGEMENT LTD,675,Guaranteed Rent Scheme,Rent Payable,11-Oct-22,2223/07,SME,N,
422883,3 POINT PROPERTY MANAGEMENT LTD,595,Guaranteed Rent Scheme,Rent Payable,12-Oct-22,2223/07,SME,N,
422883,3 POINT PROPERTY MANAGEMENT LTD,"1,500.00",Guaranteed Rent Scheme,Misc Supplies & Services Costs,12-Oct-22,2223/07,SME,N,
363246,SUFFOLK ENTERTAINMENTS AT TANGENT,"1,100.00",Devt Management - Apps,Prof & Consultancy Fees,13-Sep-22,2223/07,SME,N,
362820,ENSORS,"3,025.00",BMS Invest,Audit Fees,29-Sep-22,2223/07,SME,N,
363379,DG ACCESSIBLE DESIGNS,"4,945.12",Mand Disabled Facilities Grant,Grants,21-Oct-22,2223/07,SME,N,
361463,HUGHES TRADE,587.44,Other Temp Accommodation,Furniture,29-Jul-22,2223/07,LGE,N,
362855,APTL ENTERPRISES LTD,"3,652.00",PV Panels,Repairs,30-Sep-22,2223/07,SME,N,
363023,APTL ENTERPRISES LTD,"10,660.00",PV Panels,Repairs,30-Sep-22,2223/07,SME,N,
362903,WASHCO LTD,467,Sheltered Accommodation,"Equipment, Tools & Materials",03-Oct-22,2223/07,SME,N,
362685,ANGLIA COMMERCIAL FLOORING LTD,327.96,Building Services,Repairs,22-Sep-22,2223/07,SME,N,
362686,ANGLIA COMMERCIAL FLOORING LTD,480.9,Sheltered Accommodation,Repairs,23-Sep-22,2223/07,SME,N,
362750,ANGLIA COMMERCIAL FLOORING LTD,570.72,Building Services,Repairs,26-Sep-22,2223/07,SME,N,
362751,ANGLIA COMMERCIAL FLOORING LTD,919.07,Building Services,Repairs,26-Sep-22,2223/07,SME,N,
362752,ANGLIA COMMERCIAL FLOORING LTD,594.79,Building Services,Repairs,26-Sep-22,2223/07,SME,N,
362753,ANGLIA COMMERCIAL FLOORING LTD,349.82,Building Services,Repairs,26-Sep-22,2223/07,SME,N,
362754,ANGLIA COMMERCIAL FLOORING LTD,512.23,Building Services,Repairs,26-Sep-22,2223/07,SME,N,
362755,ANGLIA COMMERCIAL FLOORING LTD,409.95,Building Services,Repairs,26-Sep-22,2223/07,SME,N,
362756,ANGLIA COMMERCIAL FLOORING LTD,480.9,Building Services,Repairs,26-Sep-22,2223/07,SME,N,
363355,BEAUMONT GUEST HOUSE,640,Homelessness Private Sector,B&B Costs,12-Oct-22,2223/07,SME,N,
363162,GREENACRE RECRUITMENT LTD,"1,193.99",Housing Standards,Agency Staff,12-Oct-22,2223/07,SME,Y,50%
362920,MID SUFFOLK GROWTH LTD,"13,419.80","Cedars Park C & D, Stowmarket",Prof & Consultancy Fees,30-Sep-22,2223/07,SME,N,
363081,DEMOCRACY COUNTS LTD,"5,264.48",Electoral Registration,Returning Officer Fees,30-Sep-22,2223/07,SME,Y,50%
363418,METFIELD ESTATES LTD,670,Guaranteed Rent Scheme,Rent Payable,25-Oct-22,2223/07,SME,N,
362915,PENTACO CONSTRUCTION LTD,"588,208.00",Stowmarket Middle School,Major Contracts,03-Oct-22,2223/07,SME,N,
363445,ELLISONS SOLICITORS,"1,223.00",New Bld/acquisition,Purchase of Land & Buildings,27-Apr-22,2223/07,SME,N,
362943,STOWUPLAND FALCONS FC,"1,058.00",Grants & Contrbns,Contributions & Donations,04-Oct-22,2223/07,SME,N,
363086,STOWMARKET STROKE SUPPORT GROUP,600,Grants & Contrbns,Contributions & Donations,10-Oct-22,2223/07,SME,N,
363416,LIMELEASE LTD,395,Guaranteed Rent Scheme,Rent Payable,25-Oct-22,2223/07,SME,N,
363040,BUCHER MUNICIPAL LTD,509.71,Street & Major Road Cleansing,"Equipment, Tools & Materials",06-Oct-22,2223/07,LGE,N,
363011,GIPPING CONSTRUCTION LTD,"16,265.57",Regen Fund - HQ Sites,Prof & Consultancy Fees,27-Sep-22,2223/07,SME,N,
363011,GIPPING CONSTRUCTION LTD,"212,945.43",Needham Market Middle School,Prof & Consultancy Fees,27-Sep-22,2223/07,SME,N,
362941,GRANTCHESTER CONSTRUCTION (EASTERN) LTD,"2,120.42",Mand Disabled Facilities Grant,Grants,04-Oct-22,2223/07,SME,N,
363419,PRIVATE LANDLORD,786.5,Guaranteed Rent Scheme,Rent Payable,25-Oct-22,2223/07,ST,N,
363046,PAUL WRIGHT & CO,775,Guaranteed Rent Scheme,Rent Payable,10-Oct-22,2223/07,SME,N,
363264,AFFINITY HEALTH AT WORK LTD,"5,805.00",Organisational Devt,Training,17-Oct-22,2223/07,SME,Y,50%
362626,SUFFOLK DOORS & WINDOWS LTD,"2,850.00",Roofing,Improvements,21-Sep-22,2223/07,SME,N,
363039,SUFFOLK DOORS & WINDOWS LTD,"24,350.00",Roofing,Improvements,07-Oct-22,2223/07,SME,N,
363181,SUFFOLK DOORS & WINDOWS LTD,"2,200.00",Roofing,Repairs,12-Oct-22,2223/07,SME,N,
363266,SUFFOLK DOORS & WINDOWS LTD,650,Window & Door Rplcmts,Repairs,11-Oct-22,2223/07,SME,N,
363312,OBEE CIC,"19,707.00",Communities,Grants,19-Oct-22,2223/07,SME,N,
363044,PRIVATE LANDLORD,786.5,Guaranteed Rent Scheme,Rent Payable,10-Oct-22,2223/07,ST,N,
362998,COUNTRYSTYLE RECYCLING LTD,422,Trade Waste,Trade Waste Disposal,30-Sep-22,2223/07,SME,Y,50%
362999,COUNTRYSTYLE RECYCLING LTD,"4,864.55",Bring Sites,Contracted Services,30-Sep-22,2223/07,SME,N,
362838,DGL QUALITY MANAGEMENT LTD,"1,092.00",Stowmarket Middle School,Prof & Consultancy Fees,30-Sep-22,2223/07,SME,N,
362839,DGL QUALITY MANAGEMENT LTD,870.76,Needham Market Middle School,Prof & Consultancy Fees,30-Sep-22,2223/07,SME,N,
362518,ARAN INSULATION LTD,"2,646.33",Insulation Imps,BMBS Repairs Work,13-Sep-22,2223/07,SME,N,
362614,ARAN INSULATION LTD,"3,468.19",Insulation Imps,Improvements,21-Sep-22,2223/07,SME,N,
362615,ARAN INSULATION LTD,"3,894.15",Insulation Imps,Improvements,21-Sep-22,2223/07,SME,N,
362616,ARAN INSULATION LTD,"3,911.89",Insulation Imps,Improvements,21-Sep-22,2223/07,SME,N,
362617,ARAN INSULATION LTD,"2,674.45",Insulation Imps,Improvements,21-Sep-22,2223/07,SME,N,
362618,ARAN INSULATION LTD,"2,643.19",Insulation Imps,Improvements,21-Sep-22,2223/07,SME,N,
362619,ARAN INSULATION LTD,"4,082.89",Insulation Imps,Improvements,21-Sep-22,2223/07,SME,N,
362627,ARAN INSULATION LTD,"3,610.94",Insulation Imps,Improvements,20-Sep-22,2223/07,SME,N,
362718,ARAN INSULATION LTD,"12,199.04",Insulation Imps,Improvements,22-Sep-22,2223/07,SME,N,
362759,ARAN INSULATION LTD,"1,396.80",Insulation Imps,Improvements,27-Sep-22,2223/07,SME,N,
362760,ARAN INSULATION LTD,618.37,Insulation Imps,Improvements,27-Sep-22,2223/07,SME,N,
362974,ARAN INSULATION LTD,717.38,Insulation Imps,Improvements,30-Sep-22,2223/07,SME,N,
362997,ARAN INSULATION LTD,"5,458.89",Insulation Imps,Improvements,30-Sep-22,2223/07,SME,N,
363263,ARAN INSULATION LTD,"1,067.67",Insulation Imps,Improvements,17-Oct-22,2223/07,SME,N,
362749,ORWELL REMOVALS & STORAGE LTD,320,Homeless Prevention Fund,Removal Expenses,20-Jun-22,2223/07,SME,N,
363092,CATCH22,"4,147.66",Community Safety-General,Contributions & Donations,10-Oct-22,2223/07,LGE,Y,50%
422872,TOMMYS,344.98,Bring Sites,Contributions & Donations,13-Oct-22,2223/07,SME,N,
362856,MARCHDELL LTD,715,Guaranteed Rent Scheme,Rent Payable,03-Oct-22,2223/07,SME,N,
362858,PRIVATE LANDLORD,"1,300.00",Guaranteed Rent Scheme,Rent Payable,03-Oct-22,2223/07,SME,N,
363272,POLYSOLAR LTD,"105,205.03",Public Sector Decarbonisation,Contracted Services,07-Oct-22,2223/07,SME,N,
363018,IPSERV LTD,"1,609.77",Communications,Commercial Printing,06-Oct-22,2223/07,SME,N,
363018,IPSERV LTD,74.22,Central Printing,Commercial Printing,06-Oct-22,2223/07,SME,N,
362940,SSE,291.94,Voids Maintenance,Electricity,29-Sep-22,2223/07,LGE,N,
363332,SEH FRENCH LTD,"23,401.22",Needham Lake Vis Centre (CAP),Major Contracts,26-Aug-22,2223/07,SME,N,
363045,PRIVATE LANDLORD,650,Guaranteed Rent Scheme,Rent Payable,10-Oct-22,2223/07,ST,N,
362876,BUCKINGHAM FUTURES,"1,552.50",Covid-19 Test and Trace,Agency Staff,28-Sep-22,2223/07,SME,Y,50%
362877,BUCKINGHAM FUTURES,"1,665.00",Covid-19 Test and Trace,Agency Staff,21-Sep-22,2223/07,SME,Y,50%
362878,BUCKINGHAM FUTURES,"1,485.00",Covid-19 Test and Trace,Agency Staff,14-Sep-22,2223/07,SME,Y,50%
363100,BUCKINGHAM FUTURES,"1,665.00",Covid-19 Test and Trace,Agency Staff,05-Oct-22,2223/07,SME,Y,50%
363195,BUCKINGHAM FUTURES,"1,665.00",Covid-19 Test and Trace,Agency Staff,12-Oct-22,2223/07,SME,Y,50%
363479,BUCKINGHAM FUTURES,"1,125.00",Covid-19 Test and Trace,Agency Staff,26-Oct-22,2223/07,SME,Y,50%
363268,MK AUTOS MOT CENTRE LIMITED,350,Taxi & Private Hire Licensing,Contracted Services,30-Sep-22,2223/07,SME,N,
362896,PRIVATE LANDLORD,555,Guaranteed Rent Scheme,Rent Payable,04-Oct-22,2223/07,SME,N,
362849,SHJ HOMES LTD,500,Guaranteed Rent Scheme,Rent Payable,03-Oct-22,2223/07,SME,N,
363409,SHJ HOMES LTD,550,Guaranteed Rent Scheme,Rent Payable,24-Oct-22,2223/07,SME,N,
363034,CEDARS PARK ART CIC,722.26,Transformation Fund,Contributions & Donations,07-Oct-22,2223/07,SME,N,
362911,GIPPING ANGLING PRESERVATION SOCIETY,"2,000.00",Grants & Contrbns,Contributions & Donations,04-Oct-22,2223/07,SME,N,
363286,JOHNS SLATER AND HAWARD,"1,200.00",Cross Street Tech Hub,Prof & Consultancy Fees,13-Oct-22,2223/07,SME,N,
363031,ABLEY LETCHFORD PARTNERSHIP LTD,"1,305.00",Devt Management - Apps,Environmental  Consultancy,30-Sep-22,2223/07,SME,N,
363239,ABLEY LETCHFORD PARTNERSHIP LTD,"1,687.50",Devt Management - Apps,Environmental  Consultancy,28-Aug-22,2223/07,SME,N,
362883,HAMILTON SMITH LETTINGS,550,Guaranteed Rent Scheme,Rent Payable,04-Oct-22,2223/07,SME,N,
363102,HAMILTON SMITH LETTINGS,590,Guaranteed Rent Scheme,Rent Payable,10-Oct-22,2223/07,SME,N,
363242,HAMILTON SMITH LETTINGS,775,Guaranteed Rent Scheme,Rent Payable,17-Oct-22,2223/07,SME,N,
363412,HAMILTON SMITH LETTINGS,500,Guaranteed Rent Scheme,Rent Payable,24-Oct-22,2223/07,SME,N,
363177,PAY 360 LIMITED,"5,247.02",Bank Chgs,Bank Charges,12-Oct-22,2223/07,LGE,N,
363022,TILE HILL INTERIM & EXECUTIVE LTD,"20,475.35",Management Team,Recruitment,07-Sep-22,2223/07,SME,Y,50%
363346,A W & D HAMMOND LTD,"34,285.00",Vehicle and Plant Renewals,Plant & Vehicle - Purchase,30-Sep-22,2223/07,LGE,N,
362857,PRIVATE LANDLORD,900,Guaranteed Rent Scheme,Rent Payable,03-Oct-22,2223/07,SME,N,
363101,PRIVATE LANDLORD,875,Guaranteed Rent Scheme,Rent Payable,10-Oct-22,2223/07,ST,N,
363042,WIZ TRAINING & DEVELOPMENT LTD,775,Organisational Devt,Corporate Training,07-Oct-22,2223/07,SME,Y,50%
363407,PRIVATE LANDLORD,800,Guaranteed Rent Scheme,Rent Payable,24-Oct-22,2223/07,ST,N,
362947,WILD HERITAGE SUFFOLK,500,Grants & Contrbns,Contributions & Donations,04-Oct-22,2223/07,SME,N,
363036,FUSE PAT TESTING,322,Creeting Rd Depot,Grounds & Site Maintenance,03-Oct-22,2223/07,ST,Y,50%
362687,NEWSQUEST MEDIA GROUP,452.7,Devt Management - Apps,Advertising&mkting (non-staff),22-Sep-22,2223/07,LGE,N,
362806,NEWSQUEST MEDIA GROUP,610.29,Devt Management - Apps,Advertising&mkting (non-staff),29-Sep-22,2223/07,LGE,N,
363054,NEWSQUEST MEDIA GROUP,584.03,Devt Management - Apps,Advertising&mkting (non-staff),06-Oct-22,2223/07,LGE,N,
363240,NEWSQUEST MEDIA GROUP,563.03,Devt Management - Apps,Advertising&mkting (non-staff),13-Oct-22,2223/07,LGE,N,
363345,NEWSQUEST MEDIA GROUP,715.35,Devt Management - Apps,Advertising&mkting (non-staff),20-Oct-22,2223/07,LGE,N,
363473,NEWSQUEST MEDIA GROUP,636.56,Devt Management - Apps,Advertising&mkting (non-staff),27-Oct-22,2223/07,LGE,N,
363353,SCENE CONNECT LTD,"6,000.00",SHELF Project,Prof & Consultancy Fees,13-Oct-22,2223/07,SME,N,
362642,PALGRAVE PLAYERS,"1,750.00",Grants & Contrbns,Contributions & Donations,21-Sep-22,2223/07,SME,N,
363026,CREATIVE TOURIST LTD,"15,136.00",Tourism General,Prof & Consultancy Fees,06-Oct-22,2223/07,SME,Y,50%
362862,PINK TEE PROPERTIES LTD,"2,613.45",Renovation/Home Repair Grants,Grants,03-Oct-22,2223/07,SME,N,
422819,HARLESTON MAGPIES HOCKEY CLUB LTD,"25,000.00",Communities,Grants,05-Oct-22,2223/07,SME,N,
363037,JP WYATT & SONS,"3,000.00",Assets & Development,Contracted Services,30-Sep-22,2223/07,SME,N,
363182,BELL DECORATING GROUP LTD,"2,149.82",Planned Maint - Ext Painting,Major Contracts,12-Oct-22,2223/07,LGE,N,
363303,BELL DECORATING GROUP LTD,"1,691.17",Planned Maint - Ext Painting,Major Contracts,18-Oct-22,2223/07,LGE,N,
422891,PRIVATE LANDLORD,800,Guaranteed Rent Scheme,Rent Payable,24-Oct-22,2223/07,ST,N,
422891,PRIVATE LANDLORD,"1,500.00",Guaranteed Rent Scheme,Misc Supplies & Services Costs,24-Oct-22,2223/07,ST,N,
363322,RESTITUTE CIC,"9,781.40",Communities,Grants,19-Oct-22,2223/07,SME,N,
363343,THE SPORTING MEMORIES FOUNDATION,"9,942.00",Communities,Grants,20-Oct-22,2223/07,SME,N,
422895,AUSTWICK BERRY PROPERTY & ESTATE MAN LTD,"1,615.38",Rent Deposit Scheme,Misc Premises Costs,27-Oct-22,2223/07,SME,N,
363499,VALENCIA COMMUNITIES FUND,"4,179.40",Communities,Grants,28-Oct-22,2223/07,SME,N,
363485,CIVICA UK LIMITED,-813.39,ICT,Software Licnse (Line of Bus) ,26-Oct-22,2223/07,LGE,N,
362918,ERNEST DOE & SONS LTD,-54.2,Open Spaces,"Equipment, Tools & Materials",05-Sep-22,2223/07,LGE,N,
363021,TUDOR ENVIRONMENTAL,-122.62,Open Spaces,Horticultural Purchases,05-Oct-22,2223/07,SME,N,
422887,ANGLIAN WATER BUS (NAT) LTD T/A WAVE,49.8,"11 Market Place, Stowmarket",Water Rates - Metered,12-Oct-22,2223/07,LGE,N,
422887,ANGLIAN WATER BUS (NAT) LTD T/A WAVE,31.22,General/Supervision & Mgmt,Water Rates - Metered,12-Oct-22,2223/07,LGE,N,
422887,ANGLIAN WATER BUS (NAT) LTD T/A WAVE,114.26,Headquarters General,Water Rates - Metered,12-Oct-22,2223/07,LGE,N,
422887,ANGLIAN WATER BUS (NAT) LTD T/A WAVE,129.32,Open Spaces,Water Rates - Metered,12-Oct-22,2223/07,LGE,N,
422887,ANGLIAN WATER BUS (NAT) LTD T/A WAVE,284.86,Public Conveniences,Water Rates - Metered,12-Oct-22,2223/07,LGE,N,
422887,ANGLIAN WATER BUS (NAT) LTD T/A WAVE,4.07,Recycling Centre,Water Rates - Metered,12-Oct-22,2223/07,LGE,N,
422887,ANGLIAN WATER BUS (NAT) LTD T/A WAVE,4.07,Sewage Treatment Works,Water Rates - Metered,12-Oct-22,2223/07,LGE,N,
422887,ANGLIAN WATER BUS (NAT) LTD T/A WAVE,-839.64,Sheltered Accommodation,Water Rates - Metered,12-Oct-22,2223/07,LGE,N,
422887,ANGLIAN WATER BUS (NAT) LTD T/A WAVE,16.84,Tacon Close Eye TDP,Water Rates - Metered,12-Oct-22,2223/07,LGE,N,
422887,ANGLIAN WATER BUS (NAT) LTD T/A WAVE,16.78,Temporary Accommodation,Water Rates - Metered,12-Oct-22,2223/07,LGE,N,
422887,ANGLIAN WATER BUS (NAT) LTD T/A WAVE,13.48,Tenancy Services,Water Rates - Metered,12-Oct-22,2223/07,LGE,N,
422887,ANGLIAN WATER BUS (NAT) LTD T/A WAVE,19.51,Wingfield Barns,Water Rates - Metered,12-Oct-22,2223/07,LGE,N,
422818,ARAN INSULATION LTD,-96,Building Services,Repairs,15-Sep-22,2223/07,SME,N,
271,DRISCOLL KINGSTON SOLICITORS,-202.1,Building Services,BMBS Repairs Work,27-Oct-22,2223/07,SME,N,
422898,AARON SERVICES LTD,"7,948.10",Planned Maint - Heating,Property Servicing,31-Oct-22,2223/08,SME,N,
422945,AARON SERVICES LTD,"5,601.42",Planned Maint - Heating,Property Servicing,22-Nov-22,2223/08,SME,N,
422946,AARON SERVICES LTD,375.1,Voids Maintenance,Repairs,22-Nov-22,2223/08,SME,N,
422946,AARON SERVICES LTD,"3,869.63",Planned Maint - Heating,Property Servicing,22-Nov-22,2223/08,SME,N,
422946,AARON SERVICES LTD,115.54,Housing Rechargeable Works,Repairs,22-Nov-22,2223/08,SME,N,
422950,AARON SERVICES LTD,"6,661.36",Planned Maint - Heating,Property Servicing,22-Nov-22,2223/08,SME,N,
422950,AARON SERVICES LTD,112.68,Planned Maint - Heating,Property Servicing,22-Nov-22,2223/08,SME,N,
422950,AARON SERVICES LTD,77.14,Housing Rechargeable Works,Repairs,22-Nov-22,2223/08,SME,N,
363920,ACADEMY BUILDING CONTRACTS LTD,"2,086.90","Fences, Gates and Walls",Repairs,11-Nov-22,2223/08,SME,N,
364067,ACADEMY BUILDING CONTRACTS LTD,"1,263.90","Fences, Gates and Walls",Repairs,18-Nov-22,2223/08,SME,N,
364068,ACADEMY BUILDING CONTRACTS LTD,"1,235.93","Fences, Gates and Walls",Repairs,18-Nov-22,2223/08,SME,N,
363612,AE WHITE SURFACING,660,Building Services,Repairs,31-Oct-22,2223/08,SME,N,
363765,AE WHITE SURFACING,"8,925.00",Council House Adaptions,Improvements,07-Nov-22,2223/08,SME,N,
363815,AE WHITE SURFACING,"5,125.00",Pld Maint/ Enhncmts-C Parks,Annual Bldg Maint Contracts,08-Nov-22,2223/08,SME,N,
363492,ANGLIAN WATER,414.1,Tenancy Services,Water Rates - Metered,24-Oct-22,2223/08,LGE,N,
364123,ANGLIAN WATER,"1,544.46",Water Sampling,Sampling & Analysis,21-Nov-22,2223/08,LGE,N,
363417,ANTALIS LTD,297.5,Devt Management - Apps,Stationery,26-Oct-22,2223/08,SME,N,
364121,AQUAJET CLEANING EQUIPMENT LTD,280.17,Creeting Rd Depot,"Equipment, Tools & Materials",31-Oct-22,2223/08,SME,Y,50%
364109,ASSOCIATION OF ELECTORAL ADMINISTRATORS,"1,704.30",Electoral Registration,Returning Officer Fees,17-Nov-22,2223/08,SME,N,
364131,ASSOCIATION OF ELECTORAL ADMINISTRATORS,"1,704.30",Electoral Registration,Returning Officer Fees,17-Nov-22,2223/08,SME,N,
363749,BOWER FULLER,264.99,Tenancy Services,Repairs,31-Oct-22,2223/08,SME,N,
363751,BOWER FULLER,388.8,Sheltered Accommodation,Fire Prevention,31-Oct-22,2223/08,SME,N,
363752,BOWER FULLER,924.66,Sheltered Accommodation,Electricity,31-Oct-22,2223/08,SME,N,
363753,BOWER FULLER,733.37,Tenancy Services,Electricity,31-Oct-22,2223/08,SME,N,
363754,BOWER FULLER,768.68,Sheltered Accommodation,Electricity,31-Oct-22,2223/08,SME,N,
363755,BOWER FULLER,754.27,Sheltered Accommodation,Electricity,31-Oct-22,2223/08,SME,N,
363811,BUTTON & TURNER LTD,58.6,Open Spaces,Plant & Vehicle - Other costs,24-Oct-22,2223/08,SME,N,
363811,BUTTON & TURNER LTD,245.27,Open Spaces,Plant & Vehicle - Other costs,24-Oct-22,2223/08,SME,N,
364036,AQUASAMPLERS,685,Water Sampling,Sampling & Analysis,30-Sep-22,2223/08,SME,N,
363918,CEDARS HOTEL LTD,"5,740.00",Homelessness Private Sector,B&B Costs,10-Nov-22,2223/08,SME,Y,50%
363957,CENTRAL TYRE LTD,286.67,Open Spaces,Plant & Vehicle - Other costs,15-Nov-22,2223/08,SME,N,
363873,CHEQUERS HOTEL LTD,420,Homelessness Private Sector,B&B Costs,31-Oct-22,2223/08,SME,N,
363874,CHEQUERS HOTEL LTD,"1,890.00",Homelessness Private Sector,B&B Costs,31-Oct-22,2223/08,SME,N,
363875,CHEQUERS HOTEL LTD,"1,120.00",Homelessness Private Sector,B&B Costs,31-Oct-22,2223/08,SME,N,
363876,CHEQUERS HOTEL LTD,760,Homelessness Private Sector,B&B Costs,31-Oct-22,2223/08,SME,N,
363877,CHEQUERS HOTEL LTD,"1,120.00",Homelessness Private Sector,B&B Costs,31-Oct-22,2223/08,SME,N,
363620,CHIPSIDE LTD,"1,018.42",C Parks General,Contracted Services,30-Sep-22,2223/08,SME,N,
363505,CLARKE FENCING LTD,610,Open Spaces,"Equipment, Tools & Materials",27-Oct-22,2223/08,SME,N,
363683,CLARKE FENCING LTD,288.75,Open Spaces,"Equipment, Tools & Materials",04-Nov-22,2223/08,SME,N,
364070,CLARKE FENCING LTD,"2,318.76",Building Services,Repairs,16-Nov-22,2223/08,SME,N,
364070,CLARKE FENCING LTD,"4,819.32","Fences, Gates and Walls",Repairs,16-Nov-22,2223/08,SME,N,
363389,D W ADAMS LTD,"4,742.00",Council House Adaptions,Improvements,21-Oct-22,2223/08,SME,N,
363394,D W ADAMS LTD,"3,098.00",Building Services,Repairs,24-Oct-22,2223/08,SME,N,
363477,D W ADAMS LTD,671,Disabled Facilities (Revenue),Repairs,28-Oct-22,2223/08,SME,N,
363493,D W ADAMS LTD,"4,334.00",Council House Adaptions,Improvements,28-Oct-22,2223/08,SME,N,
363673,D W ADAMS LTD,368,Kitchens/Bathrooms,Repairs,04-Nov-22,2223/08,SME,N,
364108,D W ADAMS LTD,"6,494.00",Council House Adaptions,Improvements,21-Nov-22,2223/08,SME,N,
364206,D W ADAMS LTD,"5,509.00",Council House Adaptions,Improvements,25-Nov-22,2223/08,SME,N,
364205,DMA HEALTH AND SAFETY LTD,735,Roofing,Repairs,24-Nov-22,2223/08,SME,Y,50%
363932,DOLPHIN STAIRLIFTS (EAST ANGLIA) LTD,"5,643.00",Mand Disabled Facilities Grant,Grants,15-Nov-22,2223/08,SME,N,
364140,DOLPHIN STAIRLIFTS (EAST ANGLIA) LTD,"5,160.00",Mand Disabled Facilities Grant,Grants,23-Nov-22,2223/08,SME,N,
364271,EAST ANGLIA CLEANING SERVICES LTD,451.47,Open Spaces,General Cleaning,28-Nov-22,2223/08,SME,N,
364272,EAST ANGLIA CLEANING SERVICES LTD,"1,489.71",Jnt Waste Contract,General Cleaning,28-Nov-22,2223/08,SME,Y,50%
363528,EAST OF ENGLAND LGA,"1,200.00",Management Team,Prof & Consultancy Fees,31-Oct-22,2223/08,SME,Y,50%
363554,CIVICA ELECTION SERVICES,"2,990.35",Electoral Registration,Returning Officer Fees,13-Oct-22,2223/08,LGE,Y,50%
364106,CIVICA ELECTION SERVICES,"1,076.73",Electoral Registration,Returning Officer Fees,15-Sep-22,2223/08,LGE,N,
363976,ENGLISH SECURITY,41.2,Building Services,Fire Prevention,09-Nov-22,2223/08,SME,N,
363976,ENGLISH SECURITY,103,Creeting Rd Depot,Fire Prevention,09-Nov-22,2223/08,SME,Y,50%
363976,ENGLISH SECURITY,150.45,Other HRA Temp Accommodation,Fire Prevention,09-Nov-22,2223/08,SME,N,
363976,ENGLISH SECURITY,"1,795.70",Sheltered Accommodation,Fire Prevention,09-Nov-22,2223/08,SME,N,
363976,ENGLISH SECURITY,424.5,Temporary Accommodation,Fire Prevention,09-Nov-22,2223/08,SME,N,
363976,ENGLISH SECURITY,"2,685.35",Tenancy Services,Fire Prevention,09-Nov-22,2223/08,SME,N,
363976,ENGLISH SECURITY,128.75,Wingfield Barns,Fire Prevention,09-Nov-22,2223/08,SME,N,
364176,ENGLISH SECURITY,350.98,Sheltered Accommodation,Fire Prevention,21-Nov-22,2223/08,SME,N,
364178,ENGLISH SECURITY,457.5,Creeting Rd Depot,Fire Prevention,21-Nov-22,2223/08,SME,Y,50%
364190,ENGLISH SECURITY,271.4,Sheltered Accommodation,Fire Prevention,14-Oct-22,2223/08,SME,N,
363786,ENVIROVENT LTD,460,Building Services,Repairs,03-Nov-22,2223/08,SME,N,
364066,ENVIROVENT LTD,460,Building Services,Repairs,18-Nov-22,2223/08,SME,N,
363420,FELLBRIDGE BUILDING SERVICES,"1,959.51",Building Services,Repairs,25-Oct-22,2223/08,SME,N,
363466,FELLBRIDGE BUILDING SERVICES,701.36,Building Services,Repairs,25-Oct-22,2223/08,SME,N,
363467,FELLBRIDGE BUILDING SERVICES,"12,492.36",Building Services,Repairs,27-Oct-22,2223/08,SME,N,
363659,FELLBRIDGE BUILDING SERVICES,"14,584.82",Building Services,Repairs,03-Nov-22,2223/08,SME,N,
363867,FELLBRIDGE BUILDING SERVICES,"12,806.89",Major Imps,Repairs,10-Nov-22,2223/08,SME,N,
363869,FELLBRIDGE BUILDING SERVICES,"1,518.59",Building Services,Repairs,10-Nov-22,2223/08,SME,N,
363950,FELLBRIDGE BUILDING SERVICES,946.02,Insulation Imps,Improvements,14-Nov-22,2223/08,SME,N,
364019,FELLBRIDGE BUILDING SERVICES,"1,932.19",Building Services,Repairs,17-Nov-22,2223/08,SME,N,
364083,FELLBRIDGE BUILDING SERVICES,"2,647.13",Building Services,Repairs,21-Nov-22,2223/08,SME,N,
364084,FELLBRIDGE BUILDING SERVICES,"3,925.75",Building Services,Repairs,21-Nov-22,2223/08,SME,N,
364085,FELLBRIDGE BUILDING SERVICES,"5,272.02",Building Services,Repairs,21-Nov-22,2223/08,SME,N,
363642,FORE-MOST GARAGE DOORS LTD,290,"Garages, Forecourts & Stores",Repairs,31-Oct-22,2223/08,SME,N,
363923,G & G SIGNS,395.5,Street Naming & Numbering,Signs,10-Nov-22,2223/08,SME,N,
363019,G4S CASH SOLUTIONS LTD,"1,743.72",C Parks General,Audit Fees,30-Sep-22,2223/08,LGE,N,
363685,G4S CASH SOLUTIONS LTD,"1,360.63",C Parks General,Audit Fees,31-Oct-22,2223/08,LGE,N,
363384,GHB ROOFING,"2,515.00",Roofing,Repairs,30-Sep-22,2223/08,SME,N,
363387,GHB ROOFING,"2,445.00",Roofing,Repairs,30-Sep-22,2223/08,SME,N,
363308,HAYES DIGGINS BUILDERS,"1,360.00",Building Services,Repairs,22-Aug-22,2223/08,SME,N,
363465,HUDSON MEDIA PARTNERSHIP LTD,395,Events & Awards,Advertising&mkting (non-staff),27-Oct-22,2223/08,SME,Y,50%
363472,HUDSON MEDIA PARTNERSHIP LTD,395,Events & Awards,Advertising&mkting (non-staff),27-Oct-22,2223/08,SME,Y,50%
364050,J HUGGINS & SON LTD,525,Building Services,Vehicle Insurance Excess,14-Nov-22,2223/08,SME,Y,50%
363705,JOHN PEEL CENTRE FOR CREATIVE ARTS,"8,000.00",Grants & Contrbns,Grants,04-Nov-22,2223/08,SME,N,
363784,JOHN PEEL CENTRE FOR CREATIVE ARTS,"2,650.00",Grants & Contrbns,Contributions & Donations,08-Nov-22,2223/08,SME,N,
363824,JOHN PEEL CENTRE FOR CREATIVE ARTS,"1,000.00",Grants & Contrbns,Contributions & Donations,09-Nov-22,2223/08,SME,N,
364032,KEN GRIME & SON LTD,"1,219.21",Building Services,Repairs,18-Nov-22,2223/08,SME,N,
363900,KEYWAYS THE LOCKSMITHS LTD,910,New Bld/acquisition,BMBS Repairs Work,11-Nov-22,2223/08,SME,Y,50%
363987,LJ GAMMER (STOWMARKET) LTD,401.66,Building Services,Plant & Vehicle - Other costs,16-Nov-22,2223/08,SME,Y,50%
363251,M & H CIVIL ENGINEERING LTD,850.7,Building Services,Repairs,14-Oct-22,2223/08,SME,N,
363252,M & H CIVIL ENGINEERING LTD,870.5,Building Services,Repairs,14-Oct-22,2223/08,SME,N,
363253,M & H CIVIL ENGINEERING LTD,"3,817.88",Major Imps,Repairs,14-Oct-22,2223/08,SME,N,
363392,M & H CIVIL ENGINEERING LTD,775.93,Kitchens/Bathrooms,Repairs,21-Oct-22,2223/08,SME,N,
363469,M & H CIVIL ENGINEERING LTD,597.5,Building Services,Repairs,24-Oct-22,2223/08,SME,N,
363470,M & H CIVIL ENGINEERING LTD,599,Water Mains,Repairs,25-Oct-22,2223/08,SME,N,
363793,M & H CIVIL ENGINEERING LTD,"2,750.00",Water Mains,Repairs,07-Nov-22,2223/08,SME,N,
363794,M & H CIVIL ENGINEERING LTD,"1,119.00",Water Mains,Repairs,08-Nov-22,2223/08,SME,N,
363826,M & H CIVIL ENGINEERING LTD,634.6,Water Mains,Repairs,09-Nov-22,2223/08,SME,N,
363550,MATERIAL CHANGE COMPOSTING LTD,599.94,Open Spaces,Waste Disposal,31-Oct-22,2223/08,LGE,N,
363859,MB TREES (EAST ANGLIA) LTD,"1,767.00",Sheltered Accommodation,Grounds & Site Maintenance,03-Nov-22,2223/08,SME,N,
363903,MB TREES (EAST ANGLIA) LTD,980,Amenity Areas,Tree felling/maintenance,11-Nov-22,2223/08,SME,N,
364026,MB TREES (EAST ANGLIA) LTD,"4,280.00",Amenity Areas,Tree felling/maintenance,17-Nov-22,2223/08,SME,N,
364027,MB TREES (EAST ANGLIA) LTD,680,Public Tree Programme,Tree felling/maintenance,17-Nov-22,2223/08,SME,N,
364103,MB TREES (EAST ANGLIA) LTD,"1,600.00",Tenancy Services,Tree felling/maintenance,10-Nov-22,2223/08,SME,N,
364198,MB TREES (EAST ANGLIA) LTD,580,Amenity Areas,Tree felling/maintenance,24-Nov-22,2223/08,SME,N,
363638,MID SUFFOLK FENCING LTD,830,"Fences, Gates and Walls",Repairs,01-Nov-22,2223/08,SME,N,
363639,MID SUFFOLK FENCING LTD,620,Building Services,Repairs,02-Nov-22,2223/08,SME,N,
363954,MID SUFFOLK FENCING LTD,"1,115.00","Fences, Gates and Walls",Repairs,11-Nov-22,2223/08,SME,N,
363955,MID SUFFOLK FENCING LTD,"1,960.00","Fences, Gates and Walls",Repairs,11-Nov-22,2223/08,SME,N,
364102,MIXBROW LTD,"3,642.00",Council House Adaptions,Improvements,10-Nov-22,2223/08,SME,N,
363822,NEEDHAM MARKET TOWN COUNCIL,"35,427.97",S106 Open Spaces Expenditure,Grants,09-Nov-22,2223/08,SME,N,
363886,NEEDHAM MARKET TOWN COUNCIL,"18,661.48",S106 Open Spaces Expenditure,Grants,10-Nov-22,2223/08,SME,N,
422924,NEEDHAM MARKET TOWN COUNCIL,"2,717.00",Street & Major Road Cleansing,Contributions to other Bodies,02-Nov-22,2223/08,SME,N,
363513,PRO-FLAT SPECIALIST SERVICES LTD,590,Building Services,Repairs,28-Oct-22,2223/08,SME,N,
363514,PRO-FLAT SPECIALIST SERVICES LTD,495,Building Services,Repairs,28-Oct-22,2223/08,SME,N,
363645,PRO-FLAT SPECIALIST SERVICES LTD,"4,327.00",Roofing,Improvements,31-Oct-22,2223/08,SME,N,
363413,REID PLUMBING & HEATING CONTRACTORS LTD,"10,350.62",Central Heating,Major Contracts,24-Oct-22,2223/08,SME,N,
363434,REID PLUMBING & HEATING CONTRACTORS LTD,"21,313.97",Central Heating,Major Contracts,26-Oct-22,2223/08,SME,N,
363559,REID PLUMBING & HEATING CONTRACTORS LTD,"36,763.82",Central Heating,Major Contracts,01-Nov-22,2223/08,SME,N,
363856,REID PLUMBING & HEATING CONTRACTORS LTD,"32,771.86",Central Heating,Major Contracts,10-Nov-22,2223/08,SME,N,
363520,SACKERS LTD,"1,832.35",Building Services,Waste Disposal,31-Oct-22,2223/08,SME,Y,50%
363560,SACKERS LTD,393.19,Building Services,Waste Disposal,31-Oct-22,2223/08,SME,Y,50%
363610,SEAGER HOME SOLUTIONS,"52,652.91",Kitchens/Bathrooms,Major Contracts,31-Oct-22,2223/08,SME,N,
363778,SEAGER HOME SOLUTIONS,"6,719.00",Mand Disabled Facilities Grant,Grants,08-Nov-22,2223/08,SME,N,
363515,SSI SCHAEFER LTD,"10,025.00",Bins,Bins,31-Oct-22,2223/08,SME,Y,50%
364281,SSI SCHAEFER LTD,"15,995.20",Bins,Bins,28-Nov-22,2223/08,SME,Y,50%
364116,SUFFOLK POLICE & CRIME COMMISSIONER,"127,090.14",CIL Funded REFCUS,Grants,22-Nov-22,2223/08,LGE,N,
363825,TANKCHANGE LTD,"1,380.00",Central Heating,Improvements,03-Nov-22,2223/08,SME,N,
363546,THERMATECH,"1,550.00",Sheltered Accommodation,Fire Prevention,31-Oct-22,2223/08,SME,N,
363547,THERMATECH,"1,550.00",Sheltered Accommodation,Fire Prevention,31-Oct-22,2223/08,SME,N,
362994,THOMPSON COOPER LTD,"1,326.00",Street & Major Road Cleansing,"Equipment, Tools & Materials",05-Oct-22,2223/08,SME,N,
363713,THOMPSON COOPER LTD,291.68,Street & Major Road Cleansing,"Equipment, Tools & Materials",07-Nov-22,2223/08,SME,N,
363839,TRUCKEAST LTD,521.4,Street & Major Road Cleansing,Plant & Vehicle - Other costs,09-Nov-22,2223/08,LGE,N,
363583,WEST END REHOMING,390.74,Dog Control,Collection Charges,01-Nov-22,2223/08,SME,N,
363426,WINDIMAN LTD,760,Building Services,Repairs,25-Oct-22,2223/08,SME,N,
363427,WINDIMAN LTD,569,Major Imps,Improvements,25-Oct-22,2223/08,SME,N,
363436,WINDIMAN LTD,"2,375.00",Window & Door Rplcmts,Improvements,25-Oct-22,2223/08,SME,N,
363890,WINDIMAN LTD,300,Window & Door Rplcmts,Improvements,11-Nov-22,2223/08,SME,N,
364010,WINDIMAN LTD,930,Window & Door Rplcmts,Improvements,17-Nov-22,2223/08,SME,N,
364016,WINDIMAN LTD,"2,200.00",Window & Door Rplcmts,Improvements,17-Nov-22,2223/08,SME,N,
364017,WINDIMAN LTD,"2,695.00",Window & Door Rplcmts,Repairs,17-Nov-22,2223/08,SME,N,
363213,WORKWEAR (EAST ANGLIA) LTD,292.95,Building Services,Protective clothing,04-Oct-22,2223/08,SME,Y,50%
363496,WORKWEAR (EAST ANGLIA) LTD,180,Open Spaces,Protective clothing,21-Oct-22,2223/08,SME,N,
363496,WORKWEAR (EAST ANGLIA) LTD,180,Street & Major Road Cleansing,Protective clothing,21-Oct-22,2223/08,SME,N,
363498,WORKWEAR (EAST ANGLIA) LTD,179.69,Open Spaces,Protective clothing,27-Oct-22,2223/08,SME,N,
363498,WORKWEAR (EAST ANGLIA) LTD,179.68,Street & Major Road Cleansing,Protective clothing,27-Oct-22,2223/08,SME,N,
363509,WORKWEAR (EAST ANGLIA) LTD,296.47,Open Spaces,Protective clothing,28-Oct-22,2223/08,SME,N,
363509,WORKWEAR (EAST ANGLIA) LTD,296.48,Street & Major Road Cleansing,Protective clothing,28-Oct-22,2223/08,SME,N,
363549,WORKWEAR (EAST ANGLIA) LTD,277.5,Building Services,Protective clothing,12-Sep-22,2223/08,SME,Y,50%
364037,WORKWEAR (EAST ANGLIA) LTD,353.24,Building Services,Protective clothing,08-Nov-22,2223/08,SME,Y,50%
363619,SPORTS & LEISURE MANAGEMENT LTD,"20,833.33",Leisure Contract,Contributions to other Bodies,02-Nov-22,2223/08,LGE,N,
364100,EVERYONE ACTIVE STOWMARKET,585,Holiday Activity Fund,"Equipment, Tools & Materials",11-Nov-22,2223/08,SME,N,
363870,IPSWICH BOROUGH COUNCIL,"2,614.06",Shared Revenues Partnership,Contributions to other Bodies,24-Oct-22,2223/08,LGE,N,
363099,SERCO LTD,"6,505.36",Open Spaces,Plant & Vehicle Fuel,08-Oct-22,2223/08,LGE,Y,50%
363099,SERCO LTD,"6,505.36",Street & Major Road Cleansing,Plant & Vehicle Fuel,08-Oct-22,2223/08,LGE,Y,50%
363945,SERCO LTD,"4,587.00",Domestic Waste,Refuse Contract,11-Nov-22,2223/08,LGE,Y,50%
363947,SERCO LTD,"10,000.00",Jnt Waste Contract,Plant & Vehicle Fuel,11-Nov-22,2223/08,LGE,Y,50%
363948,SERCO LTD,"320,710.50",Domestic Waste,Refuse Contract,11-Nov-22,2223/08,LGE,Y,48%
363948,SERCO LTD,"21,380.70",Trade Waste,Refuse Contract,11-Nov-22,2223/08,LGE,Y,60%
363948,SERCO LTD,"85,522.80",Garden Waste,Refuse Contract,11-Nov-22,2223/08,LGE,Y,47.50%
363949,SERCO LTD,"6,734.50",Open Spaces,Plant & Vehicle Fuel,11-Nov-22,2223/08,LGE,Y,50%
363949,SERCO LTD,"6,734.50",Street & Major Road Cleansing,Plant & Vehicle Fuel,11-Nov-22,2223/08,LGE,Y,50%
363333,TRAVIS PERKINS TRADING CO LTD,"55,536.54",Building Services,"Equipment, Tools & Materials",30-Sep-22,2223/08,LGE,Y,71%
364011,TRAVIS PERKINS TRADING CO LTD,"57,511.76",Building Services,Repairs,31-Oct-22,2223/08,LGE,Y,62%
422951,EDF ENERGY,412.32,"11 Market Place, Stowmarket",Electricity,15-Nov-22,2223/08,LGE,N,
422951,EDF ENERGY,"1,412.64",C Parks General,Electricity,15-Nov-22,2223/08,LGE,N,
422951,EDF ENERGY,84.96,Climate Change and Sustainabil,Electricity,15-Nov-22,2223/08,LGE,N,
422951,EDF ENERGY,"2,373.09",Creeting Rd Depot,Electricity,15-Nov-22,2223/08,LGE,Y,50%
422951,EDF ENERGY,837.23,Headquarters General,Electricity,15-Nov-22,2223/08,LGE,N,
422951,EDF ENERGY,"51,850.36",Leisure Contract,Electricity,15-Nov-22,2223/08,LGE,N,
422951,EDF ENERGY,311.11,Needham Market Middle School,Electricity,15-Nov-22,2223/08,LGE,N,
422951,EDF ENERGY,"-1,266.34",Open Spaces,Electricity,15-Nov-22,2223/08,LGE,N,
422951,EDF ENERGY,"1,669.48",Other HRA Temp Accommodation,Electricity,15-Nov-22,2223/08,LGE,N,
422951,EDF ENERGY,327.55,Pure Gym & Adjacent Building,Electricity,15-Nov-22,2223/08,LGE,N,
422951,EDF ENERGY,10.82,Recycling Centre,Electricity,15-Nov-22,2223/08,LGE,N,
422951,EDF ENERGY,"1,309.47",Sewage Treatment Works,Electricity,15-Nov-22,2223/08,LGE,N,
422951,EDF ENERGY,"36,032.51",Sheltered Accommodation,Electricity,15-Nov-22,2223/08,LGE,N,
422951,EDF ENERGY,516.51,Tacon Close Eye TDP,Electricity,15-Nov-22,2223/08,LGE,N,
422951,EDF ENERGY,"1,565.09",Temporary Accommodation,Electricity,15-Nov-22,2223/08,LGE,N,
422951,EDF ENERGY,"5,027.10",Tenancy Services,Electricity,15-Nov-22,2223/08,LGE,N,
422951,EDF ENERGY,"-1,411.65",Wingfield Barns,Electricity,15-Nov-22,2223/08,LGE,N,
422940,GPC BARCLAYS,"10,872.40",Current Assets,Barclaycard Control,14-Nov-22,2223/08,LGE,Y,18%
422899,ALLSTAR BUSINESS SOLUTIONS LTD,210.77,Housing Options,Plant & Vehicle Fuel,31-Oct-22,2223/08,SME,Y,50%
422899,ALLSTAR BUSINESS SOLUTIONS LTD,"11,174.30",Building Services,Plant & Vehicle Fuel,31-Oct-22,2223/08,SME,Y,50%
422936,COMPUTERSHARE ,890,Current Assets,ChildCare Vouchers-Control,31-Oct-22,2223/08,LGE,N,
364202,BADWELL ASH PARISH COUNCIL,"3,300.00",CCB Warm Spaces,"Equipment, Tools & Materials",24-Nov-22,2223/08,SME,N,
422908,BARHAM PARISH COUNCIL,617.5,Street & Major Road Cleansing,Contributions to other Bodies,02-Nov-22,2223/08,SME,N,
422909,BARKING PARISH COUNCIL,370.5,Street & Major Road Cleansing,Contributions to other Bodies,02-Nov-22,2223/08,SME,N,
363581,BEDINGFIELD VILLAGE HALL,900,Grants & Contrbns,Contributions & Donations,02-Nov-22,2223/08,SME,N,
422938,BEYTON PARISH COUNCIL,"14,590.23",S106 Open Spaces Expenditure,Grants,08-Nov-22,2223/08,SME,N,
363960,BOTESDALE PARISH COUNCIL,647.96,CIL Funded REFCUS,Grants,15-Nov-22,2223/08,SME,N,
364046,BOTESDALE PARISH COUNCIL,"6,528.49",CIL Funded REFCUS,Grants,18-Nov-22,2223/08,SME,N,
422911,BOTESDALE PARISH COUNCIL,370.5,Street & Major Road Cleansing,Contributions to other Bodies,02-Nov-22,2223/08,SME,N,
422912,BRAMFORD PARISH COUNCIL,617.5,Street & Major Road Cleansing,Contributions to other Bodies,02-Nov-22,2223/08,SME,N,
363480,BRUNDISH PARISH ROOMS,"3,000.00",Grants & Contrbns,Contributions & Donations,28-Oct-22,2223/08,SME,N,
422913,DEBENHAM PARISH COUNCIL,"2,192.13",Street & Major Road Cleansing,Contributions to other Bodies,02-Nov-22,2223/08,SME,N,
363584,DEBENHAM VILLAGE HALL & PLAYING FIELD TR,"1,000.00",Grants & Contrbns,Contributions & Donations,02-Nov-22,2223/08,SME,N,
363703,DEBENHAM VILLAGE HALL & PLAYING FIELD TR,"11,250.00",Grants & Contrbns,Grants,04-Nov-22,2223/08,SME,N,
363679,EASTERN ANGLES THEATRE CO LTD,"9,600.00",Community Wellbeing,Contributions & Donations,04-Nov-22,2223/08,SME,N,
363388,ELMSWELL PARISH COUNCIL,"1,599.70",Grants & Contrbns,Contributions & Donations,21-Oct-22,2223/08,SME,N,
422914,EYE TOWN COUNCIL,"2,470.00",Street & Major Road Cleansing,Contributions to other Bodies,02-Nov-22,2223/08,SME,N,
363648,FRAMSDEN PARISH COUNCIL,"7,446.90",CIL Funded REFCUS,Grants,03-Nov-22,2223/08,SME,N,
363834,FRAMSDEN PARISH COUNCIL,"9,429.43",Communities,Grants,09-Nov-22,2223/08,SME,N,
422915,FRESSINGFIELD PARISH COUNCIL,555.75,Street & Major Road Cleansing,Contributions to other Bodies,02-Nov-22,2223/08,SME,N,
364150,GREAT ASHFIELD CHURCH,500,CCB Warm Spaces,"Equipment, Tools & Materials",23-Nov-22,2223/08,SME,N,
363795,GREAT BLAKENHAM PARISH COUNCIL,"1,390.00",Grants & Contrbns,Contributions & Donations,08-Nov-22,2223/08,SME,N,
422916,GREAT BLAKENHAM PARISH COUNCIL,"1,235.00",Street & Major Road Cleansing,Contributions to other Bodies,02-Nov-22,2223/08,SME,N,
422918,HARLESTON PARISH MEETING,617.5,Street & Major Road Cleansing,Contributions to other Bodies,02-Nov-22,2223/08,SME,N,
363851,HAUGHLEY PARISH COUNCIL,525,Grants & Contrbns,Contributions & Donations,09-Nov-22,2223/08,SME,N,
364213,HAUGHLEY PARISH COUNCIL,"1,000.00",Grants & Contrbns,Contributions & Donations,25-Nov-22,2223/08,SME,N,
422919,HAUGHLEY PARISH COUNCIL,617.5,Street & Major Road Cleansing,Contributions to other Bodies,02-Nov-22,2223/08,SME,N,
364169,HAUGHLEY VILLAGE HALL MANAGEMENT COMMITT,"1,560.00",CCB Warm Spaces,"Equipment, Tools & Materials",24-Nov-22,2223/08,SME,N,
364160,HORHAM & ATHELINGTON VILLAGE HALL COMMIT,"1,214.57",CCB Warm Spaces,"Equipment, Tools & Materials",23-Nov-22,2223/08,SME,N,
422921,HOXNE PARISH COUNCIL,617.5,Street & Major Road Cleansing,Contributions to other Bodies,02-Nov-22,2223/08,SME,N,
422923,MENDLESHAM PARISH COUNCIL,432.25,Street & Major Road Cleansing,Contributions to other Bodies,02-Nov-22,2223/08,SME,N,
363611,OLD NEWTON WITH DAGWORTH AND GIPPING PAR,"1,200.00",Grants & Contrbns,Contributions & Donations,02-Nov-22,2223/08,SME,N,
363640,ONEHOUSE PARISH COUNCIL,400,Grants & Contrbns,Contributions & Donations,02-Nov-22,2223/08,SME,N,
363899,PALGRAVE PARISH COUNCIL,700,Grants & Contrbns,Contributions & Donations,11-Nov-22,2223/08,SME,N,
363759,RICKINGHALL INFERIOR AND RICKINGHALL SUP,"20,148.00",CIL Funded REFCUS,Grants,07-Nov-22,2223/08,SME,N,
363844,RICKINGHALL INFERIOR AND RICKINGHALL SUP,"13,432.00",Communities,Grants,09-Nov-22,2223/08,SME,N,
422927,RICKINGHALL INFERIOR AND RICKINGHALL SUP,494,Street & Major Road Cleansing,Contributions to other Bodies,02-Nov-22,2223/08,SME,N,
422929,STOWUPLAND PARISH COUNCIL,"1,235.00",Street & Major Road Cleansing,Contributions to other Bodies,02-Nov-22,2223/08,SME,N,
422930,STRADBROKE PARISH COUNCIL,"1,049.75",Street & Major Road Cleansing,Contributions to other Bodies,02-Nov-22,2223/08,SME,N,
363687,SUFFOLK ARTLINK,"7,755.80",Community Wellbeing,Contributions & Donations,04-Nov-22,2223/08,SME,N,
363835,SYLEHAM PARISH COUNCIL,"1,364.80",Communities,Grants,09-Nov-22,2223/08,SME,N,
422931,THURSTON PARISH COUNCIL,950.95,Street & Major Road Cleansing,Contributions to other Bodies,02-Nov-22,2223/08,SME,N,
363845,WALSHAM LE WILLOWS PARISH COUNCIL,"15,000.00",Communities,Grants,09-Nov-22,2223/08,SME,N,
364212,WETHERDEN PARISH COUNCIL,"1,000.00",Grants & Contrbns,Contributions & Donations,25-Nov-22,2223/08,SME,N,
422932,WETHERDEN PARISH COUNCIL,370.5,Street & Major Road Cleansing,Contributions to other Bodies,02-Nov-22,2223/08,SME,N,
363792,WEYBREAD PARISH COUNCIL,500,Grants & Contrbns,Contributions & Donations,08-Nov-22,2223/08,SME,N,
422933,WOOLPIT PARISH COUNCIL,741,Street & Major Road Cleansing,Contributions to other Bodies,02-Nov-22,2223/08,SME,N,
362827,SUFFOLK COUNTY COUNCIL,"4,948.00",Organisational Devt,Recruitment,29-Sep-22,2223/08,LGE,Y,50%
363009,SUFFOLK COUNTY COUNCIL,"1,805.00",Land Chgs,Contracted Services,05-Oct-22,2223/08,LGE,N,
363237,SUFFOLK COUNTY COUNCIL,745,Open Spaces,Computer Equpt Purchases,13-Oct-22,2223/08,LGE,N,
363557,SUFFOLK COUNTY COUNCIL,"1,921.00",Organisational Devt,Recruitment,01-Nov-22,2223/08,LGE,Y,50%
363558,SUFFOLK COUNTY COUNCIL,"4,117.43",Community Safety-General,Contributions & Donations,01-Nov-22,2223/08,LGE,N,
363860,SUFFOLK COUNTY COUNCIL,"1,795.00",Land Chgs,Contracted Services,09-Nov-22,2223/08,LGE,N,
363904,SUFFOLK COUNTY COUNCIL,"1,678.84",Domestic Waste,MRF Disposal,10-Nov-22,2223/08,LGE,N,
363904,SUFFOLK COUNTY COUNCIL,"17,398.59",Garden Waste,Garden Waste Disposal,10-Nov-22,2223/08,LGE,N,
364082,SUFFOLK COUNTY COUNCIL,"1,577.17",Jnt Waste Contract,Contracted Services,18-Nov-22,2223/08,LGE,Y,50%
363523,FENN WRIGHT LLP,675,General/Supervision & Mgmt,Prof & Consultancy Fees,30-Oct-22,2223/08,SME,N,
364250,TELEFONICA UK LIMITED - O2,"1,549.10",ICT,Telephone Costs,27-Nov-22,2223/08,LGE,Y,50%
363405,KENNET EQUIPMENT LEASING,283.05,Creeting Rd Depot,Operating Lease Payments,24-Oct-22,2223/08,SME,Y,50%
363373,LEX AUTOLEASE,424.45,Building Services,Lease Cars - Payment,17-Oct-22,2223/08,SME,Y,50%
363895,LEX AUTOLEASE,"6,711.84",Building Services,Lease Cars - Payment,16-Aug-22,2223/08,SME,Y,50%
363907,LEX AUTOLEASE,348.97,Building Services,Lease Cars - Payment,30-Oct-22,2223/08,SME,Y,50%
363908,LEX AUTOLEASE,276.83,Building Services,Lease Cars - Payment,30-Oct-22,2223/08,SME,Y,50%
363909,LEX AUTOLEASE,310.1,Building Services,Lease Cars - Payment,30-Oct-22,2223/08,SME,Y,50%
364056,LEX AUTOLEASE,320.52,Building Services,Lease Cars - Payment,07-Nov-22,2223/08,SME,Y,50%
364057,LEX AUTOLEASE,327.22,Building Services,Lease Cars - Payment,07-Nov-22,2223/08,SME,Y,50%
364058,LEX AUTOLEASE,311.29,Building Services,Lease Cars - Payment,09-Nov-22,2223/08,SME,Y,50%
364059,LEX AUTOLEASE,315.39,Building Services,Lease Cars - Payment,13-Nov-22,2223/08,SME,Y,50%
364060,LEX AUTOLEASE,303.08,Building Services,Lease Cars - Payment,13-Nov-22,2223/08,SME,Y,50%
364061,LEX AUTOLEASE,265.48,Building Services,Lease Cars - Payment,13-Nov-22,2223/08,SME,Y,50%
364062,LEX AUTOLEASE,325.05,Building Services,Lease Cars - Payment,13-Nov-22,2223/08,SME,Y,50%
364063,LEX AUTOLEASE,337.78,Building Services,Lease Cars - Payment,13-Nov-22,2223/08,SME,Y,50%
364064,LEX AUTOLEASE,263.72,Building Services,Lease Cars - Payment,13-Nov-22,2223/08,SME,Y,50%
364074,LEX AUTOLEASE,"7,274.88",Building Services,Lease Cars - Payment,16-Aug-22,2223/08,SME,Y,50%
364242,LEX AUTOLEASE,424.45,Building Services,Lease Cars - Payment,16-Nov-22,2223/08,SME,Y,50%
364243,LEX AUTOLEASE,380.23,Building Services,Lease Cars - Payment,16-Nov-22,2223/08,SME,Y,50%
364244,LEX AUTOLEASE,620.97,Building Services,Lease Cars - Payment,16-Nov-22,2223/08,SME,Y,50%
363483,CIVICA UK LIMITED,571.42,Lettings & Allocations,Contracted Services,28-Oct-22,2223/08,LGE,N,
363668,CIVICA UK LIMITED,"10,850.00",Lettings & Allocations,Contracted Services,21-Oct-22,2223/08,LGE,N,
363669,CIVICA UK LIMITED,"2,858.00",Lettings & Allocations,Contracted Services,28-Oct-22,2223/08,LGE,N,
422952,GAZPROM ENERGY,-7.17,"11 Market Place, Stowmarket",Gas,22-Nov-22,2223/08,SME,N,
422952,GAZPROM ENERGY,169.54,Creeting Rd Depot,Gas,22-Nov-22,2223/08,SME,Y,50%
422952,GAZPROM ENERGY,24.63,General/Supervision & Mgmt,Gas,22-Nov-22,2223/08,SME,N,
422952,GAZPROM ENERGY,28.88,Headquarters General,Gas,22-Nov-22,2223/08,SME,N,
422952,GAZPROM ENERGY,"14,626.38",Leisure Contract,Gas,22-Nov-22,2223/08,SME,N,
422952,GAZPROM ENERGY,13.54,Open Spaces,Gas,22-Nov-22,2223/08,SME,N,
422952,GAZPROM ENERGY,15.88,Pure Gym & Adjacent Building,Gas,22-Nov-22,2223/08,SME,N,
422952,GAZPROM ENERGY,"5,135.72",Sheltered Accommodation,Gas,22-Nov-22,2223/08,SME,N,
422952,GAZPROM ENERGY,541.83,Temporary Accommodation,Gas,22-Nov-22,2223/08,SME,N,
422952,GAZPROM ENERGY,380.9,Tenancy Services,Gas,22-Nov-22,2223/08,SME,N,
422906,STOWUPLAND VILLAGE HALL,658.48,Bring Sites,Contributions & Donations,01-Nov-22,2223/08,SME,N,
363582,ERNEST DOE & SONS LTD,"2,585.19",Open Spaces,"Equipment, Tools & Materials",28-Oct-22,2223/08,LGE,N,
364124,ERNEST DOE & SONS LTD,616.85,Open Spaces,Plant & Vehicle - Other costs,22-Nov-22,2223/08,LGE,N,
364172,ACUITY RESEARCH & PRACTICE LTD,"1,831.25",Software/ICT Projects/Surveys,Improvements,24-Nov-22,2223/08,SME,Y,50%
364000,WHYBROW PROPERTY SOLUTIONS LTD,639,Disabled Facilities (Revenue),Repairs,16-Nov-22,2223/08,SME,N,
364002,WHYBROW PROPERTY SOLUTIONS LTD,858.16,Building Services,Repairs,16-Nov-22,2223/08,SME,N,
364003,WHYBROW PROPERTY SOLUTIONS LTD,"6,094.50",Council House Adaptions,Improvements,16-Nov-22,2223/08,SME,N,
364101,WHYBROW PROPERTY SOLUTIONS LTD,"7,023.90",Insurance Claims,Misc Premises Costs,16-Nov-22,2223/08,SME,N,
363511,L A C CLEANING CONTRACTORS LIMITED,366.16,Temporary Accommodation,General Cleaning,24-Oct-22,2223/08,SME,N,
363512,L A C CLEANING CONTRACTORS LIMITED,824.41,Temporary Accommodation,General Cleaning,24-Oct-22,2223/08,SME,N,
363706,L A C CLEANING CONTRACTORS LIMITED,385.5,Building Services,Repairs,04-Nov-22,2223/08,SME,N,
363709,L A C CLEANING CONTRACTORS LIMITED,495.5,Building Services,Repairs,07-Nov-22,2223/08,SME,N,
364033,L A C CLEANING CONTRACTORS LIMITED,595.5,Building Services,Repairs,18-Nov-22,2223/08,SME,N,
364164,L A C CLEANING CONTRACTORS LIMITED,366.16,Temporary Accommodation,General Cleaning,22-Nov-22,2223/08,SME,N,
364165,L A C CLEANING CONTRACTORS LIMITED,824.41,Temporary Accommodation,General Cleaning,22-Nov-22,2223/08,SME,N,
364166,L A C CLEANING CONTRACTORS LIMITED,495.5,Building Services,Repairs,23-Nov-22,2223/08,SME,N,
363780,ARMSTRONG YORK ASBESTOS ENVIRONMENTAL,"8,221.37",Asbestos Survey & Reinspection,Prof & Consultancy Fees,31-Oct-22,2223/08,SME,N,
364162,STRADBROKE COURTHOUSE & LIBRARY TRUST,"2,500.00",CCB Warm Spaces,"Equipment, Tools & Materials",23-Nov-22,2223/08,SME,N,
363680,THE MIX STOWMARKET LTD,"14,900.00",Communities,Grants,04-Nov-22,2223/08,SME,N,
363704,THE MIX STOWMARKET LTD,"7,500.00",Grants & Contrbns,Grants,04-Nov-22,2223/08,SME,N,
422907,EAST ANGLIAN AIR AMBULANCE,"5,307.06",Bring Sites,Contributions & Donations,01-Nov-22,2223/08,SME,N,
363984,STOWE VETERINARY GROUP,341.59,Animal Welfare Licensing,Prof & Consultancy Fees,15-Nov-22,2223/08,SME,N,
363681,COMMUNITY ACTION SUFFOLK,"9,971.00",Communities,Grants,04-Nov-22,2223/08,SME,N,
363682,COMMUNITY ACTION SUFFOLK,"8,018.00",Communities,Grants,04-Nov-22,2223/08,SME,N,
363702,COMMUNITY ACTION SUFFOLK,"5,000.00",Grants & Contrbns,Grants,04-Nov-22,2223/08,SME,N,
363790,COMMUNITY ACTION SUFFOLK,420,Community Safety-General,Training,29-Sep-22,2223/08,SME,Y,50%
364200,OXBURY CHARTERED SURVEYORS,"1,800.00","The Broadway, Badwell Ash",Prof & Consultancy Fees,24-Nov-22,2223/08,SME,N,
364203,OXBURY CHARTERED SURVEYORS,"2,550.00","Framlingham Road, Laxfield",Prof & Consultancy Fees,24-Nov-22,2223/08,SME,N,
363782,OPUS PEOPLE SOLUTIONS LTD,382.81,Housing Support Grant,Agency Staff,03-Nov-22,2223/08,SME,N,
363782,OPUS PEOPLE SOLUTIONS LTD,35.94,Housing Standards,Agency Staff,03-Nov-22,2223/08,SME,N,
363952,OPUS PEOPLE SOLUTIONS LTD,587.93,Electoral Registration,Agency Staff,10-Nov-22,2223/08,SME,Y,48%
363952,OPUS PEOPLE SOLUTIONS LTD,78.63,Housing Standards,Agency Staff,10-Nov-22,2223/08,SME,Y,
364098,OPUS PEOPLE SOLUTIONS LTD,950.68,Electoral Registration,Agency Staff,17-Nov-22,2223/08,SME,Y,52.50%
364098,OPUS PEOPLE SOLUTIONS LTD,101,Housing Standards,Agency Staff,17-Nov-22,2223/08,SME,Y,
363868,CORNERSTONE BARRISTERS,"43,897.96",Devt Management - Appeals,Legal Expenses,08-Nov-22,2223/08,SME,N,
363958,CORNERSTONE BARRISTERS,"2,000.00",Devt Management - Apps,Legal Expenses,04-Nov-22,2223/08,SME,Y,50%
364237,CORNERSTONE BARRISTERS,"24,000.00",Devt Management - Apps,Legal Expenses,23-Nov-22,2223/08,SME,N,
364238,CORNERSTONE BARRISTERS,"6,150.00",Devt Management - Apps,Legal Expenses,23-Nov-22,2223/08,SME,N,
364267,CORNERSTONE BARRISTERS,"3,300.00",Devt Management - Apps,Legal Expenses,28-Nov-22,2223/08,SME,N,
363840,SUFFOLK MIND,"9,917.60",Community Wellbeing,Contributions & Donations,09-Nov-22,2223/08,SME,N,
363777,4PRINCIPLES CONSTRUCTION LTD,"5,685.77",Mand Disabled Facilities Grant,Grants,08-Nov-22,2223/08,SME,N,
364114,4PRINCIPLES CONSTRUCTION LTD,"5,967.25",Mand Disabled Facilities Grant,Grants,22-Nov-22,2223/08,SME,N,
364132,BIRKETTS LLP,"5,000.00",Assets & Development,Prof & Consultancy Fees,09-Nov-22,2223/08,LGE,N,
364135,BIRKETTS LLP,975.5,Organisational Devt,Legal Expenses,31-Aug-22,2223/08,LGE,Y,50%
363438,GALLAGHER CAR & VAN RENTALS LTD,500,Domestic Waste,Refuse Contract,28-Oct-22,2223/08,LGE,N,
363478,GALLAGHER CAR & VAN RENTALS LTD,"1,232.00",Domestic Waste,Refuse Contract,28-Oct-22,2223/08,LGE,N,
363506,GALLAGHER CAR & VAN RENTALS LTD,173,Domestic Waste,Refuse Contract,24-Oct-22,2223/08,LGE,N,
363506,GALLAGHER CAR & VAN RENTALS LTD,"1,143.00",Domestic Waste,Refuse Contract,24-Oct-22,2223/08,LGE,N,
363674,GALLAGHER CAR & VAN RENTALS LTD,"1,900.08",Domestic Waste,Refuse Contract,02-Nov-22,2223/08,LGE,N,
363734,GALLAGHER CAR & VAN RENTALS LTD,300,Domestic Waste,Refuse Contract,04-Nov-22,2223/08,LGE,N,
364107,GALLAGHER CAR & VAN RENTALS LTD,"1,316.00",Domestic Waste,Refuse Contract,21-Nov-22,2223/08,LGE,N,
364217,GALLAGHER CAR & VAN RENTALS LTD,"1,232.00",Domestic Waste,Refuse Contract,25-Nov-22,2223/08,LGE,N,
364280,GALLAGHER CAR & VAN RENTALS LTD,950,Domestic Waste,Refuse Contract,28-Nov-22,2223/08,LGE,N,
364119,FORESOLUTIONS LTD,660,Street & Major Road Cleansing,Plant & Vehicle - Other costs,18-Nov-22,2223/08,SME,N,
364216,WESTHORPE VILLAGE HALL LTD,"1,500.00",Grants & Contrbns,Contributions & Donations,25-Nov-22,2223/08,SME,N,
363672,ONEHOUSE PAROCHIAL CHURCH COUNCIL,"1,333.00",Grants & Contrbns,Contributions & Donations,04-Nov-22,2223/08,SME,N,
363846,BACTON VILLAGE HALL,"6,023.20",Communities,Grants,09-Nov-22,2223/08,SME,N,
363888,A & J MOTOR SERVICES LTD,650,Taxi & Private Hire Licensing,Contracted Services,10-Nov-22,2223/08,SME,N,
362954,RICHARD UTTING ASSOCIATES LLP,"2,055.00",Eves Meadow Haughley S106,Prof & Consultancy Fees,13-Mar-22,2223/08,SME,N,
363013,RICHARD UTTING ASSOCIATES LLP,"1,293.23","Green Road, Woolpit",Prof & Consultancy Fees,30-Sep-22,2223/08,SME,N,
363563,RICHARD UTTING ASSOCIATES LLP,"1,787.19",Needham Market Middle School,Prof & Consultancy Fees,31-Oct-22,2223/08,SME,N,
364138,RICHARD UTTING ASSOCIATES LLP,"2,124.74",Stowmarket Middle School,Prof & Consultancy Fees,31-Oct-22,2223/08,SME,N,
364192,MANSION HOUSE PUBLISHING LTD,633,Independent Living Service,Prof & Consultancy Fees,22-Nov-22,2223/08,SME,Y,50%
362665,PUBLIC SEWER SERVICES,"1,606.05",Insulation Imps,Improvements,22-Sep-22,2223/08,SME,N,
363741,PUBLIC SEWER SERVICES,"2,385.60",Unadopted Drains & Sewers,Repairs,31-Oct-22,2223/08,SME,N,
363817,PUBLIC SEWER SERVICES,617.05,Unadopted Drains & Sewers,Improvements,31-Oct-22,2223/08,SME,N,
363863,PUBLIC SEWER SERVICES,500,Unadopted Drains & Sewers,Improvements,31-Oct-22,2223/08,SME,N,
363864,PUBLIC SEWER SERVICES,"1,523.37",Major Imps,Improvements,31-Oct-22,2223/08,SME,N,
363865,PUBLIC SEWER SERVICES,"2,981.48",Major Imps,Improvements,31-Oct-22,2223/08,SME,N,
363866,PUBLIC SEWER SERVICES,"1,536.37",Major Imps,Improvements,31-Oct-22,2223/08,SME,N,
364175,PUBLIC SEWER SERVICES,852.63,Building Services,Repairs,24-May-22,2223/08,SME,N,
364231,PUBLIC SEWER SERVICES,"1,988.55",Insulation Imps,Improvements,24-Nov-22,2223/08,SME,N,
363623,THE STOWMARKET GLASS COMPANY LTD,"1,408.33",Building Services,Repairs,06-Oct-22,2223/08,SME,N,
363630,THE STOWMARKET GLASS COMPANY LTD,262.75,Building Services,Repairs,31-Oct-22,2223/08,SME,N,
363631,THE STOWMARKET GLASS COMPANY LTD,284.9,Building Services,Repairs,31-Oct-22,2223/08,SME,N,
363632,THE STOWMARKET GLASS COMPANY LTD,438.85,Building Services,Repairs,31-Oct-22,2223/08,SME,N,
363633,THE STOWMARKET GLASS COMPANY LTD,297.85,Building Services,Repairs,31-Oct-22,2223/08,SME,N,
363634,THE STOWMARKET GLASS COMPANY LTD,465.3,Building Services,Repairs,31-Oct-22,2223/08,SME,N,
363602,THE OYSTER PARTNERSHIP LTD,"3,150.00",General/Supervision & Mgmt,Agency Staff,02-Nov-22,2223/08,SME,Y,50%
363603,THE OYSTER PARTNERSHIP LTD,"2,825.00",General/Supervision & Mgmt,Agency Staff,02-Nov-22,2223/08,SME,Y,50%
363604,THE OYSTER PARTNERSHIP LTD,"2,656.25",Building Servs Tech Staff,Agency Staff,02-Nov-22,2223/08,SME,Y,50%
363605,THE OYSTER PARTNERSHIP LTD,"1,740.00",Financial Servs,Agency Staff,02-Nov-22,2223/08,SME,Y,50%
363606,THE OYSTER PARTNERSHIP LTD,923.25,Building Services,Agency Staff,02-Nov-22,2223/08,SME,Y,50%
363770,THE OYSTER PARTNERSHIP LTD,"1,857.65",Building Servs Tech Staff,Agency Staff,26-Oct-22,2223/08,SME,Y,50%
363771,THE OYSTER PARTNERSHIP LTD,750,Building Servs Tech Staff,Agency Staff,02-Nov-22,2223/08,SME,Y,50%
363788,THE OYSTER PARTNERSHIP LTD,"2,325.00",General/Supervision & Mgmt,Agency Staff,26-Oct-22,2223/08,SME,Y,50%
363789,THE OYSTER PARTNERSHIP LTD,"2,325.00",General/Supervision & Mgmt,Agency Staff,26-Oct-22,2223/08,SME,Y,50%
363791,THE OYSTER PARTNERSHIP LTD,"2,325.00",General/Supervision & Mgmt,Agency Staff,02-Nov-22,2223/08,SME,Y,50%
363827,THE OYSTER PARTNERSHIP LTD,"3,780.00",General/Supervision & Mgmt,Agency Staff,09-Nov-22,2223/08,SME,Y,50%
363828,THE OYSTER PARTNERSHIP LTD,923.25,Building Services,Agency Staff,09-Nov-22,2223/08,SME,Y,50%
363829,THE OYSTER PARTNERSHIP LTD,"2,656.25",Building Servs Tech Staff,Agency Staff,09-Nov-22,2223/08,SME,Y,50%
363830,THE OYSTER PARTNERSHIP LTD,"1,898.15",Building Servs Tech Staff,Agency Staff,09-Nov-22,2223/08,SME,Y,50%
363831,THE OYSTER PARTNERSHIP LTD,"2,325.00",General/Supervision & Mgmt,Agency Staff,09-Nov-22,2223/08,SME,Y,50%
363832,THE OYSTER PARTNERSHIP LTD,"2,825.00",General/Supervision & Mgmt,Agency Staff,09-Nov-22,2223/08,SME,Y,50%
363833,THE OYSTER PARTNERSHIP LTD,"2,610.00",Financial Servs,Agency Staff,09-Nov-22,2223/08,SME,Y,50%
363988,THE OYSTER PARTNERSHIP LTD,"1,867.55",Building Servs Tech Staff,Agency Staff,16-Nov-22,2223/08,SME,Y,50%
363989,THE OYSTER PARTNERSHIP LTD,"2,825.00",General/Supervision & Mgmt,Agency Staff,16-Nov-22,2223/08,SME,Y,50%
363990,THE OYSTER PARTNERSHIP LTD,"3,150.00",General/Supervision & Mgmt,Agency Staff,16-Nov-22,2223/08,SME,Y,50%
363991,THE OYSTER PARTNERSHIP LTD,"2,325.00",General/Supervision & Mgmt,Agency Staff,16-Nov-22,2223/08,SME,Y,50%
363992,THE OYSTER PARTNERSHIP LTD,"1,160.00",Financial Servs,Agency Staff,16-Nov-22,2223/08,SME,Y,50%
363993,THE OYSTER PARTNERSHIP LTD,975.65,Building Services,Agency Staff,16-Nov-22,2223/08,SME,Y,50%
363994,THE OYSTER PARTNERSHIP LTD,"2,656.25",Building Servs Tech Staff,Agency Staff,16-Nov-22,2223/08,SME,Y,50%
364151,THE OYSTER PARTNERSHIP LTD,"2,656.25",Building Servs Tech Staff,Agency Staff,23-Nov-22,2223/08,SME,Y,50%
364152,THE OYSTER PARTNERSHIP LTD,"3,780.00",General/Supervision & Mgmt,Agency Staff,23-Nov-22,2223/08,SME,Y,50%
364153,THE OYSTER PARTNERSHIP LTD,"1,890.50",Building Servs Tech Staff,Agency Staff,23-Nov-22,2223/08,SME,Y,50%
364154,THE OYSTER PARTNERSHIP LTD,"2,325.00",General/Supervision & Mgmt,Agency Staff,23-Nov-22,2223/08,SME,Y,50%
364155,THE OYSTER PARTNERSHIP LTD,"2,900.00",Financial Servs,Agency Staff,23-Nov-22,2223/08,SME,Y,50%
364156,THE OYSTER PARTNERSHIP LTD,"2,825.00",General/Supervision & Mgmt,Agency Staff,23-Nov-22,2223/08,SME,Y,50%
364157,THE OYSTER PARTNERSHIP LTD,923.25,Building Services,Agency Staff,23-Nov-22,2223/08,SME,Y,50%
422937,RIX PETROLEUM (EAST ANGLIA) LTD,"10,854.90",Open Spaces,Plant & Vehicle Fuel,02-Nov-22,2223/08,SME,N,
363688,KNOWLES ASSOCIATES TFM LTD,"8,476.00",Building Services,Vehicle Hire,12-Oct-22,2223/08,SME,Y,50%
363689,KNOWLES ASSOCIATES TFM LTD,"16,952.00",Building Services,Vehicle Hire,19-Oct-22,2223/08,SME,Y,50%
363449,VIVID RESOURCING,"1,710.00",Business Cont/Emergency Plan,Contracted Services,26-Oct-22,2223/08,SME,Y,50%
363614,VIVID RESOURCING,"1,710.00",Business Cont/Emergency Plan,Contracted Services,02-Nov-22,2223/08,SME,Y,50%
363460,NORTHUMBRIAN WATER LTD,33.46,Cedars Park,Legionella Testing,26-Oct-22,2223/08,LGE,N,
363460,NORTHUMBRIAN WATER LTD,33.46,Creeting Rd Depot,Legionella Testing,26-Oct-22,2223/08,LGE,Y,50%
363460,NORTHUMBRIAN WATER LTD,33.48,Open Spaces,Legionella Testing,26-Oct-22,2223/08,LGE,N,
363460,NORTHUMBRIAN WATER LTD,507.82,Sheltered Accommodation,Legionella Testing,26-Oct-22,2223/08,LGE,N,
363460,NORTHUMBRIAN WATER LTD,39.53,Tacon Close Eye TDP,Legionella Testing,26-Oct-22,2223/08,LGE,N,
363460,NORTHUMBRIAN WATER LTD,39.53,Temporary Accommodation,Legionella Testing,26-Oct-22,2223/08,LGE,N,
363460,NORTHUMBRIAN WATER LTD,629.52,Tenancy Services,Legionella Testing,26-Oct-22,2223/08,LGE,N,
363460,NORTHUMBRIAN WATER LTD,72.99,Wingfield Barns,Legionella Testing,26-Oct-22,2223/08,LGE,N,
364236,NORTHUMBRIAN WATER LTD,33.46,Cedars Park,Legionella Testing,25-Nov-22,2223/08,LGE,N,
364236,NORTHUMBRIAN WATER LTD,33.46,Creeting Rd Depot,Legionella Testing,25-Nov-22,2223/08,LGE,Y,50%
364236,NORTHUMBRIAN WATER LTD,33.48,Open Spaces,Legionella Testing,25-Nov-22,2223/08,LGE,N,
364236,NORTHUMBRIAN WATER LTD,507.82,Sheltered Accommodation,Legionella Testing,25-Nov-22,2223/08,LGE,N,
364236,NORTHUMBRIAN WATER LTD,39.53,Tacon Close Eye TDP,Legionella Testing,25-Nov-22,2223/08,LGE,N,
364236,NORTHUMBRIAN WATER LTD,39.53,Temporary Accommodation,Legionella Testing,25-Nov-22,2223/08,LGE,N,
364236,NORTHUMBRIAN WATER LTD,629.52,Tenancy Services,Legionella Testing,25-Nov-22,2223/08,LGE,N,
364236,NORTHUMBRIAN WATER LTD,72.99,Wingfield Barns,Legionella Testing,25-Nov-22,2223/08,LGE,N,
363963,GIPPING OCCUPATIONAL HEALTH LTD,595,Organisational Devt,Contracted Services,15-Nov-22,2223/08,SME,Y,50%
363848,STOWMARKET A S D SATURDAY CLUBS,"6,510.00",Communities,Grants,09-Nov-22,2223/08,SME,N,
422905,STOWMARKET A S D SATURDAY CLUBS,"1,180.82",Bring Sites,Contributions & Donations,01-Nov-22,2223/08,SME,N,
363710,RESIDENTIALLY CHARTERED SURVEYORS,"2,050.00",Needham Market Middle School,Prof & Consultancy Fees,20-Oct-22,2223/08,SME,N,
363656,BRITISH RED CROSS,259,Organisational Devt,Health & Safety Training,22-Sep-22,2223/08,SME,N,
363316,TOP FLOORS (EAST ANGLIA) LTD,994.2,Other Temp Accommodation,"Equipment, Tools & Materials",14-Sep-22,2223/08,SME,N,
363545,TOP FLOORS (EAST ANGLIA) LTD,952.88,Other Temp Accommodation,"Equipment, Tools & Materials",26-Oct-22,2223/08,SME,N,
363787,TOP FLOORS (EAST ANGLIA) LTD,"1,299.71",Other Temp Accommodation,"Equipment, Tools & Materials",02-Nov-22,2223/08,SME,N,
363712,LUCY TAYLOR PHOTOGRAPHY,490,Events & Awards,Advertising&mkting (non-staff),20-Oct-22,2223/08,ST,Y,50%
364029,PORTAL PLAN QUEST LTD,924,Devt Management - Apps,Planning Fees,18-Nov-22,2223/08,SME,N,
363914,ABBEYCROFT LEISURE,"3,865.22",Holiday Activity Fund,"Equipment, Tools & Materials",11-Nov-22,2223/08,LGE,N,
363915,ABBEYCROFT LEISURE,"2,776.25",Holiday Activity Fund,"Equipment, Tools & Materials",11-Nov-22,2223/08,LGE,N,
363565,BELLWAY HOMES LIMITED (ESSEX DIVISION),"535,519.78","Cedars Park C & D, Stowmarket",Major Contracts,31-Oct-22,2223/08,LGE,N,
362841,HAMSON BARRON SMITH LTD,"1,500.00",BRRP-MarketTownVision&Invest,Prof & Consultancy Fees,30-Sep-22,2223/08,LGE,N,
363396,A C LEIGH (NORWICH) LTD,330.32,Building Services,"Equipment, Tools & Materials",17-Oct-22,2223/08,SME,N,
363486,A C LEIGH (NORWICH) LTD,270.6,Building Services,"Equipment, Tools & Materials",24-Oct-22,2223/08,SME,N,
363487,A C LEIGH (NORWICH) LTD,311.4,Building Services,"Equipment, Tools & Materials",24-Oct-22,2223/08,SME,N,
363939,A C LEIGH (NORWICH) LTD,616,Building Services,"Equipment, Tools & Materials",09-Nov-22,2223/08,SME,N,
363941,A C LEIGH (NORWICH) LTD,250.48,Building Services,"Equipment, Tools & Materials",10-Nov-22,2223/08,SME,N,
363943,A C LEIGH (NORWICH) LTD,610.22,Building Services,"Equipment, Tools & Materials",11-Nov-22,2223/08,SME,N,
364077,A C LEIGH (NORWICH) LTD,282.6,Building Services,"Equipment, Tools & Materials",16-Nov-22,2223/08,SME,N,
363837,SUFFOLK POWER EQUIPMENT,349.86,Open Spaces,Plant & Vehicle - Other costs,09-Nov-22,2223/08,ST,N,
363998,SUFFOLK POWER EQUIPMENT,"1,003.00",Open Spaces,Plant & Vehicle - Other costs,16-Nov-22,2223/08,ST,N,
363999,SUFFOLK POWER EQUIPMENT,"6,380.00",Open Spaces,"Equipment, Tools & Materials",16-Nov-22,2223/08,ST,Y,50%
363519,3 POINT PROPERTY MANAGEMENT LTD,595,Guaranteed Rent Scheme,Rent Payable,31-Oct-22,2223/08,SME,N,
363718,3 POINT PROPERTY MANAGEMENT LTD,895,Guaranteed Rent Scheme,Rent Payable,07-Nov-22,2223/08,SME,N,
363721,3 POINT PROPERTY MANAGEMENT LTD,675,Guaranteed Rent Scheme,Rent Payable,07-Nov-22,2223/08,SME,N,
363732,3 POINT PROPERTY MANAGEMENT LTD,825,Guaranteed Rent Scheme,Rent Payable,08-Nov-22,2223/08,SME,N,
363296,COOKS BLIND AND SHUTTERS LTD,342,Creeting Rd Depot,Grounds & Site Maintenance,17-Oct-22,2223/08,SME,Y,50%
364321,FLAGSHIP HOUSING GROUP LTD-RENT ACCOUNT,523.55,Homeless Prevention Fund,Misc Supplies & Services Costs,30-Nov-22,2223/08,LGE,N,
422900,FLAGSHIP HOUSING GROUP LTD-RENT ACCOUNT,"1,192.30",Rent Deposit Scheme,Misc Premises Costs,01-Nov-22,2223/08,LGE,N,
364009,HUGHES TRADE,298.6,Other Temp Accommodation,Furniture,17-Nov-22,2223/08,LGE,N,
364052,HUGHES TRADE,882.91,Temporary Accommodation,Furniture,18-Nov-22,2223/08,LGE,N,
363636,APTL ENTERPRISES LTD,"4,326.67",PV Panels,Contracted Services,31-Oct-22,2223/08,SME,N,
363571,WASHCO LTD,467,Sheltered Accommodation,"Equipment, Tools & Materials",01-Nov-22,2223/08,SME,N,
363566,PEOPLE FOCUSED TRAINING & SOLUTIONS LTD,300,Organisational Devt,Corporate Training,30-Oct-22,2223/08,ST,Y,50%
363357,ANGLIA COMMERCIAL FLOORING LTD,500.25,Building Services,Repairs,26-Sep-22,2223/08,SME,N,
363358,ANGLIA COMMERCIAL FLOORING LTD,"1,090.80",Building Services,Repairs,29-Sep-22,2223/08,SME,N,
363359,ANGLIA COMMERCIAL FLOORING LTD,721.51,Building Services,Repairs,11-Oct-22,2223/08,SME,N,
363361,ANGLIA COMMERCIAL FLOORING LTD,962.02,Building Services,Repairs,11-Oct-22,2223/08,SME,N,
363362,ANGLIA COMMERCIAL FLOORING LTD,481.8,Building Services,Repairs,11-Oct-22,2223/08,SME,N,
363461,ANGLIA COMMERCIAL FLOORING LTD,"1,118.96",Building Services,Repairs,26-Oct-22,2223/08,SME,N,
363462,ANGLIA COMMERCIAL FLOORING LTD,700.23,Kitchens/Bathrooms,Repairs,26-Oct-22,2223/08,SME,N,
422939,ANGLIAN WATER BUS (NAT) LTD T/A WAVE,-32.11,"11 Market Place, Stowmarket",Water Rates - Metered,12-Nov-22,2223/08,LGE,N,
422939,ANGLIAN WATER BUS (NAT) LTD T/A WAVE,32.26,General/Supervision & Mgmt,Water Rates - Metered,12-Nov-22,2223/08,LGE,N,
422939,ANGLIAN WATER BUS (NAT) LTD T/A WAVE,128.23,Headquarters General,Water Rates - Metered,12-Nov-22,2223/08,LGE,N,
422939,ANGLIAN WATER BUS (NAT) LTD T/A WAVE,130.22,Open Spaces,Water Rates - Metered,12-Nov-22,2223/08,LGE,N,
422939,ANGLIAN WATER BUS (NAT) LTD T/A WAVE,666.56,Public Conveniences,Water Rates - Metered,12-Nov-22,2223/08,LGE,N,
422939,ANGLIAN WATER BUS (NAT) LTD T/A WAVE,5.8,Recycling Centre,Water Rates - Metered,12-Nov-22,2223/08,LGE,N,
422939,ANGLIAN WATER BUS (NAT) LTD T/A WAVE,4.21,Sewage Treatment Works,Water Rates - Metered,12-Nov-22,2223/08,LGE,N,
422939,ANGLIAN WATER BUS (NAT) LTD T/A WAVE,"2,081.91",Sheltered Accommodation,Water Rates - Metered,12-Nov-22,2223/08,LGE,N,
422939,ANGLIAN WATER BUS (NAT) LTD T/A WAVE,14.04,Tacon Close Eye TDP,Water Rates - Metered,12-Nov-22,2223/08,LGE,N,
422939,ANGLIAN WATER BUS (NAT) LTD T/A WAVE,17.23,Temporary Accommodation,Water Rates - Metered,12-Nov-22,2223/08,LGE,N,
422939,ANGLIAN WATER BUS (NAT) LTD T/A WAVE,-114.84,Tenancy Services,Water Rates - Metered,12-Nov-22,2223/08,LGE,N,
422939,ANGLIAN WATER BUS (NAT) LTD T/A WAVE,21.28,Wingfield Barns,Water Rates - Metered,12-Nov-22,2223/08,LGE,N,
363319,GREENACRE RECRUITMENT LTD,"1,193.99",Housing Standards,Agency Staff,19-Oct-22,2223/08,SME,Y,50%
363451,GREENACRE RECRUITMENT LTD,"1,193.99",Housing Standards,Agency Staff,26-Oct-22,2223/08,SME,Y,50%
363635,GREENACRE RECRUITMENT LTD,"1,193.99",Housing Standards,Agency Staff,02-Nov-22,2223/08,SME,Y,50%
363821,GREENACRE RECRUITMENT LTD,"1,183.26",Housing Standards,Agency Staff,09-Nov-22,2223/08,SME,Y,50%
363996,GREENACRE RECRUITMENT LTD,"1,087.32",Housing Standards,Agency Staff,16-Nov-22,2223/08,SME,Y,50%
363997,GREENACRE RECRUITMENT LTD,"2,252.30",Building Services,Agency Staff,16-Nov-22,2223/08,SME,Y,50%
364147,GREENACRE RECRUITMENT LTD,991.38,Housing Standards,Agency Staff,23-Nov-22,2223/08,SME,Y,50%
364148,GREENACRE RECRUITMENT LTD,"2,283.35",Building Services,Agency Staff,23-Nov-22,2223/08,SME,Y,50%
364149,SYLEHAM VILLAGE HALL,930,CCB Warm Spaces,"Equipment, Tools & Materials",23-Nov-22,2223/08,SME,N,
363508,MID SUFFOLK GROWTH LTD,"1,827.70","Cedars Park C & D, Stowmarket",Prof & Consultancy Fees,31-Oct-22,2223/08,SME,N,
364139,THE CODDENHAM CENTRE,"2,480.00",CCB Warm Spaces,"Equipment, Tools & Materials",23-Nov-22,2223/08,SME,N,
364088,METFIELD ESTATES LTD,670,Guaranteed Rent Scheme,Rent Payable,21-Nov-22,2223/08,SME,N,
364118,PRIVATE LANDLORD,700,Rent Deposit Scheme,Misc Premises Costs,22-Nov-22,2223/08,ST,N,
364090,PENTACO CONSTRUCTION LTD,"352,886.00",Stowmarket Middle School,Major Contracts,03-Nov-22,2223/08,SME,N,
364028,M P REAL ESTATE LTD,"1,602.50",Pure Gym & Adjacent Building,Prof & Consultancy Fees,17-Nov-22,2223/08,SME,N,
363441,ELLISONS SOLICITORS,800,"Mill Road, Laxfield",Prof & Consultancy Fees,27-Apr-22,2223/08,SME,N,
363443,ELLISONS SOLICITORS,"16,260.76",Land at Walsham le Willows,Prof & Consultancy Fees,19-Jul-22,2223/08,SME,N,
363444,ELLISONS SOLICITORS,"9,806.80",Sheltered Accommodation,Prof & Consultancy Fees,15-Jul-22,2223/08,SME,N,
364204,ELLISONS SOLICITORS,"1,433.95",New Bld/acquisition,Prof & Consultancy Fees,18-Nov-22,2223/08,SME,N,
363530,THE KINETIC SCIENCE FOUNDATION,540,Holiday Activity Fund,"Equipment, Tools & Materials",01-Nov-22,2223/08,SME,N,
363678,EYES OPEN CIC,"19,657.00",Communities,Grants,04-Nov-22,2223/08,SME,N,
364080,LIMELEASE LTD,395,Guaranteed Rent Scheme,Rent Payable,21-Nov-22,2223/08,SME,N,
363898,BUCHER MUNICIPAL LTD,509.71,Street & Major Road Cleansing,"Equipment, Tools & Materials",09-Nov-22,2223/08,LGE,N,
363894,GIPPING CONSTRUCTION LTD,"19,259.87",Regen Fund - HQ Sites,Prof & Consultancy Fees,07-Nov-22,2223/08,SME,N,
363894,GIPPING CONSTRUCTION LTD,"252,146.13",Needham Market Middle School,Prof & Consultancy Fees,07-Nov-22,2223/08,SME,N,
364087,PRIVATE LANDLORD,786.5,Guaranteed Rent Scheme,Rent Payable,21-Nov-22,2223/08,ST,N,
363719,PAUL WRIGHT & CO,775,Guaranteed Rent Scheme,Rent Payable,07-Nov-22,2223/08,SME,N,
363265,AFFINITY HEALTH AT WORK LTD,"1,444.22",Organisational Devt,Training,17-Oct-22,2223/08,SME,Y,50%
363475,AMPLIS CONSTRUCTION LTD,"63,531.44","Fences, Gates and Walls",Improvements,29-Jul-22,2223/08,SME,N,
363973,SUFFOLK DOORS & WINDOWS LTD,"6,100.00",Window & Door Rplcmts,Repairs,16-Nov-22,2223/08,SME,N,
363699,PRIVATE LANDLORD,786.5,Guaranteed Rent Scheme,Rent Payable,07-Nov-22,2223/08,ST,N,
363653,COUNTRYSTYLE RECYCLING LTD,262,Trade Waste,Trade Waste Disposal,31-Oct-22,2223/08,SME,Y,50%
363654,COUNTRYSTYLE RECYCLING LTD,"4,082.16",Bring Sites,Contracted Services,31-Oct-22,2223/08,SME,N,
363561,DGL QUALITY MANAGEMENT LTD,"1,092.00",Stowmarket Middle School,Prof & Consultancy Fees,31-Oct-22,2223/08,SME,N,
363562,DGL QUALITY MANAGEMENT LTD,870.76,Needham Market Middle School,Prof & Consultancy Fees,31-Oct-22,2223/08,SME,N,
363641,OAKS MEADOW PROJECT CIO,"1,000.00",Grants & Contrbns,Contributions & Donations,02-Nov-22,2223/08,SME,N,
364245,CARE PLUS STAFFORDSHIRE LTD,"6,566.61",Sheltered General Mgmt,Community Alarm Costs,25-Nov-22,2223/08,SME,N,
364245,CARE PLUS STAFFORDSHIRE LTD,58.37,Homelessness Private Sector,Telephone Costs,25-Nov-22,2223/08,SME,N,
364245,CARE PLUS STAFFORDSHIRE LTD,496.15,Building Services,Telephone Costs,25-Nov-22,2223/08,SME,N,
364245,CARE PLUS STAFFORDSHIRE LTD,58.37,Animal Welfare Licensing,Telephone Costs,25-Nov-22,2223/08,SME,N,
364245,CARE PLUS STAFFORDSHIRE LTD,58.37,Bldg Control Commercial Income,Telephone Costs,25-Nov-22,2223/08,SME,N,
364245,CARE PLUS STAFFORDSHIRE LTD,58.37,Civil Protection & Emerg Plg,Telephone Costs,25-Nov-22,2223/08,SME,N,
364246,CARE PLUS STAFFORDSHIRE LTD,"7,456.60",Sheltered General Mgmt,Community Alarm Costs,05-Oct-22,2223/08,SME,N,
364246,CARE PLUS STAFFORDSHIRE LTD,66.28,Temporary Accommodation,Telephone Costs,05-Oct-22,2223/08,SME,N,
364246,CARE PLUS STAFFORDSHIRE LTD,563.39,Building Services,Telephone Costs,05-Oct-22,2223/08,SME,N,
364246,CARE PLUS STAFFORDSHIRE LTD,66.28,Animal Welfare Licensing,Telephone Costs,05-Oct-22,2223/08,SME,N,
364246,CARE PLUS STAFFORDSHIRE LTD,22.09,Bldg Regs Chargeable Serv,Telephone Costs,05-Oct-22,2223/08,SME,N,
364246,CARE PLUS STAFFORDSHIRE LTD,22.09,Bldg Regs Non-Chargeable Serv,Telephone Costs,05-Oct-22,2223/08,SME,N,
364246,CARE PLUS STAFFORDSHIRE LTD,22.09,Bldg Regs Other Activities,Telephone Costs,05-Oct-22,2223/08,SME,N,
364246,CARE PLUS STAFFORDSHIRE LTD,66.29,Civil Protection & Emerg Plg,Telephone Costs,05-Oct-22,2223/08,SME,N,
363773,BSEVC,"3,231.26",Wellbeing CCG Funding,Contributions & Donations,07-Nov-22,2223/08,SME,N,
361677,ARAN INSULATION LTD,"10,778.18",Insulation Imps,Improvements,04-Aug-22,2223/08,SME,N,
363402,ARAN INSULATION LTD,"3,852.84",Insulation Imps,Improvements,24-Oct-22,2223/08,SME,N,
363403,ARAN INSULATION LTD,"3,981.93",Insulation Imps,BMBS Repairs Work,24-Oct-22,2223/08,SME,N,
363439,ARAN INSULATION LTD,690.88,Insulation Imps,Improvements,26-Oct-22,2223/08,SME,N,
363440,ARAN INSULATION LTD,"1,377.21",Building Services,Repairs,26-Oct-22,2223/08,SME,N,
363458,ARAN INSULATION LTD,649.88,Insulation Imps,Improvements,26-Oct-22,2223/08,SME,N,
363516,ARAN INSULATION LTD,766.41,Insulation Imps,Improvements,31-Oct-22,2223/08,SME,N,
363647,ARAN INSULATION LTD,"1,190.87",Insulation Imps,Improvements,31-Oct-22,2223/08,SME,N,
363666,ARAN INSULATION LTD,"10,558.84",Insulation Imps,Improvements,03-Nov-22,2223/08,SME,N,
363758,ARAN INSULATION LTD,"2,991.19",Insulation Imps,Improvements,07-Nov-22,2223/08,SME,N,
363785,ARAN INSULATION LTD,"2,913.19",Insulation Imps,Improvements,08-Nov-22,2223/08,SME,N,
363926,ARAN INSULATION LTD,"1,440.00",Insulation Imps,Improvements,14-Nov-22,2223/08,SME,N,
363927,ARAN INSULATION LTD,"3,837.79",Insulation Imps,Improvements,14-Nov-22,2223/08,SME,N,
363961,ARAN INSULATION LTD,"2,925.62",Insulation Imps,Improvements,15-Nov-22,2223/08,SME,N,
363995,ARAN INSULATION LTD,667.37,Insulation Imps,Improvements,16-Nov-22,2223/08,SME,N,
364022,ARAN INSULATION LTD,"22,859.97",Insulation Imps,Improvements,17-Nov-22,2223/08,SME,N,
364073,ARAN INSULATION LTD,"2,277.61",Insulation Imps,Improvements,08-Aug-22,2223/08,SME,N,
364073,ARAN INSULATION LTD,"1,016.64",Building Services,Repairs,08-Aug-22,2223/08,SME,N,
364073,ARAN INSULATION LTD,650.88,Insulation Imps,Improvements,08-Aug-22,2223/08,SME,N,
364234,ARAN INSULATION LTD,811.87,Dampness,Repairs,27-Sep-22,2223/08,SME,N,
364125,TREECONOMICS LTD,"2,700.00",Open Spaces,Contracted Services,19-Oct-22,2223/08,SME,Y,50%
363527,IAN BOOTH CONSULTANT ENGINEER LTD,370.4,Roads and Paths,Improvements,31-Oct-22,2223/08,SME,N,
363696,MARCHDELL LTD,715,Guaranteed Rent Scheme,Rent Payable,07-Nov-22,2223/08,SME,N,
363500,PRIVATE LANDLORD,"1,300.00",Guaranteed Rent Scheme,Rent Payable,31-Oct-22,2223/08,SME,N,
364278,PRIVATE LANDLORD,"1,300.00",Guaranteed Rent Scheme,Rent Payable,28-Nov-22,2223/08,SME,N,
363746,URBA,"10,538.00",Devt Management - Appeals,Viability,07-Nov-22,2223/08,SME,N,
364111,E.ON NEXT,353.81,Other HRA Temp Accommodation,Heating Charges,15-Nov-22,2223/08,LGE,N,
363717,IPSERV LTD,"1,615.97",Communications,Commercial Printing,04-Nov-22,2223/08,SME,N,
363615,SSE,"1,188.27",Voids Maintenance,Electricity,28-Oct-22,2223/08,LGE,N,
364086,PRIVATE LANDLORD,669,Guaranteed Rent Scheme,Rent Payable,21-Nov-22,2223/08,ST,N,
364159,ROOKERY BOWLS CLUB,"1,500.00",CCB Warm Spaces,"Equipment, Tools & Materials",23-Nov-22,2223/08,SME,N,
363698,PRIVATE LANDLORD,650,Guaranteed Rent Scheme,Rent Payable,07-Nov-22,2223/08,ST,N,
363667,BUCKINGHAM FUTURES,"1,665.00",Covid-19 Test and Trace,Agency Staff,02-Nov-22,2223/08,SME,Y,50%
363891,BUCKINGHAM FUTURES,"1,665.00",Covid-19 Test and Trace,Agency Staff,09-Nov-22,2223/08,SME,Y,50%
364035,BUCKINGHAM FUTURES,"1,665.00",Covid-19 Test and Trace,Agency Staff,16-Nov-22,2223/08,SME,Y,50%
363767,MK AUTOS MOT CENTRE LIMITED,350,Taxi & Private Hire Licensing,Contracted Services,27-Oct-22,2223/08,SME,N,
363532,RICHARD WILLS TRAINING ASSOCIATES LTD,"2,005.00",Organisational Devt,Corporate Training,01-Nov-22,2223/08,ST,Y,50%
363700,PRIVATE LANDLORD,555,Guaranteed Rent Scheme,Rent Payable,07-Nov-22,2223/08,SME,N,
363930,HAUGHLEY VETERINARY CENTRE,262.72,Animal Welfare Licensing,Prof & Consultancy Fees,12-Oct-22,2223/08,SME,N,
363733,SHJ HOMES LTD,500,Guaranteed Rent Scheme,Rent Payable,08-Nov-22,2223/08,SME,N,
364089,SHJ HOMES LTD,550,Guaranteed Rent Scheme,Rent Payable,21-Nov-22,2223/08,SME,N,
363618,METRIC GROUP LTD,"8,440.52",Pld Maint/ Enhncmts-C Parks,"Equipment, Tools & Materials",02-Nov-22,2223/08,SME,N,
363613,HAUGHLEY UNITED YOUTH FOOTBALL CLUB,"1,500.00",Grants & Contrbns,Contributions & Donations,02-Nov-22,2223/08,SME,N,
363592,SLM COMMUNITY LEISURE CHARITABLE TRUST,"1,160.40",Grants & Contrbns,Contributions & Donations,02-Nov-22,2223/08,SME,N,
364044,STOWMARKET REMOVALS,900,Homeless Prevention Fund,Removal Expenses,18-Nov-22,2223/08,SME,N,
363799,LANDEX LTD,999.48,Tenancy Services,Other Service Charges,13-Oct-22,2223/08,SME,N,
363544,DUDLEY SMITH PARTNERSHIP LTD,"1,500.00",Cross Street Tech Hub,Prof & Consultancy Fees,31-Oct-22,2223/08,SME,N,
363708,CEDARS PARK ART CIC,"1,298.02",Transformation Fund,Contributions & Donations,07-Nov-22,2223/08,SME,N,
364161,WOOLPIT ROOM,400,CCB Warm Spaces,"Equipment, Tools & Materials",23-Nov-22,2223/08,SME,N,
364256,BEDFIELD & MONK SOHAM COMMUNITY CLUB,630.59,CCB Warm Spaces,"Equipment, Tools & Materials",28-Nov-22,2223/08,SME,N,
363555,DLUHC,"15,899.00",RoughSleepersInterventionYr3,Misc Supplies & Services Costs,01-Nov-22,2223/08,LGE,N,
364004,ORIGIN AMENITY SOLUTIONS LTD,"1,440.00",Open Spaces,"Equipment, Tools & Materials",16-Nov-22,2223/08,SME,N,
364030,ORIGIN AMENITY SOLUTIONS LTD,600,Open Spaces,"Equipment, Tools & Materials",17-Nov-22,2223/08,SME,N,
363502,HAMILTON SMITH LETTINGS,500,Guaranteed Rent Scheme,Rent Payable,31-Oct-22,2223/08,SME,N,
363518,HAMILTON SMITH LETTINGS,500,Guaranteed Rent Scheme,Rent Payable,31-Oct-22,2223/08,SME,N,
363720,HAMILTON SMITH LETTINGS,590,Guaranteed Rent Scheme,Rent Payable,08-Nov-22,2223/08,SME,N,
363731,HAMILTON SMITH LETTINGS,550,Guaranteed Rent Scheme,Rent Payable,08-Nov-22,2223/08,SME,N,
363924,HAMILTON SMITH LETTINGS,775,Guaranteed Rent Scheme,Rent Payable,14-Nov-22,2223/08,SME,N,
364081,HAMILTON SMITH LETTINGS,500,Guaranteed Rent Scheme,Rent Payable,21-Nov-22,2223/08,SME,N,
364284,HAMILTON SMITH LETTINGS,500,Guaranteed Rent Scheme,Rent Payable,28-Nov-22,2223/08,SME,N,
364285,HAMILTON SMITH LETTINGS,500,Guaranteed Rent Scheme,Rent Payable,28-Nov-22,2223/08,SME,N,
363929,PAY 360 LIMITED,"9,429.06",Bank Chgs,Bank Charges,11-Nov-22,2223/08,LGE,N,
363701,THE FOOD MUSEUM LTD,"10,000.00",Grants & Contrbns,Grants,04-Nov-22,2223/08,SME,N,
363959,TILE HILL INTERIM & EXECUTIVE LTD,"10,500.00",Organisational Devt,Agency Staff,08-Nov-22,2223/08,SME,Y,50%
363969,A W & D HAMMOND LTD,"1,000.00",Vehicle and Plant Renewals,Plant & Vehicle - Purchase,30-Sep-22,2223/08,LGE,N,
363536,SCOTTISH POWER,295.58,"11 Market Place, Stowmarket",Electricity,22-Oct-18,2223/08,LGE,N,
363537,SCOTTISH POWER,261.72,"11 Market Place, Stowmarket",Electricity,22-Oct-18,2223/08,LGE,N,
363538,SCOTTISH POWER,335.73,"11 Market Place, Stowmarket",Electricity,22-Oct-18,2223/08,LGE,N,
363564,SCOTTISH POWER,116.44,Tenancy Services,Electricity,14-Oct-22,2223/08,LGE,N,
363564,SCOTTISH POWER,194.41,Tenancy Services,Gas,14-Oct-22,2223/08,LGE,N,
363697,PRIVATE LANDLORD,900,Guaranteed Rent Scheme,Rent Payable,07-Nov-22,2223/08,SME,N,
363695,PRIVATE LANDLORD,875,Guaranteed Rent Scheme,Rent Payable,07-Nov-22,2223/08,ST,N,
363484,BENICIA PROPERTIES LTD,650,Guaranteed Rent Scheme,Rent Payable,31-Oct-22,2223/08,SME,N,
364283,BENICIA PROPERTIES LTD,650,Guaranteed Rent Scheme,Rent Payable,24-Nov-22,2223/08,SME,N,
422942,BENICIA PROPERTIES LTD,575,Guaranteed Rent Scheme,Rent Payable,18-Nov-22,2223/08,SME,N,
422942,BENICIA PROPERTIES LTD,"1,500.00",Guaranteed Rent Scheme,Misc Supplies & Services Costs,18-Nov-22,2223/08,SME,N,
364268,PRIVATE LANDLORD,800,Guaranteed Rent Scheme,Rent Payable,28-Nov-22,2223/08,ST,N,
363665,NEWSQUEST MEDIA GROUP,794.15,Devt Management - Apps,Advertising&mkting (non-staff),03-Nov-22,2223/08,LGE,N,
363883,NEWSQUEST MEDIA GROUP,557.76,Devt Management - Apps,Advertising&mkting (non-staff),10-Nov-22,2223/08,LGE,N,
364071,NEWSQUEST MEDIA GROUP,951.74,Devt Management - Apps,Advertising&mkting (non-staff),18-Nov-22,2223/08,LGE,N,
364194,NEWSQUEST MEDIA GROUP,794.15,Devt Management - Apps,Advertising&mkting (non-staff),24-Nov-22,2223/08,LGE,N,
363650,FMG CONSULTING LTD,"3,750.00",SHELF Project,Prof & Consultancy Fees,31-Oct-22,2223/08,SME,N,
363660,FMG CONSULTING LTD,"3,750.00",SHELF Project,Prof & Consultancy Fees,30-Sep-22,2223/08,SME,N,
364141,NEWAYS GROUP LTD,"5,379.00",Major Imps,Repairs,31-Oct-22,2223/08,SME,N,
364069,INSIGHT TECHNOLOGY (SUFFOLK) LTD,"2,106.00",Sheltered Accommodation,Fire Prevention,19-Nov-22,2223/08,SME,N,
363912,BELL DECORATING GROUP LTD,"6,598.41",Planned Maint - Ext Painting,Major Contracts,11-Nov-22,2223/08,LGE,N,
363595,HAUGHLEY WOMENS INSTITUTE,933,Grants & Contrbns,Contributions & Donations,02-Nov-22,2223/08,SME,N,
363730,PRIVATE LANDLORD,800,Guaranteed Rent Scheme,Rent Payable,08-Nov-22,2223/08,ST,N,
363676,FAMILIES TOGETHER SUFFOLK,"7,246.00",Communities,Grants,04-Nov-22,2223/08,SME,N,
363676,FAMILIES TOGETHER SUFFOLK,"12,754.00",Policy & Strategy (H & W),Contributions & Donations,04-Nov-22,2223/08,SME,N,
364127,LEAD GENERA LTD,"4,225.00",Economy & Business,Prof & Consultancy Fees,02-Nov-22,2223/08,SME,Y,50%
363841,COUNTERCULTURE PARTNERSHIP LLP,"7,200.00",Town Centres,Prof & Consultancy Fees,07-Nov-22,2223/08,SME,N,
364129,STEALTH REMOVALS LTD,276,Homeless Prevention Fund,Removal Expenses,10-Nov-22,2223/08,SME,N,
363643,STONES OF STRADBROKE,"6,110.00",Mand Disabled Facilities Grant,Grants,03-Nov-22,2223/08,SME,N,
363664,FIS WINDOWS LTD,"1,750.74",Mand Disabled Facilities Grant,Grants,03-Nov-22,2223/08,SME,N,
363849,PACT CIC,"4,236.00",Policy & Strategy (H & W),Contributions & Donations,09-Nov-22,2223/08,SME,N,
363850,HOURGLASS (SAFER AGEING),"15,277.50",Community Wellbeing,Contributions & Donations,09-Nov-22,2223/08,SME,N,
363776,SYLEHAM & WINGFIELD VILLAGE HALL COMMITT,"1,000.00",Grants & Contrbns,Contributions & Donations,07-Nov-22,2223/08,SME,N,
363847,CRUSE BEREAVEMENT SUPPORT,"4,952.00",Communities,Grants,09-Nov-22,2223/08,SME,N,
363861,RAY FLACK MASTER THATCHER,"15,600.00",Renovation/Home Repair Grants,Grants,10-Nov-22,2223/08,ST,N,
363905,ANGELUS LAW LTD,"8,000.00",Building Services,BMBS Repairs Work,11-Nov-22,2223/08,SME,N,
364045,MILLS & REEVE LLP,"9,545.00",Pure Gym & Adjacent Building,Prof & Consultancy Fees,18-Nov-22,2223/08,LGE,N,
364208,EYE SAINTS COMMUNITY BOULES CLUB,"1,000.00",Grants & Contrbns,Contributions & Donations,25-Nov-22,2223/08,SME,N,
364210,MELLIS FARMERS MARKET MANAGEMENT GROUP,260,Grants & Contrbns,Contributions & Donations,25-Nov-22,2223/08,SME,N,
364229,BEAM UP LTD,"50,000.00",MSM Housing Solutions,Misc Supplies & Services Costs,30-Nov-22,2223/08,SME,N,
364211,SUFFOLK PRICKLES HEDGEHOG RESCUE,600,Grants & Contrbns,Contributions & Donations,25-Nov-22,2223/08,SME,N,
364146,CLARKE AND SIMPSON,"2,211.54",Rent Deposit Scheme,Misc Premises Costs,23-Nov-22,2223/08,SME,N,
364104,DPC PLUMBING & HEATING LTD,"3,090.00",Renovation/Home Repair Grants,Grants,21-Nov-22,2223/08,SME,N,
364122,MARTINEAU ESTATE,"2,435.05",Renovation/Home Repair Grants,Grants,22-Nov-22,2223/08,SME,N,
364230,STRADBROKE BAPTIST CHURCH,"3,350.00",CCB Warm Spaces,"Equipment, Tools & Materials",25-Nov-22,2223/08,SME,N,
364254,WOOLPIT GOOD NEIGHBOUR SCHEME,"2,100.00",CCB Warm Spaces,"Equipment, Tools & Materials",28-Nov-22,2223/08,SME,N,
364279,CLAYDON & BARHAM PAROCHIAL CHURCH COUNCI,375,CCB Warm Spaces,"Equipment, Tools & Materials",28-Nov-22,2223/08,SME,N,
272,ENGLISH SECURITY,-37.5,Sheltered Accommodation,Fire Prevention,30-Nov-22,2223/08,SME,N,
DDT0001122,PLUSNET PLC,13.73,Current Assets,LLOYDS GENERAL PAYMENTS,31-Oct-22,2223/08,LGE,N,
364259,WORKWEAR (EAST ANGLIA) LTD,-48.87,Building Services,Protective clothing,14-Sep-22,2223/08,SME,Y,50%
363910,ARAN INSULATION LTD,-222.31,Insulation Imps,Improvements,10-Nov-22,2223/08,SME,N,
363768,MK AUTOS MOT CENTRE LIMITED,-50,Taxi & Private Hire Licensing,Contracted Services,09-May-22,2223/08,SME,N,
990,PAY 360 LIMITED,-200.22,Bank Chgs,Bank Charges,01-Nov-22,2223/08,LGE,N,
EBC0047872,PAY 360 LIMITED,200.22,Current Assets,LLOYDS GENERAL PAYMENTS,02-Nov-22,2223/08,LGE,N,
0000364195,AARON SERVICES LTD,"29,189.01",Planned Maint - Heating,Property Servicing,30 Sep 2022,2223/09,SME,N,
0000364196,AARON SERVICES LTD,"29,189.01",Planned Maint - Heating,Property Servicing,26 Oct 2022,2223/09,SME,N,
0000364257,AARON SERVICES LTD,"29,189.01",Planned Maint - Heating,Property Servicing,28 Nov 2022,2223/09,SME,N,
0000364605,AARON SERVICES LTD,"6,564.24",Planned Maint - Heating,Property Servicing,20 May 2022,2223/09,SME,N,
0000422960,AARON SERVICES LTD,877.96,Voids Maintenance,Repairs,07 Dec 2022,2223/09,SME,N,
0000422960,AARON SERVICES LTD,"10,162.93",Planned Maint - Heating,Property Servicing,07 Dec 2022,2223/09,SME,N,
0000422961,AARON SERVICES LTD,"1,211.66",Voids Maintenance,Repairs,07 Dec 2022,2223/09,SME,N,
0000422961,AARON SERVICES LTD,"6,735.00",Planned Maint - Heating,Property Servicing,07 Dec 2022,2223/09,SME,N,
0000422967,AARON SERVICES LTD,834.65,Voids Maintenance,Repairs,20 Dec 2022,2223/09,SME,N,
0000422967,AARON SERVICES LTD,645.05,Planned Maint - Heating,Property Servicing,20 Dec 2022,2223/09,SME,N,
0000364712,AE WHITE SURFACING,"18,542.00",Pld Maint/ Enhncmts-C Parks,Annual Bldg Maint Contracts,13 Dec 2022,2223/09,SME,N,
0000364749,AE WHITE SURFACING,"8,928.00",Council House Adaptions,Improvements,14 Dec 2022,2223/09,SME,N,
0000364894,AE WHITE SURFACING,"5,720.00",Public Sector Decarbonisation,Prof & Consultancy Fees,16 Dec 2022,2223/09,SME,N,
0000364939,ANGLIA RUSKIN UNIVERSITY,"4,450.00",Organisational Devt,Post-Entry Training,21 Apr 2022,2223/09,LGE,Y,50%
0000364355,ANGLIAN WATER,312.79,Tenancy Services,Water Rates - Metered,30 Nov 2022,2223/09,LGE,N,
0000364974,ANGLIAN WATER,272.25,Temporary Accommodation,Water Rates - Metered,12 Sep 2022,2223/09,LGE,N,
0000365019,ANGLIAN WATER,279.37,Temporary Accommodation,Water Rates - Metered,12 Sep 2022,2223/09,LGE,N,
0000364728,AQUAJET CLEANING EQUIPMENT LTD,"1,020.00",Creeting Rd Depot,"Equipment, Tools & Materials",13 Dec 2022,2223/09,SME,Y,50%
0000364373,ASSOCIATION OF ELECTORAL ADMINISTRATORS,"1,704.30",Electoral Registration,Returning Officer Fees,18 Nov 2022,2223/09,SME,N,
0000364798,ASSOCIATION OF ELECTORAL ADMINISTRATORS,"2,445.00",Electoral Registration,Returning Officer Fees,15 Dec 2022,2223/09,SME,N,
0000364502,BINDER LTD,241.50,Sewage Treatment Works,Contracted Services,28 Sep 2022,2223/09,SME,N,
0000364502,BINDER LTD,13.00,Sewage Treatment Works,Repairs,28 Sep 2022,2223/09,SME,N,
0000364800,BINDER LTD,600.16,Sewage Treatment Works,Contracted Services,30 Nov 2022,2223/09,SME,N,
0000364993,BINDER LTD,353.72,Sewage Treatment Works,Contracted Services,20 Dec 2022,2223/09,SME,N,
0000364699,BUTTON & TURNER LTD,678.06,Open Spaces,Plant & Vehicle - Other costs,17 Nov 2022,2223/09,SME,N,
0000364700,BUTTON & TURNER LTD,364.28,Open Spaces,Plant & Vehicle - Other costs,21 Nov 2022,2223/09,SME,N,
0000364580,AQUASAMPLERS,465.00,Water Sampling,Sampling & Analysis,31 Oct 2022,2223/09,SME,N,
0000364890,AQUASAMPLERS,465.00,Water Sampling,Sampling & Analysis,31 Oct 2022,2223/09,SME,N,
0000364729,CEDARS HOTEL LTD,"34,650.00",RoughSleepersInterventionYr3,Misc Supplies & Services Costs,13 Dec 2022,2223/09,SME,N,
0000364730,CEDARS HOTEL LTD,"2,640.00",RoughSleepersInterventionYr3,Misc Supplies & Services Costs,13 Dec 2022,2223/09,SME,N,
0000364705,CENTRAL TYRE LTD,268.12,Open Spaces,Plant & Vehicle - Other costs,13 Dec 2022,2223/09,SME,N,
0000364576,CHAPPLE SIGNS LTD,288.93,Open Spaces,Plant & Vehicle - Other costs,07 Dec 2022,2223/09,SME,N,
0000364739,CHEQUERS HOTEL LTD,910.00,Homelessness Private Sector,B&B Costs,30 May 2022,2223/09,SME,N,
0000364740,CHEQUERS HOTEL LTD,910.00,Homelessness Private Sector,B&B Costs,30 May 2022,2223/09,SME,N,
0000363122,CHIPSIDE LTD,"1,440.00",C Parks General,Contracted Services,30 Sep 2022,2223/09,SME,N,
0000364445,CLARKE FENCING LTD,447.34,Open Spaces,"Equipment, Tools & Materials",01 Dec 2022,2223/09,SME,N,
0000364738,CLARKE FENCING LTD,512.00,Open Spaces,"Equipment, Tools & Materials",14 Dec 2022,2223/09,SME,N,
0000364714,D W ADAMS LTD,"1,631.00",Building Services,Repairs,13 Dec 2022,2223/09,SME,N,
0000364716,DENNIS EAGLE LTD,"196,425.00",Rplcmt Ref Freighters-Jnt Schm,Plant & Vehicle - Purchase,13 Dec 2022,2223/09,LGE,N,
0000364717,DENNIS EAGLE LTD,"196,425.00",Rplcmt Ref Freighters-Jnt Schm,Plant & Vehicle - Purchase,13 Dec 2022,2223/09,LGE,N,
0000364718,DENNIS EAGLE LTD,"196,425.00",Rplcmt Ref Freighters-Jnt Schm,Plant & Vehicle - Purchase,13 Dec 2022,2223/09,LGE,N,
0000364719,DENNIS EAGLE LTD,"196,425.00",Rplcmt Ref Freighters-Jnt Schm,Plant & Vehicle - Purchase,13 Dec 2022,2223/09,LGE,N,
0000364720,DENNIS EAGLE LTD,"196,425.00",Rplcmt Ref Freighters-Jnt Schm,Plant & Vehicle - Purchase,13 Dec 2022,2223/09,LGE,N,
0000364721,DENNIS EAGLE LTD,"196,425.00",Rplcmt Ref Freighters-Jnt Schm,Plant & Vehicle - Purchase,13 Dec 2022,2223/09,LGE,N,
0000364722,DENNIS EAGLE LTD,"196,425.00",Rplcmt Ref Freighters-Jnt Schm,Plant & Vehicle - Purchase,13 Dec 2022,2223/09,LGE,N,
0000364723,DENNIS EAGLE LTD,"207,545.00",Rplcmt Ref Freighters-Jnt Schm,Plant & Vehicle - Purchase,13 Dec 2022,2223/09,LGE,N,
0000364724,DENNIS EAGLE LTD,"207,545.00",Rplcmt Ref Freighters-Jnt Schm,Plant & Vehicle - Purchase,13 Dec 2022,2223/09,LGE,N,
0000364725,DENNIS EAGLE LTD,"207,545.00",Rplcmt Ref Freighters-Jnt Schm,Plant & Vehicle - Purchase,13 Dec 2022,2223/09,LGE,N,
0000364629,EAST ANGLIA CLEANING SERVICES LTD,451.47,Open Spaces,General Cleaning,28 Oct 2021,2223/09,SME,N,
0000365017,EAST ANGLIA CLEANING SERVICES LTD,"1,489.71",Jnt Waste Contract,General Cleaning,28 Dec 2022,2223/09,SME,Y,50%
0000365018,EAST ANGLIA CLEANING SERVICES LTD,451.47,Open Spaces,General Cleaning,28 Dec 2022,2223/09,SME,N,
0000364772,CIVICA ELECTION SERVICES,861.54,Electoral Registration,Returning Officer Fees,23 Nov 2022,2223/09,LGE,N,
0000364773,CIVICA ELECTION SERVICES,"4,688.16",Electoral Registration,Returning Officer Fees,23 Nov 2022,2223/09,LGE,N,
0000364774,CIVICA ELECTION SERVICES,"1,589.21",Electoral Registration,Returning Officer Fees,23 Nov 2022,2223/09,LGE,N,
0000364775,CIVICA ELECTION SERVICES,"10,629.98",Electoral Registration,Returning Officer Fees,23 Nov 2022,2223/09,LGE,N,
0000364327,ENGLISH SECURITY,300.00,Sheltered Accommodation,Fire Prevention,21 Nov 2022,2223/09,SME,N,
0000364544,ENGLISH SECURITY,135.30,Creeting Rd Depot,Fire Prevention,29 Nov 2022,2223/09,SME,Y,50%
0000364544,ENGLISH SECURITY,67.40,Other HRA Temp Accommodation,Fire Prevention,29 Nov 2022,2223/09,SME,N,
0000364544,ENGLISH SECURITY,570.89,Sheltered Accommodation,Fire Prevention,29 Nov 2022,2223/09,SME,N,
0000364544,ENGLISH SECURITY,223.01,Temporary Accommodation,Fire Prevention,29 Nov 2022,2223/09,SME,N,
0000364544,ENGLISH SECURITY,142.51,Tenancy Services,Fire Prevention,29 Nov 2022,2223/09,SME,N,
0000364300,ENVIROVENT LTD,460.00,Stairlifts,Repairs,29 Nov 2022,2223/09,SME,N,
0000364557,ENVIROVENT LTD,319.00,Insulation Imps,Improvements,06 Dec 2022,2223/09,SME,N,
0000364590,ENVIROVENT LTD,547.80,Dampness,Repairs,06 Dec 2022,2223/09,SME,N,
0000364702,ENVIROVENT LTD,319.00,Dampness,Repairs,07 Dec 2022,2223/09,SME,N,
0000364703,ENVIROVENT LTD,779.90,Insulation Imps,Improvements,07 Dec 2022,2223/09,SME,N,
0000364392,FELLBRIDGE BUILDING SERVICES,"1,311.52",Building Services,Repairs,01 Dec 2022,2223/09,SME,N,
0000364393,FELLBRIDGE BUILDING SERVICES,795.61,Building Services,Repairs,01 Dec 2022,2223/09,SME,N,
0000364394,FELLBRIDGE BUILDING SERVICES,425.66,Building Services,Repairs,01 Dec 2022,2223/09,SME,N,
0000364395,FELLBRIDGE BUILDING SERVICES,473.52,Building Services,Repairs,01 Dec 2022,2223/09,SME,N,
0000364396,FELLBRIDGE BUILDING SERVICES,919.92,Building Services,Repairs,01 Dec 2022,2223/09,SME,N,
0000364397,FELLBRIDGE BUILDING SERVICES,827.74,Insulation Imps,Improvements,01 Dec 2022,2223/09,SME,N,
0000364696,FELLBRIDGE BUILDING SERVICES,"13,712.43",Major Imps,Improvements,12 Dec 2022,2223/09,SME,N,
0000364765,FELLBRIDGE BUILDING SERVICES,"15,006.81",Building Services,Repairs,15 Dec 2022,2223/09,SME,N,
0000364783,FELLBRIDGE BUILDING SERVICES,"5,408.45",Major Imps,Improvements,15 Dec 2022,2223/09,SME,N,
0000364786,FELLBRIDGE BUILDING SERVICES,"2,956.73",Major Imps,Improvements,15 Dec 2022,2223/09,SME,N,
0000364789,FELLBRIDGE BUILDING SERVICES,742.26,Building Services,Repairs,03 Nov 2022,2223/09,SME,N,
0000364790,FELLBRIDGE BUILDING SERVICES,"1,421.65",Building Services,Repairs,03 Oct 2022,2223/09,SME,N,
0000364704,FORE-MOST GARAGE DOORS LTD,365.00,"Garages, Forecourts & Stores",Repairs,30 Nov 2022,2223/09,SME,N,
0000364760,G & G SIGNS,398.20,Street Naming & Numbering,Signs,14 Dec 2022,2223/09,SME,N,
0000364527,G4S CASH SOLUTIONS LTD,713.34,C Parks General,Audit Fees,30 Nov 2022,2223/09,LGE,N,
0000364334,GHB ROOFING,"14,869.40",Roofing,Repairs,30 Nov 2022,2223/09,SME,N,
0000364877,HAVEBURY HOUSING PARTNERSHIP,459.37,Homeless Prevention Fund,Misc Supplies & Services Costs,20 Dec 2022,2223/09,SME,N,
0000363983,INSTITUTE OF LICENSING (EVENTS) LTD,350.00,Organisational Devt,Training,07 Nov 2022,2223/09,SME,Y,50%
0000364332,JMP SERVICES LTD,880.00,Street & Major Road Cleansing,Contracted Services,30 Nov 2022,2223/09,SME,N,
0000364405,JOHN PEEL CENTRE FOR CREATIVE ARTS,"1,000.00",Grants & Contrbns,Contributions & Donations,01 Dec 2022,2223/09,SME,N,
0000364847,KEN GRIME & SON LTD,725.96,Building Services,Repairs,19 Dec 2022,2223/09,SME,N,
0000364848,KEN GRIME & SON LTD,"1,401.86",Building Services,Repairs,19 Dec 2022,2223/09,SME,N,
0000364851,KEN GRIME & SON LTD,260.00,Rewiring,Repairs,19 Dec 2022,2223/09,SME,N,
0000364845,KENDA-CLEAN,70.00,Creeting Rd Depot,Window Cleaning,18 Dec 2022,2223/09,SME,Y,50%
0000364845,KENDA-CLEAN,"2,699.00",Sheltered Accommodation,Window Cleaning,18 Dec 2022,2223/09,SME,N,
0000364845,KENDA-CLEAN,35.00,Tenancy Services,Window Cleaning,18 Dec 2022,2223/09,SME,N,
0000364309,LJ GAMMER (STOWMARKET) LTD,806.19,Building Services,Plant & Vehicle - Other costs,29 Nov 2022,2223/09,SME,Y,50%
0000364887,LJ GAMMER (STOWMARKET) LTD,746.78,Building Services,Plant & Vehicle - Other costs,20 Dec 2022,2223/09,SME,N,
0000364105,M & H CIVIL ENGINEERING LTD,763.30,Kitchens/Bathrooms,Repairs,21 Nov 2022,2223/09,SME,N,
0000364776,M & H CIVIL ENGINEERING LTD,913.70,Building Services,Repairs,15 Dec 2022,2223/09,SME,N,
0000364726,MARRIOTT HOLDINGS LTD,"1,875.00",C Parks-Stowmarket Lorry Park,Rent Payable,13 Dec 2022,2223/09,SME,N,
0000364372,MATERIAL CHANGE COMPOSTING LTD,799.92,Open Spaces,Waste Disposal,30 Nov 2022,2223/09,LGE,N,
0000364380,MATERIAL CHANGE COMPOSTING LTD,733.26,Open Spaces,Waste Disposal,30 Nov 2022,2223/09,LGE,N,
0000364402,MB TREES (EAST ANGLIA) LTD,"3,450.00",Public Tree Programme,Tree felling/maintenance,01 Dec 2022,2223/09,SME,N,
0000364639,MB TREES (EAST ANGLIA) LTD,"1,630.00",Neighbourhood Services,Grounds & Site Maintenance,09 Dec 2022,2223/09,SME,N,
0000364640,MB TREES (EAST ANGLIA) LTD,850.00,Public Tree Programme,Tree felling/maintenance,09 Dec 2022,2223/09,SME,N,
0000364665,MID SUFFOLK FENCING LTD,"1,050.00","Fences, Gates and Walls",Repairs,10 Dec 2022,2223/09,SME,N,
0000364666,MID SUFFOLK FENCING LTD,860.00,"Fences, Gates and Walls",Repairs,10 Dec 2022,2223/09,SME,N,
0000364667,MID SUFFOLK FENCING LTD,708.00,"Fences, Gates and Walls",Repairs,10 Dec 2022,2223/09,SME,N,
0000364668,MID SUFFOLK FENCING LTD,"2,338.00","Fences, Gates and Walls",Repairs,10 Dec 2022,2223/09,SME,N,
0000364669,MID SUFFOLK FENCING LTD,"4,152.00","Fences, Gates and Walls",Repairs,12 Dec 2022,2223/09,SME,N,
0000364706,MID SUFFOLK FENCING LTD,"1,490.00","Fences, Gates and Walls",Repairs,10 Dec 2022,2223/09,SME,N,
0000364814,MIXBROW LTD,"2,669.00",Council House Adaptions,Improvements,16 Dec 2022,2223/09,SME,N,
0000364821,MIXBROW LTD,"2,270.00",Council House Adaptions,Improvements,16 Dec 2022,2223/09,SME,N,
0000363972,REID PLUMBING & HEATING CONTRACTORS LTD,"15,142.13",Central Heating,Major Contracts,16 Nov 2022,2223/09,SME,N,
0000364115,REID PLUMBING & HEATING CONTRACTORS LTD,"26,438.54",Central Heating,Major Contracts,22 Nov 2022,2223/09,SME,N,
0000364297,REID PLUMBING & HEATING CONTRACTORS LTD,"10,769.18",Central Heating,Major Contracts,28 Nov 2022,2223/09,SME,N,
0000364326,REID PLUMBING & HEATING CONTRACTORS LTD,"12,524.31",Central Heating,Major Contracts,30 Nov 2022,2223/09,SME,N,
0000364539,REID PLUMBING & HEATING CONTRACTORS LTD,"25,906.06",Central Heating,Major Contracts,06 Dec 2022,2223/09,SME,N,
0000364701,REID PLUMBING & HEATING CONTRACTORS LTD,"10,709.67",Central Heating,Major Contracts,12 Dec 2022,2223/09,SME,N,
0000364707,REID PLUMBING & HEATING CONTRACTORS LTD,"8,723.99",Central Heating,Major Contracts,13 Dec 2022,2223/09,SME,N,
0000364330,SACKERS LTD,"2,752.07",Building Services,Waste Disposal,30 Nov 2022,2223/09,SME,Y,50%
0000364331,SACKERS LTD,651.90,Building Services,Waste Disposal,30 Nov 2022,2223/09,SME,Y,50%
0000364849,SANDY LANE NURSERY,"14,499.95",Open Spaces,Horticultural Purchases,21 Nov 2022,2223/09,SME,Y,50%
0000364369,SEAGER HOME SOLUTIONS,"67,423.92",Kitchens/Bathrooms,Major Contracts,30 Nov 2022,2223/09,SME,N,
0000364952,SEAGER HOME SOLUTIONS,"16,701.50",Renovation/Home Repair Grants,Grants,22 Dec 2022,2223/09,SME,N,
0000365014,SEAGER HOME SOLUTIONS,"5,813.00",Mand Disabled Facilities Grant,Grants,28 Dec 2022,2223/09,SME,N,
0000364857,SSI SCHAEFER LTD,"20,697.60",Bins,Bins,19 Dec 2022,2223/09,SME,N,
0000364587,SUFFOLK TREE SERVICES LTD,350.00,Public Tree Programme,Tree felling/maintenance,07 Dec 2022,2223/09,SME,N,
0000364958,SUFFOLK TREE SERVICES LTD,"1,175.00",Building Services,Repairs,20 Dec 2022,2223/09,SME,N,
0000364816,SUREFIX,"1,164.26",Major Imps,Repairs,16 Dec 2022,2223/09,SME,N,
0000364286,THERMATECH,"1,860.00",Sheltered Accommodation,Fire Prevention,17 Nov 2022,2223/09,SME,Y,50%
0000364521,THERMATECH,"1,925.00",Tenancy Services,Fire Prevention,05 Dec 2022,2223/09,SME,N,
0000364295,THOMPSON COOPER LTD,"1,326.00",Street & Major Road Cleansing,"Equipment, Tools & Materials",28 Nov 2022,2223/09,SME,N,
0000364514,THOMPSON COOPER LTD,"1,326.00",Street & Major Road Cleansing,"Equipment, Tools & Materials",05 Dec 2022,2223/09,SME,N,
0000364865,THOMPSON COOPER LTD,"1,325.83",Street & Major Road Cleansing,"Equipment, Tools & Materials",19 Dec 2022,2223/09,SME,N,
0000364170,TRUCKEAST LTD,465.00,Street & Major Road Cleansing,Plant & Vehicle - Other costs,24 Nov 2022,2223/09,LGE,N,
0000364409,TRUCKEAST LTD,316.76,Street & Major Road Cleansing,Plant & Vehicle - Other costs,01 Dec 2022,2223/09,LGE,N,
0000364482,VODAFONE CORPORATE LTD,"1,628.93",ICT,Telephone Costs,22 Oct 2022,2223/09,LGE,N,
0000364398,WEST END REHOMING,382.68,Dog Control,Collection Charges,01 Nov 2022,2223/09,SME,N,
0000364290,WINDIMAN LTD,480.00,Window & Door Rplcmts,Improvements,28 Nov 2022,2223/09,SME,N,
0000364292,WINDIMAN LTD,600.00,Window & Door Rplcmts,Improvements,28 Nov 2022,2223/09,SME,N,
0000364293,WINDIMAN LTD,760.00,Building Services,Repairs,28 Nov 2022,2223/09,SME,N,
0000364312,WINDIMAN LTD,730.00,Building Services,Repairs,29 Nov 2022,2223/09,SME,N,
0000364313,WINDIMAN LTD,700.00,Window & Door Rplcmts,Improvements,29 Nov 2022,2223/09,SME,N,
0000364314,WINDIMAN LTD,760.00,Building Services,Repairs,29 Nov 2022,2223/09,SME,N,
0000364315,WINDIMAN LTD,690.00,Building Services,Repairs,29 Nov 2022,2223/09,SME,N,
0000364643,WINDIMAN LTD,980.00,Building Services,Repairs,09 Dec 2022,2223/09,SME,N,
0000364644,WINDIMAN LTD,"4,890.00",Window & Door Rplcmts,Improvements,09 Dec 2022,2223/09,SME,N,
0000364811,WINDIMAN LTD,300.00,Building Services,Repairs,16 Dec 2022,2223/09,SME,N,
0000364812,WINDIMAN LTD,"4,225.00",Window & Door Rplcmts,Repairs,16 Dec 2022,2223/09,SME,N,
0000364377,WORKWEAR (EAST ANGLIA) LTD,230.70,Open Spaces,Protective clothing,28 Nov 2022,2223/09,SME,N,
0000364377,WORKWEAR (EAST ANGLIA) LTD,230.70,Street & Major Road Cleansing,Protective clothing,28 Nov 2022,2223/09,SME,N,
0000364436,WORKWEAR (EAST ANGLIA) LTD,325.01,Building Services,Protective clothing,08 Nov 2022,2223/09,SME,Y,50%
0000364446,WORKWEAR (EAST ANGLIA) LTD,806.74,Devt Management - Apps,Protective clothing,23 Nov 2022,2223/09,SME,Y,47%
0000364713,WORKWEAR (EAST ANGLIA) LTD,"2,156.80",Street & Major Road Cleansing,Protective clothing,09 Dec 2022,2223/09,SME,N,
0000364754,WORKWEAR (EAST ANGLIA) LTD,"2,156.80",Building Services,Protective clothing,09 Dec 2022,2223/09,SME,Y,50%
0000364757,WORKWEAR (EAST ANGLIA) LTD,230.70,Open Spaces,Protective clothing,08 Dec 2022,2223/09,SME,N,
0000364757,WORKWEAR (EAST ANGLIA) LTD,230.70,Street & Major Road Cleansing,Protective clothing,08 Dec 2022,2223/09,SME,N,
0000364934,WORKWEAR (EAST ANGLIA) LTD,314.32,Street & Major Road Cleansing,Protective clothing,01 Dec 2022,2223/09,SME,N,
0000364799,HAYMARKET MEDIA GROUP LTD,"3,720.00",Planning Performance Agreement,"Equipment, Tools & Materials",16 Dec 2022,2223/09,SME,Y,45%
0000364406,SPORTS & LEISURE MANAGEMENT LTD,"20,833.33",Leisure Contract,Contributions to other Bodies,01 Dec 2022,2223/09,LGE,N,
0000364818,EVERYONE ACTIVE STOWMARKET,"4,064.70",Wellbeing CCG Funding,Contributions & Donations,16 Dec 2022,2223/09,SME,N,
0000364519,ESSEX COUNTY COUNCIL,"6,983.00",Devt Management - Apps,Ecology Consultancy,05 Dec 2022,2223/09,LGE,N,
0000364520,ESSEX COUNTY COUNCIL,"1,555.95",Conservation,Prof & Consultancy Fees,05 Dec 2022,2223/09,LGE,N,
0000364448,SERCO LTD,"6,659.30",Open Spaces,Plant & Vehicle Fuel,02 Dec 2022,2223/09,LGE,Y,50%
0000364448,SERCO LTD,"6,659.30",Street & Major Road Cleansing,Plant & Vehicle Fuel,02 Dec 2022,2223/09,LGE,Y,50%
0000364449,SERCO LTD,"4,587.00",Domestic Waste,Refuse Contract,02 Dec 2022,2223/09,LGE,Y,50%
0000364450,SERCO LTD,600.00,Domestic Waste,Refuse Contract,02 Dec 2022,2223/09,LGE,Y,12.5%
0000364451,SERCO LTD,"10,000.00",Jnt Waste Contract,Plant & Vehicle Fuel,02 Dec 2022,2223/09,LGE,Y,50%
0000364452,SERCO LTD,"320,710.50",Domestic Waste,Refuse Contract,02 Dec 2022,2223/09,LGE,Y,48%
0000364452,SERCO LTD,"21,380.70",Trade Waste,Refuse Contract,02 Dec 2022,2223/09,LGE,Y,60%
0000364452,SERCO LTD,"85,522.80",Garden Waste,Refuse Contract,02 Dec 2022,2223/09,LGE,Y,47.5%
0000364824,TRAVIS PERKINS TRADING CO LTD,"65,488.19",Building Services,"Equipment, Tools & Materials",30 Nov 2022,2223/09,LGE,Y,65.5%
0000422968,GPC BARCLAYS,"10,642.93",Current Assets,Barclaycard Control,14 Dec 2022,2223/09,LGE,Y,15%
0000422957,ALLSTAR BUSINESS SOLUTIONS LTD,233.50,Housing Options,Plant & Vehicle Fuel,30 Nov 2022,2223/09,SME,Y,50%
0000422957,ALLSTAR BUSINESS SOLUTIONS LTD,"12,618.65",Building Services,Plant & Vehicle Fuel,30 Nov 2022,2223/09,SME,Y,50%
0000422953,COMPUTERSHARE ,890.00,Current Assets,ChildCare Vouchers-Control,28 Nov 2022,2223/09,LGE,N,
0000364337,BARKING VILLAGE HALL MANAGEMENT COMMITTE,"1,321.00",CCB Warm Spaces,"Equipment, Tools & Materials",30 Nov 2022,2223/09,SME,N,
0000364092,BEDFIELD PARISH COUNCIL,"1,550.00",Grants & Contrbns,Contributions & Donations,21 Nov 2022,2223/09,SME,N,
0000363684,BEYTON PARISH COUNCIL,"1,000.00",Grants & Contrbns,Contributions & Donations,04 Nov 2022,2223/09,SME,N,
0000364303,BOTESDALE PARISH COUNCIL,"3,234.57",Communities,Grants,29 Nov 2022,2223/09,SME,N,
0000364289,COTTON VILLAGE HALL,427.00,CCB Warm Spaces,"Equipment, Tools & Materials",28 Nov 2022,2223/09,SME,N,
0000364657,DEBENHAM PARISH COUNCIL,"3,000.00",CCB Warm Spaces,"Equipment, Tools & Materials",12 Dec 2022,2223/09,SME,N,
0000364333,ELMSWELL PARISH COUNCIL,"1,000.00",CCB Warm Spaces,"Equipment, Tools & Materials",30 Nov 2022,2223/09,SME,N,
0000364201,EYE TOWN COUNCIL,500.00,Grants & Contrbns,Contributions & Donations,24 Nov 2022,2223/09,SME,N,
0000364690,HEMINGSTONE PARISH COUNCIL,780.00,Grants & Contrbns,Contributions & Donations,13 Dec 2022,2223/09,SME,N,
0000364551,METFIELD PARISH COUNCIL,803.99,S106 Open Spaces Expenditure,Grants,06 Dec 2022,2223/09,SME,N,
0000364110,MID SUFFOLK VOLUNTARY ORGANISATIONS FORU,"3,055.00",Community Wellbeing,Contributions & Donations,21 Nov 2022,2223/09,SME,N,
0000364407,MID SUFFOLK VOLUNTARY ORGANISATIONS FORU,"1,300.00",Grants & Contrbns,Contributions & Donations,01 Dec 2022,2223/09,SME,N,
0000364350,OCCOLD RECREATIONAL & AMENITIES COUNCIL,"1,000.00",Grants & Contrbns,Grants,30 Nov 2022,2223/09,SME,N,
0000364641,PALGRAVE & DISTRICT COMMUNITY CENTRE,"2,371.00",CCB Warm Spaces,"Equipment, Tools & Materials",09 Dec 2022,2223/09,SME,N,
0000364275,RATTLESDEN PARISH COUNCIL,900.00,Grants & Contrbns,Contributions & Donations,28 Nov 2022,2223/09,SME,N,
0000364889,REDGRAVE PARISH COUNCIL,"16,714.06",Communities,Grants,20 Dec 2022,2223/09,SME,N,
0000364276,STOWLANGTOFT PARISH COUNCIL,315.00,Grants & Contrbns,Contributions & Donations,28 Nov 2022,2223/09,SME,N,
0000364277,STOWLANGTOFT PARISH COUNCIL,315.00,Grants & Contrbns,Contributions & Donations,28 Nov 2022,2223/09,SME,N,
0000364401,STREET FORGE WORKSHOPS,289.00,Grants & Contrbns,Contributions & Donations,01 Dec 2022,2223/09,SME,N,
0000364806,THE SALVATION ARMY,287.00,Holiday Activity Fund,"Equipment, Tools & Materials",24 Aug 2022,2223/09,LGE,N,
0000364317,THORNHAMS PARISH HALL,"1,688.00",CCB Warm Spaces,"Equipment, Tools & Materials",30 Nov 2022,2223/09,SME,N,
0000364918,THORNHAMS PARISH HALL,"3,223.00",Community Wellbeing,Contributions & Donations,21 Dec 2022,2223/09,SME,N,
0000364322,WALSHAM LE WILLOWS MEMORIAL VILLAGE HALL,"1,385.00",CCB Warm Spaces,"Equipment, Tools & Materials",30 Nov 2022,2223/09,SME,N,
0000364096,WORLINGWORTH COMMUNITY CENTRE COMMITTEE,"1,665.00",Grants & Contrbns,Contributions & Donations,21 Nov 2022,2223/09,SME,N,
0000363378,SUFFOLK COUNTY COUNCIL,"14,700.00",ICT,Computer Equpt Purchases,20 Oct 2022,2223/09,LGE,Y,50%
0000364348,SUFFOLK COUNTY COUNCIL,"2,673.00",Organisational Devt,Recruitment,30 Nov 2022,2223/09,LGE,Y,50%
0000364390,SUFFOLK COUNTY COUNCIL,"53,571.76",Trade Waste,Trade Waste Disposal,01 Dec 2022,2223/09,LGE,N,
0000364439,SUFFOLK COUNTY COUNCIL,"5,000.00",MSM Sustainable Travel,"Equipment, Tools & Materials",01 Dec 2022,2223/09,LGE,N,
0000364440,SUFFOLK COUNTY COUNCIL,440.00,Pre App Charging,Highways  Consultancy,01 Dec 2022,2223/09,LGE,N,
0000364441,SUFFOLK COUNTY COUNCIL,785.00,Organisational Devt,Recruitment,01 Dec 2022,2223/09,LGE,Y,50%
0000364556,SUFFOLK COUNTY COUNCIL,"1,000.00",MSM Sustainable Travel,"Equipment, Tools & Materials",06 Dec 2022,2223/09,LGE,N,
0000364804,SUFFOLK COUNTY COUNCIL,"19,377.37",Garden Waste,Garden Waste Disposal,15 Dec 2022,2223/09,LGE,N,
0000364528,FENN WRIGHT LLP,"1,000.00",Assets & Development,Prof & Consultancy Fees,02 Nov 2022,2223/09,SME,N,
0000364410,STOWMARKET TOWN COUNCIL,"15,000.00",Grants & Contrbns,Contributions & Donations,01 Dec 2022,2223/09,SME,N,
0000364383,PIRTEK IPSWICH,498.50,Street & Major Road Cleansing,Plant & Vehicle - Other costs,24 Nov 2022,2223/09,SME,N,
0000364269,KENNET EQUIPMENT LEASING,205.10,Creeting Rd Depot,Operating Lease Payments,28 Nov 2022,2223/09,SME,Y,50%
0000364269,KENNET EQUIPMENT LEASING,77.95,Creeting Rd Depot,Repairs,28 Nov 2022,2223/09,SME,Y,50%
0000364631,LEX AUTOLEASE,348.97,Building Services,Lease Cars - Payment,28 Nov 2022,2223/09,SME,Y,50%
0000364632,LEX AUTOLEASE,276.83,Building Services,Lease Cars - Payment,29 Nov 2022,2223/09,SME,Y,50%
0000364633,LEX AUTOLEASE,310.10,Building Services,Lease Cars - Payment,30 Nov 2022,2223/09,SME,Y,50%
0000364807,LEX AUTOLEASE,320.52,Building Services,Lease Cars - Payment,07 Dec 2022,2223/09,SME,Y,50%
0000364808,LEX AUTOLEASE,327.22,Building Services,Lease Cars - Payment,07 Dec 2022,2223/09,SME,Y,50%
0000364604,CIVICA UK LIMITED,"1,768.50",Governance,Desktop Software,23 Nov 2022,2223/09,LGE,Y,50%
0000422966,GAZPROM ENERGY,291.44,Creeting Rd Depot,Gas,15 Dec 2022,2223/09,SME,Y,50%
0000422966,GAZPROM ENERGY,175.05,General/Supervision & Mgmt,Gas,15 Dec 2022,2223/09,SME,N,
0000422966,GAZPROM ENERGY,27.95,Headquarters General,Gas,15 Dec 2022,2223/09,SME,N,
0000422966,GAZPROM ENERGY,"15,618.24",Leisure Contract,Gas,15 Dec 2022,2223/09,SME,N,
0000422966,GAZPROM ENERGY,13.10,Open Spaces,Gas,15 Dec 2022,2223/09,SME,N,
0000422966,GAZPROM ENERGY,15.37,Pure Gym & Adjacent Building,Gas,15 Dec 2022,2223/09,SME,N,
0000422966,GAZPROM ENERGY,"3,904.38",Sheltered Accommodation,Gas,15 Dec 2022,2223/09,SME,N,
0000422966,GAZPROM ENERGY,731.16,Temporary Accommodation,Gas,15 Dec 2022,2223/09,SME,N,
0000422966,GAZPROM ENERGY,512.59,Tenancy Services,Gas,15 Dec 2022,2223/09,SME,N,
0000364572,ERNEST DOE & SONS LTD,588.32,Open Spaces,"Equipment, Tools & Materials",17 Oct 2022,2223/09,LGE,N,
0000364294,WHYBROW PROPERTY SOLUTIONS LTD,"10,000.00",Council House Adaptions,Improvements,28 Nov 2022,2223/09,SME,N,
0000364483,WHYBROW PROPERTY SOLUTIONS LTD,"5,909.78",Council House Adaptions,Improvements,02 Dec 2022,2223/09,SME,N,
0000364732,WHYBROW PROPERTY SOLUTIONS LTD,"8,000.00",Council House Adaptions,Improvements,13 Dec 2022,2223/09,SME,N,
0000364577,MENTA,"6,249.75",Virtual High Street SIGIF,Prof & Consultancy Fees,07 Dec 2022,2223/09,SME,Y,50%
0000364553,ARMSTRONG YORK ASBESTOS ENVIRONMENTAL,"13,759.22",Asbestos Survey & Reinspection,Prof & Consultancy Fees,30 Nov 2022,2223/09,SME,N,
0000364112,ADSO - ASSOCIATION OF DEMOCRATIC SERVICE,374.00,Governance,Subscriptions,20 Oct 2022,2223/09,SME,Y,50%
0000364426,TRADITION (UK) LTD,"1,054.79",Treasury Management,Prof & Consultancy Fees,30 Nov 2022,2223/09,LGE,N,
0000364382,HOXNE PLAYING FIELD FUND,"1,000.00",Grants & Contrbns,Contributions & Donations,29 Nov 2022,2223/09,SME,N,
0000364689,HOXNE PLAYING FIELD FUND,"1,000.00",CCB Warm Spaces,"Equipment, Tools & Materials",13 Dec 2022,2223/09,SME,N,
0000364784,OXBURY CHARTERED SURVEYORS,"1,800.00","The Broadway, Badwell Ash",Prof & Consultancy Fees,15 Dec 2022,2223/09,SME,N,
0000364965,OXBURY CHARTERED SURVEYORS,"5,100.00","Framlingham Road, Laxfield",Prof & Consultancy Fees,22 Dec 2022,2223/09,SME,N,
0000364570,DALROD (UK) LTD,392.00,Creeting Rd Depot,Grounds & Site Maintenance,07 Dec 2022,2223/09,SME,Y,50%
0000364585,DALROD (UK) LTD,294.00,Creeting Rd Depot,Grounds & Site Maintenance,08 Dec 2022,2223/09,SME,Y,50%
0000364493,OPUS PEOPLE SOLUTIONS LTD,565.23,Electoral Registration,Agency Staff,01 Dec 2022,2223/09,SME,Y,36.5%
0000364493,OPUS PEOPLE SOLUTIONS LTD,108.73,Housing Standards,Agency Staff,01 Dec 2022,2223/09,SME,N,
0000364493,OPUS PEOPLE SOLUTIONS LTD,121.53,Domestic Waste,Agency Staff,01 Dec 2022,2223/09,SME,N,
0000364493,OPUS PEOPLE SOLUTIONS LTD,9.72,Bring Sites,Agency Staff,01 Dec 2022,2223/09,SME,N,
0000364493,OPUS PEOPLE SOLUTIONS LTD,14.58,Trade Waste,Agency Staff,01 Dec 2022,2223/09,SME,N,
0000364493,OPUS PEOPLE SOLUTIONS LTD,48.61,Garden Waste,Agency Staff,01 Dec 2022,2223/09,SME,N,
0000364659,OPUS PEOPLE SOLUTIONS LTD,894.30,Electoral Registration,Agency Staff,24 Nov 2022,2223/09,SME,Y,48%
0000364659,OPUS PEOPLE SOLUTIONS LTD,89.87,Housing Standards,Agency Staff,24 Nov 2022,2223/09,SME,N,
0000364659,OPUS PEOPLE SOLUTIONS LTD,68.28,Devt Management - Apps,Agency Staff,24 Nov 2022,2223/09,SME,N,
0000364536,VERTAS GROUP LTD,"1,350.00",Assets & Development,Repairs,30 Nov 2022,2223/09,SME,N,
0000364825,VERTAS GROUP LTD,"1,395.00",Assets & Development,Repairs,31 Oct 2022,2223/09,SME,N,
0000365020,VERTAS GROUP LTD,874.50,Assets & Development,Repairs,28 Dec 2022,2223/09,SME,N,
0000364822,POSTURITE LTD,250.11,Health & Safety,Furniture,21 Oct 2021,2223/09,SME,Y,50%
0000365041,4PRINCIPLES CONSTRUCTION LTD,"3,525.96",Mand Disabled Facilities Grant,Grants,30 Dec 2022,2223/09,SME,N,
0000364904,BIRKETTS LLP,"1,500.00",Stowmarket Middle School,Prof & Consultancy Fees,28 Nov 2022,2223/09,LGE,N,
0000364904,BIRKETTS LLP,324.50,Stowmarket Middle School,Prof & Consultancy Fees,28 Nov 2022,2223/09,LGE,N,
0000364447,UK CONTAINER MAINTENANCE LTD,"2,960.00",Jnt Waste Contract,"Equipment, Tools & Materials",29 Nov 2022,2223/09,SME,N,
0000364357,GALLAGHER CAR & VAN RENTALS LTD,"1,900.08",Domestic Waste,Refuse Contract,30 Nov 2022,2223/09,LGE,N,
0000364624,FORESOLUTIONS LTD,254.38,Open Spaces,Plant & Vehicle - Other costs,08 Dec 2022,2223/09,SME,N,
0000364872,1ST FRESSINGFIELD SCOUT GROUP,"3,253.00",Communities,Grants,20 Dec 2022,2223/09,SME,N,
0000364043,STOWUPLAND PARISH MAGAZINE,980.00,Grants & Contrbns,Contributions & Donations,18 Nov 2022,2223/09,SME,N,
0000364660,EARL STONHAM VILLAGE HALL,500.00,CCB Warm Spaces,"Equipment, Tools & Materials",12 Dec 2022,2223/09,SME,N,
0000364525,FAST TEST STOWMARKET LLP,300.00,Taxi & Private Hire Licensing,Contracted Services,30 Nov 2022,2223/09,SME,N,
0000364802,RICHARD UTTING ASSOCIATES LLP,"1,787.21",Needham Market Middle School,Prof & Consultancy Fees,30 Nov 2022,2223/09,SME,N,
0000364803,RICHARD UTTING ASSOCIATES LLP,"2,124.74",Stowmarket Middle School,Prof & Consultancy Fees,30 Nov 2022,2223/09,SME,N,
0000364780,MANSION HOUSE PUBLISHING LTD,633.25,Independent Living Service,Prof & Consultancy Fees,13 Dec 2022,2223/09,SME,Y,50%
0000364592,PUBLIC SEWER SERVICES,"2,267.20",Building Services,Repairs,07 Dec 2022,2223/09,SME,N,
0000364593,PUBLIC SEWER SERVICES,997.01,Sewage Treatment Works,Repairs,07 Dec 2022,2223/09,SME,N,
0000364594,PUBLIC SEWER SERVICES,492.99,Building Services,Repairs,07 Dec 2022,2223/09,SME,N,
0000364595,PUBLIC SEWER SERVICES,"1,958.83",Building Services,Repairs,07 Dec 2022,2223/09,SME,N,
0000364753,PUBLIC SEWER SERVICES,"2,450.61",Stradbrooke Pl - General Reps,Prof & Consultancy Fees,07 Dec 2022,2223/09,SME,N,
0000364459,THE STOWMARKET GLASS COMPANY LTD,329.55,Building Services,Repairs,30 Nov 2022,2223/09,SME,N,
0000364464,THE STOWMARKET GLASS COMPANY LTD,502.44,Building Services,Repairs,03 Nov 2022,2223/09,SME,N,
0000364465,THE STOWMARKET GLASS COMPANY LTD,597.96,Building Services,Repairs,03 Nov 2022,2223/09,SME,N,
0000364466,THE STOWMARKET GLASS COMPANY LTD,282.92,Building Services,Repairs,03 Nov 2022,2223/09,SME,N,
0000364471,THE STOWMARKET GLASS COMPANY LTD,306.17,Building Services,Repairs,10 Nov 2022,2223/09,SME,N,
0000364477,THE STOWMARKET GLASS COMPANY LTD,410.50,Building Services,Repairs,16 Nov 2022,2223/09,SME,N,
0000364508,ASPECT CONTRACTS LTD,855.00,Asbestos,Improvements,11 Nov 2022,2223/09,LGE,N,
0000364367,SUPERSTRUCTURES LTD,750.00,Structural Works,Prof & Consultancy Fees,30 Nov 2022,2223/09,SME,N,
0000364338,THE OYSTER PARTNERSHIP LTD,"2,900.00",Financial Servs,Agency Staff,30 Nov 2022,2223/09,SME,Y,50%
0000364339,THE OYSTER PARTNERSHIP LTD,"1,918.85",Building Servs Tech Staff,Agency Staff,30 Nov 2022,2223/09,SME,Y,50%
0000364340,THE OYSTER PARTNERSHIP LTD,923.25,Building Services,Agency Staff,30 Nov 2022,2223/09,SME,Y,50%
0000364341,THE OYSTER PARTNERSHIP LTD,"2,325.00",General/Supervision & Mgmt,Agency Staff,30 Nov 2022,2223/09,SME,Y,50%
0000364342,THE OYSTER PARTNERSHIP LTD,"3,780.00",General/Supervision & Mgmt,Agency Staff,30 Nov 2022,2223/09,SME,Y,50%
0000364343,THE OYSTER PARTNERSHIP LTD,"2,656.25",Building Servs Tech Staff,Agency Staff,30 Nov 2022,2223/09,SME,Y,50%
0000364564,THE OYSTER PARTNERSHIP LTD,"2,320.00",Financial Servs,Agency Staff,07 Dec 2022,2223/09,SME,Y,50%
0000364565,THE OYSTER PARTNERSHIP LTD,"1,875.65",Building Servs Tech Staff,Agency Staff,07 Dec 2022,2223/09,SME,Y,50%
0000364566,THE OYSTER PARTNERSHIP LTD,"2,656.25",Building Servs Tech Staff,Agency Staff,07 Dec 2022,2223/09,SME,Y,50%
0000364567,THE OYSTER PARTNERSHIP LTD,923.25,Building Services,Agency Staff,07 Dec 2022,2223/09,SME,Y,50%
0000364568,THE OYSTER PARTNERSHIP LTD,"2,325.00",General/Supervision & Mgmt,Agency Staff,07 Dec 2022,2223/09,SME,Y,50%
0000364569,THE OYSTER PARTNERSHIP LTD,"3,780.00",General/Supervision & Mgmt,Agency Staff,07 Dec 2022,2223/09,SME,Y,50%
0000364741,THE OYSTER PARTNERSHIP LTD,"1,923.80",Building Servs Tech Staff,Agency Staff,14 Dec 2022,2223/09,SME,Y,50%
0000364742,THE OYSTER PARTNERSHIP LTD,"2,900.00",Financial Servs,Agency Staff,14 Dec 2022,2223/09,SME,Y,50%
0000364743,THE OYSTER PARTNERSHIP LTD,"3,150.00",General/Supervision & Mgmt,Agency Staff,14 Dec 2022,2223/09,SME,Y,50%
0000364744,THE OYSTER PARTNERSHIP LTD,"1,395.00",General/Supervision & Mgmt,Agency Staff,14 Dec 2022,2223/09,SME,Y,50%
0000364745,THE OYSTER PARTNERSHIP LTD,"2,656.25",Building Servs Tech Staff,Agency Staff,14 Dec 2022,2223/09,SME,Y,50%
0000364746,THE OYSTER PARTNERSHIP LTD,923.25,Building Services,Agency Staff,14 Dec 2022,2223/09,SME,Y,50%
0000364921,THE OYSTER PARTNERSHIP LTD,"2,320.00",Financial Servs,Agency Staff,21 Dec 2022,2223/09,SME,Y,50%
0000364922,THE OYSTER PARTNERSHIP LTD,"2,656.25",Building Servs Tech Staff,Agency Staff,21 Dec 2022,2223/09,SME,Y,50%
0000364924,THE OYSTER PARTNERSHIP LTD,"3,150.00",General/Supervision & Mgmt,Agency Staff,21 Dec 2022,2223/09,SME,Y,50%
0000364925,THE OYSTER PARTNERSHIP LTD,"1,895.45",Building Servs Tech Staff,Agency Staff,21 Dec 2022,2223/09,SME,Y,50%
0000364515,FLOOR DIMENSIONS LTD,772.00,Tenancy Services,Misc Supplies & Services Costs,29 Apr 2022,2223/09,SME,N,
0000364515,FLOOR DIMENSIONS LTD,148.00,Tenancy Services,Misc Supplies & Services Costs,29 Apr 2022,2223/09,SME,N,
0000364054,GIPPING OCCUPATIONAL HEALTH LTD,421.85,Health & Safety,Contracted Services,18 Nov 2022,2223/09,SME,N,
0000364296,GIPPING OCCUPATIONAL HEALTH LTD,420.00,Organisational Devt,Contracted Services,24 Nov 2022,2223/09,SME,Y,50%
0000364913,JOHN FORD GROUP LTD,"6,136.57",Mand Disabled Facilities Grant,Grants,21 Dec 2022,2223/09,SME,N,
0000364858,RESIDENTIALLY CHARTERED SURVEYORS,350.00,Eves Meadow Haughley S106,Prof & Consultancy Fees,19 Dec 2022,2223/09,SME,N,
0000364287,HOLIDAY INN IPSWICH,287.50,Endeavour House - HQ,Room Hire,24 Nov 2022,2223/09,SME,Y,45%
0000364795,HOLIDAY INN IPSWICH,276.90,Endeavour House - HQ,Room Hire,13 Dec 2022,2223/09,SME,Y,50%
0000364796,HOLIDAY INN IPSWICH,386.40,Endeavour House - HQ,Food & Drink,14 Dec 2022,2223/09,SME,Y,50%
0000364662,WILD FRONTIER ECOLOGY LTD,"1,500.00",Paddock House Eye,Prof & Consultancy Fees,30 Nov 2022,2223/09,SME,N,
0000364866,WILD FRONTIER ECOLOGY LTD,500.00,BRRP-MarketTownVision&Invest,Prof & Consultancy Fees,19 Dec 2022,2223/09,SME,N,
0000364866,WILD FRONTIER ECOLOGY LTD,250.00,BRRP-MarketTownVision&Invest,Prof & Consultancy Fees,19 Dec 2022,2223/09,SME,N,
0000364505,PORTAL PLAN QUEST LTD,256.00,Devt Management - Apps,Planning Fees,05 Dec 2022,2223/09,SME,N,
0000364512,PORTAL PLAN QUEST LTD,"2,772.00",Devt Management - Apps,Planning Fees,05 Dec 2022,2223/09,SME,N,
0000364537,PORTAL PLAN QUEST LTD,"4,158.00",Devt Management - Apps,Planning Fees,07 Dec 2022,2223/09,SME,N,
0000364867,PORTAL PLAN QUEST LTD,"1,386.00",Devt Management - Apps,Planning Fees,20 Dec 2022,2223/09,SME,N,
0000364584,RJD PLUMBING HEATING & GAS SOLUTIONS,"5,985.99",Renovation/Home Repair Grants,Grants,06 Dec 2022,2223/09,SME,N,
0000364354,ABBEYCROFT LEISURE,"3,876.00",Holiday Activity Fund,"Equipment, Tools & Materials",30 Nov 2022,2223/09,LGE,N,
0000364884,BELLWAY HOMES LIMITED (ESSEX DIVISION),"340,702.80",Loraine Way Bramford  S106,Purchase of Land & Buildings,20 Dec 2022,2223/09,LGE,N,
0000364931,BELLWAY HOMES LIMITED (ESSEX DIVISION),"275,543.73","Cedars Park C & D, Stowmarket",Major Contracts,20 Dec 2022,2223/09,LGE,N,
0000364550,SOLACE IN BUSINESS,"9,000.00",PP&I,Recruitment,06 Dec 2022,2223/09,SME,Y,50%
0000364953,SEQUENCE UK,"1,096.00",Rent Deposit Scheme,Misc Premises Costs,22 Dec 2022,2223/09,LGE,N,
0000422969,SEQUENCE UK,950.00,Rent Deposit Scheme,Misc Premises Costs,22 Dec 2022,2223/09,LGE,N,
0000364371,HAMSON BARRON SMITH LTD,750.00,Assets & Development,Prof & Consultancy Fees,30 Sep 2022,2223/09,LGE,Y,50%
0000364384,HAMSON BARRON SMITH LTD,"1,300.00",BRRP-MarketTownVision&Invest,Prof & Consultancy Fees,30 Nov 2022,2223/09,LGE,N,
0000364265,A C LEIGH (NORWICH) LTD,342.36,Building Services,"Equipment, Tools & Materials",25 Nov 2022,2223/09,SME,N,
0000364428,A C LEIGH (NORWICH) LTD,332.49,Building Services,"Equipment, Tools & Materials",28 Nov 2022,2223/09,SME,N,
0000364429,A C LEIGH (NORWICH) LTD,355.00,Building Services,"Equipment, Tools & Materials",28 Nov 2022,2223/09,SME,N,
0000364433,A C LEIGH (NORWICH) LTD,427.95,Building Services,"Equipment, Tools & Materials",29 Nov 2022,2223/09,SME,N,
0000364434,A C LEIGH (NORWICH) LTD,256.77,Building Services,"Equipment, Tools & Materials",30 Nov 2022,2223/09,SME,N,
0000364496,3 POINT PROPERTY MANAGEMENT LTD,895.00,Guaranteed Rent Scheme,Rent Payable,05 Dec 2022,2223/09,SME,N,
0000364532,3 POINT PROPERTY MANAGEMENT LTD,595.00,Guaranteed Rent Scheme,Rent Payable,06 Dec 2021,2223/09,SME,N,
0000364533,3 POINT PROPERTY MANAGEMENT LTD,825.00,Guaranteed Rent Scheme,Rent Payable,06 Dec 2022,2223/09,SME,N,
0000364600,VAUGHTONS (PARENT CO WH DARBY LTD),"1,239.36",Cost of Democracy,Chairman's Expenses,07 Dec 2022,2223/09,SME,N,
0000364571,EAST SUFFOLK COUNCIL,"2,000.00",Climate Change and Sustainabil,Contributions to other Bodies,25 Nov 2022,2223/09,LGE,Y,50%
0000364306,DG ACCESSIBLE DESIGNS,"1,455.76",Mand Disabled Facilities Grant,Grants,29 Nov 2022,2223/09,SME,N,
0000364777,HUGHES TRADE,291.74,RoughSleepersInterventionYr3,Furniture,15 Dec 2022,2223/09,LGE,N,
0000364817,HUGHES TRADE,348.96,Temporary Accommodation,Furniture,16 Dec 2022,2223/09,LGE,N,
0000364895,HUGHES TRADE,560.40,RoughSleepersInterventionYr3,Furniture,20 Dec 2022,2223/09,LGE,N,
0000364344,APTL ENTERPRISES LTD,"4,326.67",PV Panels,Contracted Services,30 Nov 2022,2223/09,SME,N,
0000364418,WASHCO LTD,467.00,Sheltered Accommodation,"Equipment, Tools & Materials",01 Dec 2022,2223/09,SME,N,
0000364582,WASHCO LTD,"2,617.00",Sheltered Accommodation,"Equipment, Tools & Materials",07 Dec 2022,2223/09,SME,N,
0000364608,ANGLIA COMMERCIAL FLOORING LTD,496.58,Sheltered Accommodation,Repairs,08 Dec 2022,2223/09,SME,N,
0000364762,ANGLIA COMMERCIAL FLOORING LTD,519.07,Building Services,Repairs,14 Dec 2022,2223/09,SME,N,
0000364763,ANGLIA COMMERCIAL FLOORING LTD,521.20,Building Services,Repairs,14 Dec 2022,2223/09,SME,N,
0000364764,ANGLIA COMMERCIAL FLOORING LTD,746.77,Building Services,Repairs,14 Dec 2022,2223/09,SME,N,
0000364695,CABBAGES & KINGS,378.00,Endeavour House - HQ,Food & Drink,05 Dec 2022,2223/09,SME,Y,50%
0000422963,ANGLIAN WATER BUS (NAT) LTD T/A WAVE,31.22,General/Supervision & Mgmt,Water Rates - Metered,12 Dec 2022,2223/09,LGE,N,
0000422963,ANGLIAN WATER BUS (NAT) LTD T/A WAVE,107.49,Headquarters General,Water Rates - Metered,12 Dec 2022,2223/09,LGE,N,
0000422963,ANGLIAN WATER BUS (NAT) LTD T/A WAVE,129.32,Open Spaces,Water Rates - Metered,12 Dec 2022,2223/09,LGE,N,
0000422963,ANGLIAN WATER BUS (NAT) LTD T/A WAVE,"1,877.62",Public Conveniences,Water Rates - Metered,12 Dec 2022,2223/09,LGE,N,
0000422963,ANGLIAN WATER BUS (NAT) LTD T/A WAVE,4.07,Recycling Centre,Water Rates - Metered,12 Dec 2022,2223/09,LGE,N,
0000422963,ANGLIAN WATER BUS (NAT) LTD T/A WAVE,4.07,Sewage Treatment Works,Water Rates - Metered,12 Dec 2022,2223/09,LGE,N,
0000422963,ANGLIAN WATER BUS (NAT) LTD T/A WAVE,"2,212.18",Sheltered Accommodation,Water Rates - Metered,12 Dec 2022,2223/09,LGE,N,
0000422963,ANGLIAN WATER BUS (NAT) LTD T/A WAVE,13.58,Tacon Close Eye TDP,Water Rates - Metered,12 Dec 2022,2223/09,LGE,N,
0000422963,ANGLIAN WATER BUS (NAT) LTD T/A WAVE,16.78,Temporary Accommodation,Water Rates - Metered,12 Dec 2022,2223/09,LGE,N,
0000422963,ANGLIAN WATER BUS (NAT) LTD T/A WAVE,13.48,Tenancy Services,Water Rates - Metered,12 Dec 2022,2223/09,LGE,N,
0000422963,ANGLIAN WATER BUS (NAT) LTD T/A WAVE,19.51,Wingfield Barns,Water Rates - Metered,12 Dec 2022,2223/09,LGE,N,
0000364486,ALBION COMPUTERS PLC,"4,025.00",Jnt Waste Contract,Computer Equpt Purchases,29 Nov 2022,2223/09,SME,Y,50%
0000364487,ALBION COMPUTERS PLC,580.00,Jnt Waste Contract,Computer Equpt Purchases,24 Nov 2022,2223/09,SME,Y,50%
0000365016,SKY HIGH ACCESS LTD,560.00,Open Spaces,"Equipment, Tools & Materials",31 Oct 2022,2223/09,SME,N,
0000364345,GREENACRE RECRUITMENT LTD,"1,195.41",Housing Standards,Agency Staff,30 Nov 2022,2223/09,SME,Y,50%
0000364346,GREENACRE RECRUITMENT LTD,"1,319.70",Building Services,Agency Staff,30 Nov 2022,2223/09,SME,Y,50%
0000364554,GREENACRE RECRUITMENT LTD,"2,075.00",Building Services,Agency Staff,07 Dec 2022,2223/09,SME,Y,50%
0000364555,GREENACRE RECRUITMENT LTD,"1,183.26",Housing Standards,Agency Staff,07 Dec 2022,2223/09,SME,Y,50%
0000364747,GREENACRE RECRUITMENT LTD,"1,183.26",Housing Standards,Agency Staff,14 Dec 2022,2223/09,SME,Y,50%
0000364748,GREENACRE RECRUITMENT LTD,"2,075.00",Building Services,Agency Staff,14 Dec 2022,2223/09,SME,Y,50%
0000364914,GREENACRE RECRUITMENT LTD,975.39,Housing Standards,Agency Staff,21 Dec 2022,2223/09,SME,Y,50%
0000364915,GREENACRE RECRUITMENT LTD,"2,075.00",Building Services,Agency Staff,21 Dec 2022,2223/09,SME,Y,50%
0000364391,WETHERINGSETT VILLAGE HALL,"1,800.00",CCB Warm Spaces,"Equipment, Tools & Materials",01 Dec 2022,2223/09,SME,N,
0000364249,PINEWOOD - BELSTEAD BROOK MUTHU HOTEL,"2,998.33",Organisational Devt,Corporate Training,24 Nov 2022,2223/09,SME,Y,50%
0000364404,MID SUFFOLK GROWTH LTD,660.00,"Cedars Park C & D, Stowmarket",Prof & Consultancy Fees,30 Nov 2022,2223/09,SME,N,
0000364809,MID SUFFOLK GROWTH LTD,"40,178.32",Regen Fund - HQ Sites,Prof & Consultancy Fees,15 Dec 2022,2223/09,SME,N,
0000364810,MID SUFFOLK GROWTH LTD,"52,866.21",Needham HQ S106 Units,Purchase of Land & Buildings,15 Dec 2022,2223/09,SME,N,
0000364636,BYCHOICE LTD,"1,800.00",Eves Meadow Haughley S106,Prof & Consultancy Fees,30 Nov 2022,2223/09,SME,N,
0000364366,DEMOCRACY COUNTS LTD,"1,078.65",Electoral Registration,Returning Officer Fees,31 Oct 2022,2223/09,SME,Y,50%
0000364663,DEMOCRACY COUNTS LTD,"5,750.00",Electoral Registration,Computer Equpt Purchases,30 Nov 2022,2223/09,SME,N,
0000364788,DEMOCRACY COUNTS LTD,995.00,Electoral Registration,Software Licnse (Line of Bus) ,16 Nov 2022,2223/09,SME,N,
0000364589,LAND USE CONSULTANTS LTD,"3,500.00",Nghbrhd Plan Designations,Prof & Consultancy Fees,08 Dec 2022,2223/09,SME,N,
0000364529,QUADIENT UK LIMITED,"2,000.00",Central Postal Serv,Postage,05 Dec 2022,2223/09,LGE,Y,50%
0000364684,METFIELD ESTATES LTD,670.00,Guaranteed Rent Scheme,Rent Payable,14 Dec 2022,2223/09,SME,N,
0000364711,STOUR VALLEY CARPETS & FLOORING,260.00,MSM Housing Solutions,Misc Supplies & Services Costs,13 Dec 2022,2223/09,SME,N,
0000364517,PENTACO CONSTRUCTION LTD,"414,966.00",Stowmarket Middle School,Major Contracts,01 Dec 2022,2223/09,SME,N,
0000365033,PENTACO CONSTRUCTION LTD,"380,822.00",Stowmarket Middle School,Major Contracts,21 Dec 2022,2223/09,SME,N,
0000363442,ELLISONS SOLICITORS,"16,983.05",Land at Barham,Prof & Consultancy Fees,19 Jul 2022,2223/09,SME,N,
0000364443,EASTLIGHT COMMUNITY HOMES,"1,920.00","Green Road, Woolpit",Prof & Consultancy Fees,30 Nov 2022,2223/09,SME,N,
0000364685,LIMELEASE LTD,435.00,Guaranteed Rent Scheme,Rent Payable,14 Dec 2022,2223/09,SME,N,
0000364630,BUCHER MUNICIPAL LTD,509.71,Street & Major Road Cleansing,Plant & Vehicle - Other costs,06 Dec 2022,2223/09,LGE,N,
0000364676,PRIVATE LANDLORD,786.50,Guaranteed Rent Scheme,Rent Payable,13 Dec 2022,2223/09,ST,N,
0000364498,PAUL WRIGHT & CO,775.00,Guaranteed Rent Scheme,Rent Payable,05 Dec 2022,2223/09,SME,N,
0000422964,PAUL WRIGHT & CO,"1,490.39",Rent Deposit Scheme,Misc Premises Costs,13 Dec 2022,2223/09,SME,N,
0000364506,AFFINITY HEALTH AT WORK LTD,"7,740.00",Organisational Devt,Corporate Training,05 Dec 2022,2223/09,SME,Y,50%
0000364868,CODDENHAM COMMUNITY GROUP,400.00,Grants & Contrbns,Contributions & Donations,19 Dec 2022,2223/09,SME,N,
0000364545,SUFFOLK DOORS & WINDOWS LTD,300.00,Roofing,Improvements,06 Dec 2022,2223/09,SME,N,
0000422970,ASHTONS LEGAL,"3,595.00",Devt Management - Apps,Legal ex - Crt challenge relat,23 Dec 2022,2223/09,LGE,N,
0000364675,PRIVATE LANDLORD,786.50,Guaranteed Rent Scheme,Rent Payable,07 Nov 2022,2223/09,ST,N,
0000364578,COUNTRYSTYLE RECYCLING LTD,260.00,Trade Waste,Trade Waste Disposal,30 Nov 2022,2223/09,SME,Y,50%
0000364579,COUNTRYSTYLE RECYCLING LTD,450.00,Trade Waste,Trade Waste Disposal,30 Nov 2022,2223/09,SME,Y,50%
0000364360,DGL QUALITY MANAGEMENT LTD,"1,092.00",Stowmarket Middle School,Prof & Consultancy Fees,30 Nov 2022,2223/09,SME,N,
0000364361,DGL QUALITY MANAGEMENT LTD,870.76,Needham Market Middle School,Prof & Consultancy Fees,30 Nov 2022,2223/09,SME,N,
0000364362,DGL QUALITY MANAGEMENT LTD,"1,161.00",Needham Market Middle School,Prof & Consultancy Fees,30 Nov 2022,2223/09,SME,N,
0000364896,OAKS MEADOW PROJECT CIO,"5,391.63",Communities,Grants,20 Dec 2022,2223/09,SME,N,
0000364291,PCC OF STOWMARKET,"5,000.00",CCB Warm Spaces,"Equipment, Tools & Materials",28 Nov 2022,2223/09,SME,N,
0000363928,ARAN INSULATION LTD,"2,806.19",Insulation Imps,Improvements,14 Nov 2022,2223/09,SME,N,
0000364006,ARAN INSULATION LTD,"9,281.27",Insulation Imps,Improvements,14 Nov 2022,2223/09,SME,N,
0000364323,ARAN INSULATION LTD,"1,039.91",Insulation Imps,Improvements,30 Nov 2022,2223/09,SME,N,
0000364374,ARAN INSULATION LTD,744.63,Insulation Imps,Improvements,30 Nov 2022,2223/09,SME,N,
0000364375,ARAN INSULATION LTD,"2,764.57",Insulation Imps,Improvements,30 Nov 2022,2223/09,SME,N,
0000364376,ARAN INSULATION LTD,"2,072.11",Insulation Imps,Improvements,30 Nov 2022,2223/09,SME,N,
0000364653,ARAN INSULATION LTD,"3,058.62",Insulation Imps,Improvements,12 Dec 2022,2223/09,SME,N,
0000364494,CIPFA (COURSES),880.00,Organisational Devt,Training,02 Dec 2022,2223/09,LGE,Y,50%
0000364301,DAVID TOLSON PARTNERSHIP LTD,350.00,Tenants Forum,Prof & Consultancy Fees,08 Nov 2022,2223/09,SME,Y,50%
0000364509,MARCHDELL LTD,715.00,Guaranteed Rent Scheme,Rent Payable,05 Dec 2022,2223/09,SME,N,
0000364823,2020 CONSULTANCY SOLUTIONS LTD,"20,275.00",Car Parking Strategy,Prof & Consultancy Fees,16 Dec 2022,2223/09,SME,Y,50%
0000364683,PRIVATE LANDLORD,669.00,Guaranteed Rent Scheme,Rent Payable,14 Dec 2022,2223/09,ST,N,
0000364358,PCC OF MENDLESHAM,"1,700.00",CCB Warm Spaces,"Equipment, Tools & Materials",30 Nov 2022,2223/09,SME,N,
0000364359,JACKSON LIFT SERVICES LTD,"1,191.78",Sheltered Accommodation,Plant Maintenance,11 Nov 2022,2223/09,LGE,N,
0000364733,JACKSON LIFT SERVICES LTD,624.99,Sheltered Accommodation,Plant Maintenance,07 Sep 2022,2223/09,LGE,N,
0000422962,MUSKER MCINTYRE DISS LETTINGS,"2,095.00",Rent Deposit Scheme,Misc Premises Costs,09 Dec 2022,2223/09,SME,N,
0000364495,PRIVATE LANDLORD,650.00,Guaranteed Rent Scheme,Rent Payable,05 Dec 2022,2223/09,ST,N,
0000364412,BUCKINGHAM FUTURES,"1,125.00",Covid-19 Test and Trace,Agency Staff,30 Nov 2022,2223/09,SME,Y,50%
0000364607,BUCKINGHAM FUTURES,"1,665.00",Covid-19 Test and Trace,Agency Staff,23 Nov 2022,2223/09,SME,Y,50%
0000364623,BUCKINGHAM FUTURES,"1,125.00",Covid-19 Test and Trace,Agency Staff,07 Dec 2022,2223/09,SME,Y,50%
0000364801,BUCKINGHAM FUTURES,"1,125.00",Covid-19 Test and Trace,Agency Staff,14 Dec 2022,2223/09,SME,Y,50%
0000364959,BUCKINGHAM FUTURES,"1,125.00",Covid-19 Test and Trace,Agency Staff,21 Dec 2022,2223/09,SME,Y,50%
0000364534,ELDRIDGE MARRIOTT,555.00,Guaranteed Rent Scheme,Rent Payable,06 Dec 2022,2223/09,SME,N,
0000364511,SHJ HOMES LTD,500.00,Guaranteed Rent Scheme,Rent Payable,05 Dec 2022,2223/09,SME,N,
0000364677,SHJ HOMES LTD,550.00,Guaranteed Rent Scheme,Rent Payable,13 Dec 2022,2223/09,SME,N,
0000364850,KEYS REMOVALS LTD,700.00,Homeless Prevention Fund,Removal Expenses,14 Dec 2022,2223/09,SME,N,
0000364601,ABLEWORLD,"2,095.00",Mand Disabled Facilities Grant,Grants,08 Dec 2022,2223/09,SME,N,
0000364873,BEDFIELD & MONK SOHAM COMMUNITY CLUB,"1,251.56",Community Wellbeing,Contributions & Donations,20 Dec 2022,2223/09,SME,N,
0000364549,ABLEY LETCHFORD PARTNERSHIP LTD,"1,500.00",Devt Management - Apps,Environmental  Consultancy,27 Nov 2022,2223/09,SME,N,
0000364531,HAMILTON SMITH LETTINGS,550.00,Guaranteed Rent Scheme,Rent Payable,06 Dec 2022,2223/09,SME,N,
0000364674,HAMILTON SMITH LETTINGS,775.00,Guaranteed Rent Scheme,Rent Payable,13 Dec 2022,2223/09,SME,N,
0000364678,HAMILTON SMITH LETTINGS,590.00,Guaranteed Rent Scheme,Rent Payable,09 Dec 2022,2223/09,SME,N,
0000364682,HAMILTON SMITH LETTINGS,500.00,Guaranteed Rent Scheme,Rent Payable,14 Dec 2022,2223/09,SME,N,
0000364827,HAMILTON SMITH LETTINGS,500.00,Guaranteed Rent Scheme,Rent Payable,19 Dec 2022,2223/09,SME,N,
0000364828,HAMILTON SMITH LETTINGS,500.00,Guaranteed Rent Scheme,Rent Payable,19 Dec 2022,2223/09,SME,N,
0000364727,PAY 360 LIMITED,"7,662.82",Bank Chgs,Bank Charges,13 Dec 2022,2223/09,LGE,N,
0000364897,THE FOOD MUSEUM LTD,"18,469.05",Communities,Grants,20 Dec 2022,2223/09,SME,N,
0000364897,THE FOOD MUSEUM LTD,"1,530.95",Community Fund Projects-Grants,Grants,20 Dec 2022,2223/09,SME,N,
0000364583,EASTLIGHT COMMUNITY HOMES (SUNDRY DEBTOR,"2,700.00",Capita System Support,Training,10 Mar 2022,2223/09,SME,Y,50%
0000364507,PRIVATE LANDLORD,900.00,Guaranteed Rent Scheme,Rent Payable,05 Dec 2022,2223/09,SME,N,
0000364497,PRIVATE LANDLORD,875.00,Guaranteed Rent Scheme,Rent Payable,05 Dec 2022,2223/09,ST,N,
0000364679,BENICIA PROPERTIES LTD,575.00,Guaranteed Rent Scheme,Rent Payable,13 Dec 2022,2223/09,SME,N,
0000364681,PRIVATE LANDLORD,800.00,Guaranteed Rent Scheme,Rent Payable,14 Dec 2022,2223/09,ST,N,
0000364634,DOT TO DOT TECHNICAL LTD,"1,100.00",Community Safety-General,Training,09 Dec 2022,2223/09,SME,N,
0000364635,DOT TO DOT TECHNICAL LTD,350.00,Community Safety-General,Training,09 Dec 2022,2223/09,SME,Y,50%
0000364305,ST MARYS PAROCHIAL CC WALSHAM LE WILLOWS,"2,800.00",CCB Warm Spaces,"Equipment, Tools & Materials",29 Nov 2022,2223/09,SME,N,
0000364352,NEWSQUEST MEDIA GROUP,584.03,Devt Management - Apps,Advertising&mkting (non-staff),30 Nov 2022,2223/09,LGE,N,
0000364611,NEWSQUEST MEDIA GROUP,689.09,Devt Management - Apps,Advertising&mkting (non-staff),08 Dec 2022,2223/09,LGE,N,
0000364694,NEWSQUEST MEDIA GROUP,257.53,Devt Management - Apps,Advertising&mkting (non-staff),11 Dec 2022,2223/09,LGE,N,
0000364782,NEWSQUEST MEDIA GROUP,872.94,Devt Management - Apps,Advertising&mkting (non-staff),15 Dec 2022,2223/09,LGE,N,
0000364966,NEWSQUEST MEDIA GROUP,610.29,Devt Management - Apps,Advertising&mkting (non-staff),22 Dec 2022,2223/09,LGE,N,
0000365039,NEWSQUEST MEDIA GROUP,505.23,Devt Management - Apps,Advertising&mkting (non-staff),29 Dec 2022,2223/09,LGE,N,
0000363711,ANGLIA LAND SURVEYS LTD,"6,850.00",SHELF Project,Prof & Consultancy Fees,07 Nov 2022,2223/09,SME,N,
0000364715,BELL DECORATING GROUP LTD,"18,012.04",Planned Maint - Ext Painting,Major Contracts,13 Dec 2022,2223/09,LGE,N,
0000364680,PRIVATE LANDLORD,800.00,Guaranteed Rent Scheme,Rent Payable,13 Dec 2022,2223/09,ST,N,
0000364901,FAMILIES TOGETHER SUFFOLK,"5,000.00",Community Wellbeing,Contributions & Donations,20 Dec 2022,2223/09,SME,N,
0000364902,FAMILIES TOGETHER SUFFOLK,"5,000.00",Community Safety-General,Contributions & Donations,20 Dec 2022,2223/09,SME,N,
0000364893,COUNTERCULTURE PARTNERSHIP LLP,"9,100.00",Town Centres,Prof & Consultancy Fees,30 Nov 2022,2223/09,SME,N,
0000364270,BOSTON SEEDS LTD,"1,453.82",Open Spaces,Horticultural Purchases,03 Nov 2022,2223/09,SME,N,
0000364581,HARRIS SCREEN PRINT LTD,262.00,Environmental Protection,Misc Supplies & Services Costs,09 Nov 2022,2223/09,SME,N,
0000364548,CHARLES RUSSELL SPEECHLYS LLP,751.80,Eves Meadow Haughley S106,Prof & Consultancy Fees,28 Oct 2022,2223/09,LGE,N,
0000364273,OM INTERACTIVE LTD,"5,712.00",Community Wellbeing,Contributions & Donations,28 Nov 2022,2223/09,SME,N,
0000364591,REMINISCENCE LEARNING,"6,667.00",Community Wellbeing,Contributions & Donations,08 Dec 2022,2223/09,SME,N,
0000364351,CLAYDON & BARHAM LOCAL COMMUNITY TRUST L,760.26,CCB Warm Spaces,"Equipment, Tools & Materials",30 Nov 2022,2223/09,SME,N,
0000364351,CLAYDON & BARHAM LOCAL COMMUNITY TRUST L,"4,239.74",Covid-19 Test and Trace,Grants,30 Nov 2022,2223/09,SME,N,
0000364363,BACTON PAROCHIAL CHURCH COUNCIL,"1,200.00",Grants & Contrbns,Contributions & Donations,30 Nov 2022,2223/09,SME,N,
0000364311,HILL-ROM LTD,"1,087.51",Mand Disabled Facilities Grant,Grants,29 Nov 2022,2223/09,LGE,N,
0000364356,STOWMARKET ARTS CIC,"8,566.98",Community Wellbeing,Contributions & Donations,30 Nov 2022,2223/09,SME,N,
0000364400,THE OLD NEWTON CARPET BOWLS CLUB,400.00,Grants & Contrbns,Contributions & Donations,01 Dec 2022,2223/09,SME,N,
0000364843,CREATIVE VEHICLE WRAPPING LIMITED,"2,495.00",Rplcmt Ref Freighters-Jnt Schm,Plant & Vehicle - Purchase,16 Dec 2022,2223/09,SME,N,
0000364844,CREATIVE VEHICLE WRAPPING LIMITED,"2,495.00",Rplcmt Ref Freighters-Jnt Schm,Plant & Vehicle - Purchase,16 Dec 2022,2223/09,SME,N,
0000364875,CREATIVE VEHICLE WRAPPING LIMITED,"2,495.00",Rplcmt Ref Freighters-Jnt Schm,Plant & Vehicle - Purchase,19 Dec 2022,2223/09,SME,N,
0000364876,CREATIVE VEHICLE WRAPPING LIMITED,"2,495.00",Rplcmt Ref Freighters-Jnt Schm,Plant & Vehicle - Purchase,19 Dec 2022,2223/09,SME,N,
0000364878,CREATIVE VEHICLE WRAPPING LIMITED,"2,495.00",Rplcmt Ref Freighters-Jnt Schm,Plant & Vehicle - Purchase,19 Dec 2022,2223/09,SME,N,
0000364910,CREATIVE VEHICLE WRAPPING LIMITED,"2,495.00",Rplcmt Ref Freighters-Jnt Schm,Plant & Vehicle - Purchase,20 Dec 2022,2223/09,SME,N,
0000364911,CREATIVE VEHICLE WRAPPING LIMITED,"2,495.00",Rplcmt Ref Freighters-Jnt Schm,Plant & Vehicle - Purchase,21 Dec 2022,2223/09,SME,N,
0000364932,CREATIVE VEHICLE WRAPPING LIMITED,"2,495.00",Rplcmt Ref Freighters-Jnt Schm,Plant & Vehicle - Purchase,21 Dec 2022,2223/09,SME,N,
0000364933,CREATIVE VEHICLE WRAPPING LIMITED,"2,495.00",Rplcmt Ref Freighters-Jnt Schm,Plant & Vehicle - Purchase,21 Dec 2022,2223/09,SME,N,
0000364513,STOWMARKET SWIMMING CLUB,"1,313.58",CCB Warm Spaces,"Equipment, Tools & Materials",05 Dec 2022,2223/09,SME,N,
0000364670,KO-AN ARTS CIC,373.33,Holiday Activity Fund,"Equipment, Tools & Materials",12 Dec 2022,2223/09,SME,N,
0000364957,SIMON WATSON PHOTOGRAPHY,350.00,Communications,Advertising&mkting (non-staff),22 Dec 2022,2223/09,SME,Y,50%
0000422965,COUNTRYWIDE RESIDENTIAL LETTINGS,"2,800.00",Rent Deposit Scheme,Misc Premises Costs,19 Dec 2022,2223/09,SME,N,
0000364862,JAM COMMUNITY POT,275.00,Grants & Contrbns,Contributions & Donations,19 Dec 2022,2223/09,SME,N,
0000364916,WESTONE HOUSING LTD,"6,771.98",Mand Disabled Facilities Grant,Grants,21 Dec 2022,2223/09,SME,N,
0000364961,GIDNEY PLUMBING & HEATING LTD,"4,976.08",Renovation/Home Repair Grants,Grants,22 Dec 2022,2223/09,SME,N,
0000365032,KOZIWARM PLUMBING & HEATING LTD,"3,960.00",Renovation/Home Repair Grants,Grants,29 Dec 2022,2223/09,SME,N,
0000000993,E.ON NEXT,-19.09,Voids Maintenance,Electricity,01 Dec 2022,2223/09,LGE,N,
0000000994,E.ON NEXT,19.09,Voids Maintenance,Electricity,01 Dec 2022,2223/09,LGE,N,
0000364735,JACKSON LIFT SERVICES LTD,"-1,191.78",Sheltered Accommodation,Plant Maintenance,30 Nov 2022,2223/09,LGE,N,
